Authority,Department,Spending Area,Expense Type,Posting Date,Reference,Amount,Supplier
OXFORDSHIRE CC,"CHILDRENS, YOUNG PEOPLE AND FAMILIES",EDT,CATERING,28/09/2020,7337586418,22.49,JUST EAT
OXFORDSHIRE CC,"CHILDRENS, YOUNG PEOPLE AND FAMILIES",FIELDWORK UASC,MATERIALS,28/09/2020,7337586604,29.79,AMZNMKTPLACE
OXFORDSHIRE CC,"CHILDRENS, YOUNG PEOPLE AND FAMILIES","	FAMILY SUPPORT CITY3",HIRE OF ACCOMMODATION AND FACILITIES,28/09/2020,7337586554,74.00,WELCOME BREAK
OXFORDSHIRE CC,SOCIAL AND COMMUNITY SERVICES,WITNEY MOVE ON HOME,CATERING PROVISIONS,28/09/2020,7337586272,10.01,LIDL GB  WITNEY
OXFORDSHIRE CC,"CHILDRENS, YOUNG PEOPLE AND FAMILIES","	LOOKED AFTER SOUTH",CATERING PROVISIONS,28/09/2020,7337587214,3.50,TESCO STORE 2994
OXFORDSHIRE CC,"CHILDRENS, YOUNG PEOPLE AND FAMILIES",EYNSHAM,CATERING,28/09/2020,7337586236,3.00,JOHN LEWIS OXFORD
OXFORDSHIRE CC,"CHILDRENS, YOUNG PEOPLE AND FAMILIES",THAME E&A HOME,CATERING,28/09/2020,7337586282,13.86,COSTA COFFEE 43039930
OXFORDSHIRE CC,"CHILDRENS, YOUNG PEOPLE AND FAMILIES","	40 THE MOORS",MATERIALS,28/09/2020,7337586582,7.98,ARGOS LTD
OXFORDSHIRE CC,"CHILDRENS, YOUNG PEOPLE AND FAMILIES",EYNSHAM,OTHER TRANSPORT ARRANGEMENTS,28/09/2020,7337586232,3.20,OCC ON-STREET PARKING
OXFORDSHIRE CC,"CHILDRENS, YOUNG PEOPLE AND FAMILIES","	40 THE MOORS",MATERIALS,28/09/2020,7337586580,99.95,ARGOS LTD
OXFORDSHIRE CC,CORPORATE CORE,COVID-19 COD,MATERIALS,28/09/2020,7337586806,151.80,AMZNMKTPLACE AMAZON.CO
OXFORDSHIRE CC,SOCIAL AND COMMUNITY SERVICES,DIDCOT MOVE-ON HOME,CATERING PROVISIONS,28/09/2020,7337586328,24.78,SAINSBURYS SACAT 2067
OXFORDSHIRE CC,"CHILDRENS, YOUNG PEOPLE AND FAMILIES",FIELDWORK UASC,MATERIALS,28/09/2020,7337586602,39.99,AMZNMKTPLACE
OXFORDSHIRE CC,"CHILDRENS, YOUNG PEOPLE AND FAMILIES","	OCCG GRANT",CLOTHING AND UNIFORMS,28/09/2020,7337586760,54.99,ZARA OXFORD 12318
OXFORDSHIRE CC,"CHILDRENS, YOUNG PEOPLE AND FAMILIES",DIDCOT MOVE-ON HOME,CATERING PROVISIONS,28/09/2020,7337586298,8.20,SAINSBURYS SACAT 0730
OXFORDSHIRE CC,"CHILDRENS, YOUNG PEOPLE AND FAMILIES",THAME E&A HOME,MATERIALS,28/09/2020,7337586288,181.96,SPORTSDIRECT.COM
OXFORDSHIRE CC,"CHILDRENS, YOUNG PEOPLE AND FAMILIES",WITNEY,CATERING PROVISIONS,28/09/2020,7337586316,9.85,SAINSBURYS SACAT 0632
OXFORDSHIRE CC,"CHILDRENS, YOUNG PEOPLE AND FAMILIES",ATV ADOPTION WOODLEY,MATERIALS,28/09/2020,7337586094,9.29,AMZNMKTPLACE AMAZON.CO
OXFORDSHIRE CC,"CHILDRENS, YOUNG PEOPLE AND FAMILIES","	40 THE MOORS",OTHER EXPENSES,28/09/2020,7337586578,6.20,MYHERMES.CO.UK
OXFORDSHIRE CC,"CHILDRENS, YOUNG PEOPLE AND FAMILIES","	40 THE MOORS",CATERING PROVISIONS,28/09/2020,7337586586,2.70,CO-OPERATIVE FOOD
OXFORDSHIRE CC,SHARED SERVICES,COVID-19 COD,"SUPPLIES, STATIONERY AND MATERIALS",28/09/2020,7337586702,15.66,AMAZON.CO.UK TZ6G02EK5
OXFORDSHIRE CC,SHARED SERVICES,COVID-19 COD,"SUPPLIES, STATIONERY AND MATERIALS",28/09/2020,7337586698,22.04,AMAZON.CO.UK NB2DJ92J5
OXFORDSHIRE CC,SHARED SERVICES,COVID-19 COD,PURCHASE OF IT EQUIPMENT,28/09/2020,7337586706,30.20,AMAZON.CO.UK YQ9KC4GC5
OXFORDSHIRE CC,SOCIAL AND COMMUNITY SERVICES,RESIDENTIAL STRATEGY,OTHER TRANSPORT ARRANGEMENTS,28/09/2020,7337586528,3.50,WESTAGTE OXFORD CAR P
OXFORDSHIRE CC,SOCIAL AND COMMUNITY SERVICES,RESIDENTIAL STRATEGY,CATERING,28/09/2020,7337586538,9.50,KEBAB KING
OXFORDSHIRE CC,SOCIAL AND COMMUNITY SERVICES,RESIDENTIAL STRATEGY,MATERIALS,28/09/2020,7337586542,23.00,J D SPORTS FASHION
OXFORDSHIRE CC,SOCIAL AND COMMUNITY SERVICES,RESIDENTIAL STRATEGY,CATERING PROVISIONS,28/09/2020,7337586534,3.49,ZAID SUPERMARKET
OXFORDSHIRE CC,SOCIAL AND COMMUNITY SERVICES,RESIDENTIAL STRATEGY,CATERING PROVISIONS,28/09/2020,7337586530,14.55,PAK HALAL ERDEM FOOD C
OXFORDSHIRE CC,"CHILDRENS, YOUNG PEOPLE AND FAMILIES",EYNSHAM,CATERING PROVISIONS,28/09/2020,7337587198,4.89,CO-OPERATIVE FOOD
OXFORDSHIRE CC,"CHILDRENS, YOUNG PEOPLE AND FAMILIES",THAME E&A HOME,OTHER TRANSPORT ARRANGEMENTS,28/09/2020,7337586732,4.00,WESTAGTE OXFORD CAR P
OXFORDSHIRE CC,"CHILDRENS, YOUNG PEOPLE AND FAMILIES",WITNEY,CATERING PROVISIONS,28/09/2020,7337586314,8.90,SAINSBURYS SACAT 0632
OXFORDSHIRE CC,"CHILDRENS, YOUNG PEOPLE AND FAMILIES",EYNSHAM,OTHER TRANSPORT ARRANGEMENTS,28/09/2020,7337586718,3.00,WESTAGTE OXFORD CAR P
OXFORDSHIRE CC,"CHILDRENS, YOUNG PEOPLE AND FAMILIES",THAME E&A HOME,CATERING,28/09/2020,7337586736,5.40,NEDS NOODLES
OXFORDSHIRE CC,"CHILDRENS, YOUNG PEOPLE AND FAMILIES","	MALTFIELD HOUSE",CATERING PROVISIONS,28/09/2020,7337586110,4.15,WELCOME BREAK
OXFORDSHIRE CC,SOCIAL AND COMMUNITY SERVICES,LEAVING CARE NORTH,STATIONERY,28/09/2020,7337586876,4.84,HOME BARGAINS BANBURY
OXFORDSHIRE CC,SOCIAL AND COMMUNITY SERVICES,RESIDENTIAL STRATEGY,PAYMENTS TO VOLUNTARY BODIES,28/09/2020,7337586548,6.98,OXFAM F9000
OXFORDSHIRE CC,"CHILDRENS, YOUNG PEOPLE AND FAMILIES",DIDCOT MOVE-ON HOME,CATERING PROVISIONS,28/09/2020,7337586294,25.41,SAINSBURYS SACAT 2067
OXFORDSHIRE CC,"CHILDRENS, YOUNG PEOPLE AND FAMILIES",DIDCOT MOVE-ON HOME,CATERING PROVISIONS,28/09/2020,7337586296,7.00,SAINSBURYS SACAT 2067
OXFORDSHIRE CC,ENVIRONMENT AND ECONOMY,WASTE REDUCTION GEN,"PUBLICITY, PROMOTIONS AND ADVERTISEMENT",28/09/2020,7337586464,25.00,FACEBK GAGU5XN8M2
OXFORDSHIRE CC,SOCIAL AND COMMUNITY SERVICES,CSS - ABINGDON,MATERIALS,28/09/2020,7337586168,22.41,HOME BARGAINS
OXFORDSHIRE CC,CORPORATE CORE,REGISTRAR,POSTAGE AND DELIVERY,28/09/2020,7337586250,38.99,AMZNMKTPLACE
OXFORDSHIRE CC,"CHILDRENS, YOUNG PEOPLE AND FAMILIES","	OCCG GRANT",CATERING PROVISIONS,28/09/2020,7337586754,7.75,TESCO STORES 6880
OXFORDSHIRE CC,"CHILDRENS, YOUNG PEOPLE AND FAMILIES","	FPT NORTH",CATERING PROVISIONS,28/09/2020,7337586834,27.87,CO-OPERATIVE FOOD
OXFORDSHIRE CC,"CHILDRENS, YOUNG PEOPLE AND FAMILIES",EYNSHAM,CATERING PROVISIONS,28/09/2020,7337586234,1.29,ASDA SUPERSTORE
OXFORDSHIRE CC,"CHILDRENS, YOUNG PEOPLE AND FAMILIES","	FPT NORTH",CATERING PROVISIONS,28/09/2020,7337586838,-28.95,CO-OPERATIVE FOOD
OXFORDSHIRE CC,SOCIAL AND COMMUNITY SERVICES,CSS BICESTER,MATERIALS,28/09/2020,7337586354,21.99,AMZNMKTPLACE AMAZON.CO
OXFORDSHIRE CC,"CHILDRENS, YOUNG PEOPLE AND FAMILIES","	40 THE MOORS",OTHER TRANSPORT ARRANGEMENTS,28/09/2020,7337587008,1.10,STGCOACH/CTYLINK
OXFORDSHIRE CC,ENVIRONMENT AND ECONOMY,WASTE REDUCTION GEN,"PUBLICITY, PROMOTIONS AND ADVERTISEMENT",28/09/2020,7337586460,25.00,FACEBK LW7C7WW8M2
OXFORDSHIRE CC,"CHILDRENS, YOUNG PEOPLE AND FAMILIES","	40 THE MOORS",CLOTHING AND UNIFORMS,28/09/2020,7337587014,116.00,PRIMARK 440
OXFORDSHIRE CC,"CHILDRENS, YOUNG PEOPLE AND FAMILIES",SOUTH FSS STATUTORY - ABINGDON,CATERING PROVISIONS,28/09/2020,7337586120,33.30,WAITROSE 211
OXFORDSHIRE CC,"CHILDRENS, YOUNG PEOPLE AND FAMILIES","	40 THE MOORS",CLOTHING AND UNIFORMS,28/09/2020,7337587006,29.60,VANS
OXFORDSHIRE CC,"CHILDRENS, YOUNG PEOPLE AND FAMILIES","	40 THE MOORS",CLOTHING AND UNIFORMS,28/09/2020,7337587004,30.00,VANS
OXFORDSHIRE CC,"CHILDRENS, YOUNG PEOPLE AND FAMILIES","	40 THE MOORS",CLOTHING AND UNIFORMS,28/09/2020,7337587002,76.00,VANS
OXFORDSHIRE CC,"CHILDRENS, YOUNG PEOPLE AND FAMILIES",WITNEY,CATERING PROVISIONS,28/09/2020,7337586158,23.77,ASDA STORES 4920
OXFORDSHIRE CC,SOCIAL AND COMMUNITY SERVICES,"	MUSEUMS COLLECTIONS",OTHER SERVICES,28/09/2020,7337586882,240.64,AZPACK LTD
OXFORDSHIRE CC,"CHILDRENS, YOUNG PEOPLE AND FAMILIES",WITNEY,CATERING PROVISIONS,28/09/2020,7337586156,38.13,ASDA STORES 4920
OXFORDSHIRE CC,"CHILDRENS, YOUNG PEOPLE AND FAMILIES",DIDCOT MOVE-ON HOME,CATERING PROVISIONS,28/09/2020,7337587038,10.65,SAINSBURYS SACAT 2067
OXFORDSHIRE CC,"CHILDRENS, YOUNG PEOPLE AND FAMILIES","	40 THE MOORS",HIRED AND CONTRACTED SERVICES,28/09/2020,7337587000,13.00,JAKS BARBER SHOP
OXFORDSHIRE CC,"CHILDRENS, YOUNG PEOPLE AND FAMILIES","	40 THE MOORS",CATERING,28/09/2020,7337587012,15.66,MCDONALDS
OXFORDSHIRE CC,"CHILDRENS, YOUNG PEOPLE AND FAMILIES","	40 THE MOORS","BOOKS, DVDS AND CDS",28/09/2020,7337587010,19.95,WATERSTONES
OXFORDSHIRE CC,SOCIAL AND COMMUNITY SERVICES,RESIDENTIAL STRATEGY,CATERING PROVISIONS,28/09/2020,7337586214,25.70,SAINSBURYS 0632
OXFORDSHIRE CC,"CHILDRENS, YOUNG PEOPLE AND FAMILIES",CSS - DIDCOT,POSTAGE AND DELIVERY,28/09/2020,7337586444,36.48,POST OFFICE COUNTER
OXFORDSHIRE CC,"CHILDRENS, YOUNG PEOPLE AND FAMILIES",THAME E&A HOME,CATERING PROVISIONS,28/09/2020,7337586280,9.60,SAINSBURYS 2096
OXFORDSHIRE CC,"CHILDRENS, YOUNG PEOPLE AND FAMILIES","	LEAVING CARE NORTH",CATERING PROVISIONS,28/09/2020,7337586898,14.50,WM MORRISONS STORE
OXFORDSHIRE CC,ENVIRONMENT AND ECONOMY,"	COMMERCIAL MANAGEMEN",POSTAGE AND DELIVERY,28/09/2020,7337586508,12.00,ROYAL MAIL GROUP LTD
OXFORDSHIRE CC,"CHILDRENS, YOUNG PEOPLE AND FAMILIES",CNTL ERLY HELP-BBLEY,"SUPPLIES, STATIONERY AND MATERIALS",28/09/2020,7337587106,167.98,HIPPOBAG
OXFORDSHIRE CC,CORPORATE CORE,"MARKETING, COMMUNICATIONS & ENGAGEMENT",IT SOFTWARE,28/09/2020,7337586722,78.97,ADOBE STOCK
OXFORDSHIRE CC,SOCIAL AND COMMUNITY SERVICES,WALLINGFORD LIBRARY,EQUIPMENT,28/09/2020,7337587086,19.99,AMAZON.CO.UK E591Q1F65
OXFORDSHIRE CC,"CHILDRENS, YOUNG PEOPLE AND FAMILIES",CNTL EARLY HELP-BRTN,MATERIALS,28/09/2020,7337587224,29.89,AMZNMKTPLACE
OXFORDSHIRE CC,ENVIRONMENT AND ECONOMY,HARD FM,HARDWARE AND CROCKERY,28/09/2020,7337586182,73.63,THE FENCING CENTRE
OXFORDSHIRE CC,"CHILDRENS, YOUNG PEOPLE AND FAMILIES","	LOOKED AFTER CITY 1",OTHER TRANSPORT ARRANGEMENTS,28/09/2020,7337586308,5.00,OXPENS CAR PARK
OXFORDSHIRE CC,"CHILDRENS, YOUNG PEOPLE AND FAMILIES",CSS - DIDCOT,CATERING PROVISIONS,28/09/2020,7337586448,53.30,SAINSBURYS 2244
OXFORDSHIRE CC,"CHILDRENS, YOUNG PEOPLE AND FAMILIES","	OCCG GRANT",CATERING PROVISIONS,28/09/2020,7337586750,1.05,TESCO STORES 6880
OXFORDSHIRE CC,"CHILDRENS, YOUNG PEOPLE AND FAMILIES","	LOOKED AFTER SOUTH",CATERING,28/09/2020,7337587210,3.74,COSTA COFFEE 43037200
OXFORDSHIRE CC,"CHILDRENS, YOUNG PEOPLE AND FAMILIES","	LEAVING CARE CITY 2",OTHER EXPENSES,28/09/2020,7337587114,4.05,CAFFE NERO OXFORD GLOU
OXFORDSHIRE CC,"CHILDRENS, YOUNG PEOPLE AND FAMILIES",ATV ADOPTION WOODLEY,MATERIALS,28/09/2020,7337586080,2.29,AMZNMKTPLACE AMAZON.CO
OXFORDSHIRE CC,"CHILDRENS, YOUNG PEOPLE AND FAMILIES",ATV ADOPTION WOODLEY,MATERIALS,28/09/2020,7337586074,17.58,AMZNMKTPLACE AMAZON.CO
OXFORDSHIRE CC,"CHILDRENS, YOUNG PEOPLE AND FAMILIES",THAME E&A HOME,MATERIALS,28/09/2020,7337586040,12.69,AMZNMKTPLACE
OXFORDSHIRE CC,SOCIAL AND COMMUNITY SERVICES,CSS WALLINGFORD,CATERING PROVISIONS,28/09/2020,7337586386,16.92,WAITROSE 675
OXFORDSHIRE CC,ENVIRONMENT AND ECONOMY,"	COUNTY PRINT FINSHRS",PAYMENT TO GOVERNMENT DEPARTMENTS,28/09/2020,7337586146,16.86,OXFORDSHIRE CC MOTO1
OXFORDSHIRE CC,ENVIRONMENT AND ECONOMY,"	NAT TRAILS GENERAL",INSURANCE COSTS,28/09/2020,7337586138,689.99,NFU MUTUAL INSURAN
OXFORDSHIRE CC,"CHILDRENS, YOUNG PEOPLE AND FAMILIES",ATV ADOPTION OXFORD,HIRE OF ACCOMMODATION AND FACILITIES,28/09/2020,7337586088,630.00,BERKSHIRE ROOMS LTD
OXFORDSHIRE CC,"CHILDRENS, YOUNG PEOPLE AND FAMILIES",ATV ADOPTION WOODLEY,HIRE OF ACCOMMODATION AND FACILITIES,28/09/2020,7337586084,630.00,BERKSHIRE ROOMS LTD
OXFORDSHIRE CC,"CHILDRENS, YOUNG PEOPLE AND FAMILIES",SOUTH FSS STATUTORY - ABINGDON,TELEPHONE - EQUIPMENT,28/09/2020,7337586032,20.00,O2 PREPAY TOP-UP
OXFORDSHIRE CC,ENVIRONMENT AND ECONOMY,HARD FM,GENERAL MAINTENANCE,28/09/2020,7337586188,274.80,WOLSELEY UK
OXFORDSHIRE CC,"CHILDRENS, YOUNG PEOPLE AND FAMILIES",CSS - ABINGDON,CATERING PROVISIONS,28/09/2020,7337586524,95.14,TESCO STORES 2008
OXFORDSHIRE CC,CORPORATE CORE,LIBRARY COLLECTIONS,"BOOKS, DVDS AND CDS",28/09/2020,7337586338,752.12,OVERDRIVE DIST
OXFORDSHIRE CC,CORPORATE CORE,LIBRARY COLLECTIONS,"BOOKS, DVDS AND CDS",28/09/2020,7337586340,39.28,OVERDRIVE DIST
OXFORDSHIRE CC,CORPORATE CORE,LIBRARY COLLECTIONS,"BOOKS, DVDS AND CDS",28/09/2020,7337586336,624.79,OVERDRIVE DIST
OXFORDSHIRE CC,"CHILDRENS, YOUNG PEOPLE AND FAMILIES","	LEAVING CARE NORTH",MATERIALS,28/09/2020,7337586896,59.48,AMZNMKTPLACE
OXFORDSHIRE CC,SOCIAL AND COMMUNITY SERVICES,CSS - ABINGDON,CATERING PROVISIONS,28/09/2020,7337586164,4.78,WAITROSE 211
OXFORDSHIRE CC,"CHILDRENS, YOUNG PEOPLE AND FAMILIES",MANAGEMENT,TRAINING RELATED EXPENDITURE,28/09/2020,7337586514,55.00,CVAA UK LTD
OXFORDSHIRE CC,CORPORATE CORE,,"SUPPLIES, STATIONERY AND MATERIALS",28/09/2020,7337587334,99.91,LYRECO UK LTD
OXFORDSHIRE CC,"CHILDRENS, YOUNG PEOPLE AND FAMILIES",THAME E&A HOME,CATERING PROVISIONS,28/09/2020,7337586452,115.43,TESCO STORES 2038
OXFORDSHIRE CC,"CHILDRENS, YOUNG PEOPLE AND FAMILIES","	40 THE MOORS",CATERING PROVISIONS,28/09/2020,7337586574,253.00,SAINSBURYS (2243)
OXFORDSHIRE CC,"CHILDRENS, YOUNG PEOPLE AND FAMILIES",EYNSHAM,CATERING PROVISIONS,28/09/2020,7337587146,146.67,TESCO STORES 2008
OXFORDSHIRE CC,"CHILDRENS, YOUNG PEOPLE AND FAMILIES","	FAM SUPP SOUTH","BOOKS, DVDS AND CDS",28/09/2020,7337586470,16.32,AMZNMKTPLACE AMAZON.CO
OXFORDSHIRE CC,"CHILDRENS, YOUNG PEOPLE AND FAMILIES",EYNSHAM,CATERING PROVISIONS,28/09/2020,7337587150,-2.88,TESCO STORES 2008
OXFORDSHIRE CC,ENVIRONMENT AND ECONOMY,"	COUNTY PRINT FINSHRS",PAYMENT TO GOVERNMENT DEPARTMENTS,28/09/2020,7337586148,-16.86,OXFORDSHIRE CC MOTO1
OXFORDSHIRE CC,ENVIRONMENT AND ECONOMY,"	NAT TRAILS GENERAL",HARDWARE AND CROCKERY,28/09/2020,7337586140,-47.65,WWW.AWBS.LTD.COM
OXFORDSHIRE CC,"CHILDRENS, YOUNG PEOPLE AND FAMILIES",THAME E&A HOME,MATERIALS,28/09/2020,7337586036,19.83,AMZNMKTPLACE AMAZON.CO
OXFORDSHIRE CC,"CHILDRENS, YOUNG PEOPLE AND FAMILIES",THAME E&A HOME,MATERIALS,28/09/2020,7337586038,19.99,AMZNMKTPLACE AMAZON.CO
OXFORDSHIRE CC,"CHILDRENS, YOUNG PEOPLE AND FAMILIES","	40 THE MOORS",HIRED AND CONTRACTED SERVICES,28/09/2020,7337586224,14.00,KIDLINGTON BARBERS
OXFORDSHIRE CC,"CHILDRENS, YOUNG PEOPLE AND FAMILIES","	LEAVING CARE NORTH",MATERIALS,28/09/2020,7337586894,141.49,PAYPAL  TYNEBARGAIN EB
OXFORDSHIRE CC,"CHILDRENS, YOUNG PEOPLE AND FAMILIES","	LOOKED AFTER CITY 2",CLOTHING AND UNIFORMS,28/09/2020,7337586842,9.00,PRIMARK
OXFORDSHIRE CC,"CHILDRENS, YOUNG PEOPLE AND FAMILIES","	RESIDENTIAL STRATEGY",MATERIALS,28/09/2020,7337586872,37.97,AMZNMKTPLACE AMAZON.CO
OXFORDSHIRE CC,CORPORATE CORE,REGISTRAR,POSTAGE AND DELIVERY,25/09/2020,7332142890,11.87,AMZNMKTPLACE
OXFORDSHIRE CC,"CHILDRENS, YOUNG PEOPLE AND FAMILIES","	RESIDENTIAL STRATEGY",MATERIALS,25/09/2020,7332143154,37.97,AMZNMKTPLACE
OXFORDSHIRE CC,SOCIAL AND COMMUNITY SERVICES,"	MUSEUMS COLLECTIONS",CATERING PROVISIONS,25/09/2020,7332142920,3.12,MILK&MORE
OXFORDSHIRE CC,"CHILDRENS, YOUNG PEOPLE AND FAMILIES",THAME E&A HOME,CATERING,25/09/2020,7332143340,25.20,MILLER & CARTER
OXFORDSHIRE CC,ENVIRONMENT AND ECONOMY,WASTE REDUCTION GEN,"PUBLICITY, PROMOTIONS AND ADVERTISEMENT",25/09/2020,7332142990,17.00,FACEBK GRQ2ZWW7M2
OXFORDSHIRE CC,"CHILDRENS, YOUNG PEOPLE AND FAMILIES","	40 THE MOORS",OTHER TRANSPORT ARRANGEMENTS,25/09/2020,7332143240,4.50,STGCOACH/CTYLINK
OXFORDSHIRE CC,"CHILDRENS, YOUNG PEOPLE AND FAMILIES",THAME E&A HOME,CATERING PROVISIONS,25/09/2020,7332142850,23.71,SAINSBURYS SACAT 2096
OXFORDSHIRE CC,ENVIRONMENT AND ECONOMY,"	COUNTY PRINT FINSHRS",MATERIALS,25/09/2020,7332142866,56.99,AMAZON.CO.UK 4E7NQ70N5
OXFORDSHIRE CC,"CHILDRENS, YOUNG PEOPLE AND FAMILIES","	LEAVING CARE NORTH",MATERIALS,25/09/2020,7332143158,14.95,EBAY O 12-05783-99797
OXFORDSHIRE CC,SOCIAL AND COMMUNITY SERVICES,DIDCOT MOVE-ON HOME,CATERING PROVISIONS,25/09/2020,7332142870,11.54,TESCO STORE 2413
OXFORDSHIRE CC,"CHILDRENS, YOUNG PEOPLE AND FAMILIES",UASC 16&17,OTHER EXPENSES,25/09/2020,7332142838,45.49,EBAY O 19-05783-10546
OXFORDSHIRE CC,"CHILDRENS, YOUNG PEOPLE AND FAMILIES",DIDCOT MOVE-ON HOME,MATERIALS,25/09/2020,7332143260,27.00,WILKO RETAIL LIMITED
OXFORDSHIRE CC,ENVIRONMENT AND ECONOMY,HARD FM,HARDWARE AND CROCKERY,25/09/2020,7332142844,66.95,WICKES BANBURY
OXFORDSHIRE CC,"CHILDRENS, YOUNG PEOPLE AND FAMILIES","	40 THE MOORS",CATERING PROVISIONS,25/09/2020,7332143246,6.98,TESCO STORE 2788
OXFORDSHIRE CC,ENTERPRISEVC,BUSINESS SYST STAFF,MATERIALS,25/09/2020,7332142906,21.98,AMZNMKTPLACE AMAZON.CO
OXFORDSHIRE CC,ENVIRONMENT AND ECONOMY,"	COMMERCIAL MANAGEMEN",POSTAGE AND DELIVERY,25/09/2020,7332143024,24.00,ROYAL MAIL GROUP LTD
OXFORDSHIRE CC,ENVIRONMENT AND ECONOMY,"	COUNTY PRINT FINSHRS",POSTAGE AND DELIVERY,25/09/2020,7332142862,17.50,ROYAL MAIL CUSTOMER
OXFORDSHIRE CC,"CHILDRENS, YOUNG PEOPLE AND FAMILIES","	LEAVING CARE SOUTH",CATERING PROVISIONS,25/09/2020,7332143054,1.90,SAINSBURYS SACAT 4065
OXFORDSHIRE CC,CORPORATE CORE,CEF EYECARE VOUCHERS,"SUPPLIES, STATIONERY AND MATERIALS",25/09/2020,7332143140,334.92,EDENRED (INCENTIVES &
OXFORDSHIRE CC,CORPORATE CORE,BUSINESS SUPPORT,"SUPPLIES, STATIONERY AND MATERIALS",25/09/2020,7332143140,334.92,EDENRED (INCENTIVES &
OXFORDSHIRE CC,CORPORATE CORE,RECHARGES SOC CARE,"SUPPLIES, STATIONERY AND MATERIALS",25/09/2020,7332143140,334.91,EDENRED (INCENTIVES &
OXFORDSHIRE CC,"CHILDRENS, YOUNG PEOPLE AND FAMILIES","	OCCG GRANT",CATERING,25/09/2020,7332143094,3.75,COSTA COFFEE 43039930
OXFORDSHIRE CC,"CHILDRENS, YOUNG PEOPLE AND FAMILIES",ICT INFORMATION,IT SOFTWARE,25/09/2020,7332142848,25.18,FASTHOSTS INTERNET
OXFORDSHIRE CC,CORPORATE CORE,REGISTRAR,MATERIALS,25/09/2020,7332142888,58.90,SP   LOFT PENS CO UK
OXFORDSHIRE CC,"CHILDRENS, YOUNG PEOPLE AND FAMILIES","	LOOKED AFTER CITY 2",OTHER TRANSPORT ARRANGEMENTS,25/09/2020,7332143136,3.10,CHELTENHAM BOROUGH COU
OXFORDSHIRE CC,SOCIAL AND COMMUNITY SERVICES,LOOKED AFTER NORTH,HIRE OF ACCOMMODATION AND FACILITIES,25/09/2020,7332143060,98.00,BEST WESTERN PLUS OXFO
OXFORDSHIRE CC,"CHILDRENS, YOUNG PEOPLE AND FAMILIES",STH EARLY HELP-ABNDN,OTHER TRANSPORT ARRANGEMENTS,25/09/2020,7332142828,78.75,WWW.THEKEY.CO.UK
OXFORDSHIRE CC,"CHILDRENS, YOUNG PEOPLE AND FAMILIES","	LEAVING CARE SOUTH",HOSPITALITY EXPENSES,25/09/2020,7332143056,19.40,SUMUP   THE WARWICK PI
OXFORDSHIRE CC,ENVIRONMENT AND ECONOMY,HARD FM,HARDWARE AND CROCKERY,25/09/2020,7332142846,32.26,CITY PLUMBING
OXFORDSHIRE CC,"CHILDRENS, YOUNG PEOPLE AND FAMILIES","	LOOKED AFTER CITY 2",CLOTHING AND UNIFORMS,25/09/2020,7332143130,89.99,SUPERDRYPOS
OXFORDSHIRE CC,"CHILDRENS, YOUNG PEOPLE AND FAMILIES","	LOOKED AFTER CITY 2",CLOTHING AND UNIFORMS,25/09/2020,7332143134,52.03,H & M
OXFORDSHIRE CC,"CHILDRENS, YOUNG PEOPLE AND FAMILIES","	LEAVING CARE NORTH",MATERIALS,25/09/2020,7332143160,215.95,ARGOS LTD
OXFORDSHIRE CC,"CHILDRENS, YOUNG PEOPLE AND FAMILIES","	RESIDENTIAL STRATEGY",MATERIALS,25/09/2020,7332143150,37.97,AMZNMKTPLACE
OXFORDSHIRE CC,"CHILDRENS, YOUNG PEOPLE AND FAMILIES","	LOOKED AFTER CITY 2",CATERING PROVISIONS,25/09/2020,7332143128,1.85,AUNTIE ANNES
OXFORDSHIRE CC,"CHILDRENS, YOUNG PEOPLE AND FAMILIES","	RESIDENTIAL STRATEGY",MATERIALS,25/09/2020,7332143152,37.97,AMZNMKTPLACE AMAZON.CO
OXFORDSHIRE CC,SOCIAL AND COMMUNITY SERVICES,LOOKED AFTER NORTH,PAYMENTS TO TRANSPORT OPERATORS,25/09/2020,7332143058,46.67,TRAINLINE
OXFORDSHIRE CC,"CHILDRENS, YOUNG PEOPLE AND FAMILIES","	MASH PROJECT",CATERING PROVISIONS,25/09/2020,7332142956,229.47,CRAMART LTD
OXFORDSHIRE CC,"CHILDRENS, YOUNG PEOPLE AND FAMILIES","	LOOKED AFTER SOUTH",CATERING,25/09/2020,7332143354,7.58,MCDONALDS
OXFORDSHIRE CC,SOCIAL AND COMMUNITY SERVICES,UASC 16&17,CATERING,25/09/2020,7332143072,1.20,ELIOR@ NUFFIELD ORTHOP
OXFORDSHIRE CC,"CHILDRENS, YOUNG PEOPLE AND FAMILIES",THAME E&A HOME,VEHICLE FUEL,25/09/2020,7332143086,7.00,CO-OPERATIVE FUEL
OXFORDSHIRE CC,"CHILDRENS, YOUNG PEOPLE AND FAMILIES",THAME E&A HOME,MATERIALS,25/09/2020,7332142810,102.99,AMZNMKTPLACE AMAZON.CO
OXFORDSHIRE CC,ENVIRONMENT AND ECONOMY,"	FLEET OPERATIONS",CATERING,25/09/2020,7332143188,54.40,MILK&MORE
OXFORDSHIRE CC,ENVIRONMENT AND ECONOMY,HARD FM,HARDWARE AND CROCKERY,25/09/2020,7332142840,23.80,SCREWFIX DIRECT
OXFORDSHIRE CC,"CHILDRENS, YOUNG PEOPLE AND FAMILIES","	LEAVING CARE SOUTH",OTHER TRANSPORT ARRANGEMENTS,25/09/2020,7332143052,55.95,GWR DIDCOT PKWY TO
OXFORDSHIRE CC,"CHILDRENS, YOUNG PEOPLE AND FAMILIES","	LEAVING CARE SOUTH",OTHER TRANSPORT ARRANGEMENTS,25/09/2020,7332143050,6.35,PREMIER PARKING SOLUTI
OXFORDSHIRE CC,"CHILDRENS, YOUNG PEOPLE AND FAMILIES",CSC COVID-19,TELEPHONE - EQUIPMENT,25/09/2020,7332142900,10.00,EE TOPUP  VESTA
OXFORDSHIRE CC,SOCIAL AND COMMUNITY SERVICES,LOOKED AFTER NORTH,CLOTHING AND UNIFORMS,25/09/2020,7332143068,33.99,PRETTYLITTLETHING.COM
OXFORDSHIRE CC,ENVIRONMENT AND ECONOMY,WASTE REDUCTION GEN,MATERIALS,25/09/2020,7332142996,53.99,AMAZON.CO.UK 4I74M96R5
OXFORDSHIRE CC,"CHILDRENS, YOUNG PEOPLE AND FAMILIES","	40 THE MOORS",CATERING PROVISIONS,25/09/2020,7332143148,10.69,TESCO STORES 4377
OXFORDSHIRE CC,"CHILDRENS, YOUNG PEOPLE AND FAMILIES","	LOOKED AFTER CITY 2",MATERIALS,25/09/2020,7332143132,105.95,ARGOS LTD
OXFORDSHIRE CC,CORPORATE CORE,,"SUPPLIES, STATIONERY AND MATERIALS",25/09/2020,7332143412,22.75,LYRECO UK LTD
OXFORDSHIRE CC,CORPORATE CORE,,"SUPPLIES, STATIONERY AND MATERIALS",25/09/2020,7332143400,4.42,LYRECO UK LTD
OXFORDSHIRE CC,CORPORATE CORE,,"SUPPLIES, STATIONERY AND MATERIALS",25/09/2020,7332143404,32.32,LYRECO UK LTD
OXFORDSHIRE CC,CORPORATE CORE,,"SUPPLIES, STATIONERY AND MATERIALS",25/09/2020,7332143396,80.28,LYRECO UK LTD
OXFORDSHIRE CC,CORPORATE CORE,,"SUPPLIES, STATIONERY AND MATERIALS",25/09/2020,7332143418,27.36,LYRECO UK LTD
OXFORDSHIRE CC,CORPORATE CORE,,"SUPPLIES, STATIONERY AND MATERIALS",25/09/2020,7332143408,131.88,LYRECO UK LTD
OXFORDSHIRE CC,"CHILDRENS, YOUNG PEOPLE AND FAMILIES",EYNSHAM,MATERIALS,25/09/2020,7332143388,48.81,AMZNMKTPLACE
OXFORDSHIRE CC,ENVIRONMENT AND ECONOMY,"	COUNTY PRINT FINSHRS",MATERIALS,25/09/2020,7332142864,284.95,AMAZON.CO.UK FT6E05K25
OXFORDSHIRE CC,"CHILDRENS, YOUNG PEOPLE AND FAMILIES",EYNSHAM,MATERIALS,25/09/2020,7332143390,20.00,AMAZON.CO.UK C615Q6CE5
OXFORDSHIRE CC,"CHILDRENS, YOUNG PEOPLE AND FAMILIES","	LOOKED AFTER CITY 2",PAYMENTS TO TRANSPORT OPERATORS,25/09/2020,7332143082,90.00,GWR OXFORD TO
OXFORDSHIRE CC,"CHILDRENS, YOUNG PEOPLE AND FAMILIES","	LOOKED AFTER CITY 2",OTHER TRANSPORT ARRANGEMENTS,25/09/2020,7332143080,5.40,SQ  TAXI
OXFORDSHIRE CC,"CHILDRENS, YOUNG PEOPLE AND FAMILIES",DIDCOT MOVE-ON HOME,MATERIALS,25/09/2020,7332143264,.99,CARD FACTORY
OXFORDSHIRE CC,SOCIAL AND COMMUNITY SERVICES,UASC 16&17,DRUGS AND MEDICAL SUPPLIES,25/09/2020,7332143070,.89,ROWLANDS PHARMACY
OXFORDSHIRE CC,SOCIAL AND COMMUNITY SERVICES,DIDOCT LIBRARY,"SUPPLIES, STATIONERY AND MATERIALS",25/09/2020,7332143304,16.92,AMZNMKTPLACE AMAZON.CO
OXFORDSHIRE CC,"CHILDRENS, YOUNG PEOPLE AND FAMILIES","	LEAVING CARE SOUTH",CATERING,25/09/2020,7332143048,6.00,CAFFE NERO BANBURY
OXFORDSHIRE CC,ENVIRONMENT AND ECONOMY,HARD FM,MATERIALS,25/09/2020,7332143076,89.95,AMZNMKTPLACE AMAZON.CO
OXFORDSHIRE CC,ENVIRONMENT AND ECONOMY,"	ROW MAINT",VEHICLE FUEL,25/09/2020,7332143118,83.01,TESCO PAY AT PUMP 2488
OXFORDSHIRE CC,ENVIRONMENT AND ECONOMY,"	NAT TRAILS GENERAL",VEHICLE FUEL,25/09/2020,7332142830,22.49,TESCO PAY AT PUMP 2488
OXFORDSHIRE CC,ENTERPRISEVC,BUSINESS SYST STAFF,MATERIALS,24/09/2020,7328575494,10.76,AMZNMKTPLACE
OXFORDSHIRE CC,"CHILDRENS, YOUNG PEOPLE AND FAMILIES",EYNSHAM,MATERIALS,24/09/2020,7328576540,6.99,TESCO SUBSCRIPTION
OXFORDSHIRE CC,ENVIRONMENT AND ECONOMY,HARD FM,EQUIPMENT,24/09/2020,7328575332,120.00,WWW.ECOPROD.CO.UK
OXFORDSHIRE CC,SOCIAL AND COMMUNITY SERVICES,RESIDENTIAL STRATEGY,CATERING PROVISIONS,24/09/2020,7328575768,37.12,SAINSBURYS SACAT 0631
OXFORDSHIRE CC,ENVIRONMENT AND ECONOMY,WASTE REDUCTION GEN,"PUBLICITY, PROMOTIONS AND ADVERTISEMENT",24/09/2020,7328575672,17.00,FACEBK K4M2AW28M2
OXFORDSHIRE CC,SOCIAL AND COMMUNITY SERVICES,LEAVING CARE NORTH,PAYMENTS TO TRANSPORT OPERATORS,24/09/2020,7328576086,30.00,1617SAVER RAILCARD
OXFORDSHIRE CC,ENVIRONMENT AND ECONOMY,"	NAT TRAILS GENERAL",HARDWARE AND CROCKERY,24/09/2020,7328575278,47.65,WWW.AWBS.LTD.COM
OXFORDSHIRE CC,ENVIRONMENT AND ECONOMY,"	NAT TRAILS GENERAL",HARDWARE AND CROCKERY,24/09/2020,7328575272,47.65,WWW.AWBS.LTD.COM
OXFORDSHIRE CC,"CHILDRENS, YOUNG PEOPLE AND FAMILIES",EYNSHAM,CATERING PROVISIONS,24/09/2020,7328575388,7.00,CO-OPERATIVE FOOD
OXFORDSHIRE CC,"CHILDRENS, YOUNG PEOPLE AND FAMILIES",DIDCOT MOVE-ON HOME,CATERING PROVISIONS,24/09/2020,7328576326,24.70,SAINSBURYS SACAT 2067
OXFORDSHIRE CC,"CHILDRENS, YOUNG PEOPLE AND FAMILIES",EYNSHAM,CATERING PROVISIONS,24/09/2020,7328575394,2.19,SPAR EYNSHAM
OXFORDSHIRE CC,"CHILDRENS, YOUNG PEOPLE AND FAMILIES","	OCCG GRANT",CATERING PROVISIONS,24/09/2020,7328575876,9.85,TESCO STORES 6880
OXFORDSHIRE CC,"CHILDRENS, YOUNG PEOPLE AND FAMILIES",FIELDWORK UASC,CATERING,24/09/2020,7328575776,5.34,COSTA COFFEE
OXFORDSHIRE CC,ENVIRONMENT AND ECONOMY,HARD FM,HARDWARE AND CROCKERY,24/09/2020,7328575350,119.98,SCREWFIX DIRECT
OXFORDSHIRE CC,"CHILDRENS, YOUNG PEOPLE AND FAMILIES",WITNEY,CATERING PROVISIONS,24/09/2020,7328576402,16.98,ASDA STORES 4920
OXFORDSHIRE CC,"CHILDRENS, YOUNG PEOPLE AND FAMILIES",EYNSHAM,MATERIALS,24/09/2020,7328576534,8.99,AMZNMKTPLACE
OXFORDSHIRE CC,SOCIAL AND COMMUNITY SERVICES,ADULTS AT RISK,MATERIALS,24/09/2020,7328576440,7.99,AMAZON PRIME 891QY9XR5
OXFORDSHIRE CC,"CHILDRENS, YOUNG PEOPLE AND FAMILIES","	40 THE MOORS",OTHER TRANSPORT ARRANGEMENTS,24/09/2020,7328576308,87.00,STAGECOACH SERVICE
OXFORDSHIRE CC,SOCIAL AND COMMUNITY SERVICES,SCHOOLS FM,MATERIALS,24/09/2020,7328575476,26.34,AMZNMKTPLACE
OXFORDSHIRE CC,"CHILDRENS, YOUNG PEOPLE AND FAMILIES","	LOOKED AFTER SOUTH",HIRE OF ACCOMMODATION AND FACILITIES,24/09/2020,7328575212,53.00,THE HIGHFIELD
OXFORDSHIRE CC,SOCIAL AND COMMUNITY SERVICES,CSS - ABINGDON,MATERIALS,24/09/2020,7328575284,16.29,AMZNMKTPLACE AMAZON.CO
OXFORDSHIRE CC,"CHILDRENS, YOUNG PEOPLE AND FAMILIES","	FAMILY SUPPORT CITY3",CATERING,24/09/2020,7328576480,2.45,STARBUCKS
OXFORDSHIRE CC,"CHILDRENS, YOUNG PEOPLE AND FAMILIES","	FAMILY SUPPORT CITY3",CATERING,24/09/2020,7328576474,3.45,STARBUCKS
OXFORDSHIRE CC,ENVIRONMENT AND ECONOMY,"	ROW MAINT",MATERIALS,24/09/2020,7328575930,95.76,BARLOWS OF HERMITAGE-T
OXFORDSHIRE CC,"CHILDRENS, YOUNG PEOPLE AND FAMILIES",THAME E&A HOME,CATERING PROVISIONS,24/09/2020,7328575358,12.20,SAINSBURYS 2096
OXFORDSHIRE CC,SOCIAL AND COMMUNITY SERVICES,CSS WALLINGFORD,CATERING PROVISIONS,24/09/2020,7328575582,2.60,WAITROSE 675
OXFORDSHIRE CC,ENVIRONMENT AND ECONOMY,"	ROW MAINT",EQUIPMENT,24/09/2020,7328576184,70.76,TRAILERTEK LTD
OXFORDSHIRE CC,"CHILDRENS, YOUNG PEOPLE AND FAMILIES","	LEAVING CARE SOUTH",PAYMENTS TO TRANSPORT OPERATORS,24/09/2020,7328575198,40.80,CROSS COUNTRY TRAINS
OXFORDSHIRE CC,SOCIAL AND COMMUNITY SERVICES,LEAVING CARE NORTH,OTHER PREMISES RELATED COSTS,24/09/2020,7328576082,725.40,CENTRICK PROPERTY SALE
OXFORDSHIRE CC,SOCIAL AND COMMUNITY SERVICES,LOOKED AFTER NORTH,OTHER PREMISES RELATED COSTS,24/09/2020,7328576074,894.00,CENTRICK PROPERTY SALE
OXFORDSHIRE CC,"CHILDRENS, YOUNG PEOPLE AND FAMILIES",CSS - ABINGDON,MATERIALS,24/09/2020,7328575756,20.65,MASONS
OXFORDSHIRE CC,CORPORATE CORE,INCOME TEAM,PAYMENT TO GOVERNMENT DEPARTMENTS,24/09/2020,7328575762,1.50,WWW.GOV.UK
OXFORDSHIRE CC,"CHILDRENS, YOUNG PEOPLE AND FAMILIES","	LEAVING CARE NORTH",OTHER EXPENSES,24/09/2020,7328576426,286.00,CEX BANBURY
OXFORDSHIRE CC,"CHILDRENS, YOUNG PEOPLE AND FAMILIES","	RIVERSIDE CENTRE",CATERING PROVISIONS,24/09/2020,7328575692,13.65,TESCO STORES 4377
OXFORDSHIRE CC,ENVIRONMENT AND ECONOMY,HARD FM,HARDWARE AND CROCKERY,24/09/2020,7328575320,110.68,B AND Q
OXFORDSHIRE CC,"CHILDRENS, YOUNG PEOPLE AND FAMILIES",CSC COVID-19,TELEPHONE - EQUIPMENT,24/09/2020,7328575548,20.00,VESTA   VODAFONE TOPUP
OXFORDSHIRE CC,CORPORATE CORE,HOLTON SITE,SECURITY COSTS,24/09/2020,7328575940,214.80,CHRISLEWISFS.CO.UK
OXFORDSHIRE CC,CORPORATE CORE,"	CORPORATE FINANCE",HIRED AND CONTRACTED SERVICES,24/09/2020,7328576104,414.00,IPF
OXFORDSHIRE CC,"CHILDRENS, YOUNG PEOPLE AND FAMILIES","	LEAVING CARE NORTH",OTHER EXPENSES,24/09/2020,7328576432,5.00,WWW.SECURE-PAYMENT-SER
OXFORDSHIRE CC,SOCIAL AND COMMUNITY SERVICES,CSS BICESTER,CATERING PROVISIONS,24/09/2020,7328575110,4.50,SAINSBURYS SACAT (2243
OXFORDSHIRE CC,ENVIRONMENT AND ECONOMY,HARD FM,HARDWARE AND CROCKERY,24/09/2020,7328575324,81.35,EUROCELL
OXFORDSHIRE CC,"CHILDRENS, YOUNG PEOPLE AND FAMILIES",CSS WALLINGFORD,MATERIALS,24/09/2020,7328575116,8.99,AMZNMKTPLACE
OXFORDSHIRE CC,CORPORATE CORE,"	MEMBERS SERVICES",MATERIALS,24/09/2020,7328575934,19.54,AMZNMKTPLACE AMAZON.CO
OXFORDSHIRE CC,ENVIRONMENT AND ECONOMY,HARD FM,GENERAL MAINTENANCE,24/09/2020,7328575342,3.12,WOLSELEY UK
OXFORDSHIRE CC,SOCIAL AND COMMUNITY SERVICES,CSS - ABINGDON,MATERIALS,24/09/2020,7328575244,8.99,AMZNMKTPLACE
OXFORDSHIRE CC,SOCIAL AND COMMUNITY SERVICES,CSS - ABINGDON,MATERIALS,24/09/2020,7328575250,19.99,AMZNMKTPLACE
OXFORDSHIRE CC,"CHILDRENS, YOUNG PEOPLE AND FAMILIES",THAME E&A HOME,"BOOKS, DVDS AND CDS",24/09/2020,7328575300,-7.99,KINDLE UNLTD
OXFORDSHIRE CC,"CHILDRENS, YOUNG PEOPLE AND FAMILIES",THAME E&A HOME,"BOOKS, DVDS AND CDS",24/09/2020,7328575296,-7.99,KINDLE UNLTD
OXFORDSHIRE CC,"CHILDRENS, YOUNG PEOPLE AND FAMILIES",THAME E&A HOME,"BOOKS, DVDS AND CDS",24/09/2020,7328575290,-7.99,KINDLE UNLTD
OXFORDSHIRE CC,"CHILDRENS, YOUNG PEOPLE AND FAMILIES","	LEAVING CARE NORTH",OTHER TRANSPORT ARRANGEMENTS,24/09/2020,7328576436,1.00,CAR PARK CHARGES
OXFORDSHIRE CC,"CHILDRENS, YOUNG PEOPLE AND FAMILIES","	40 THE MOORS",MATERIALS,24/09/2020,7328575770,72.99,SPORTSDIRECT.COM
OXFORDSHIRE CC,"CHILDRENS, YOUNG PEOPLE AND FAMILIES",EYNSHAM,VEHICLE FUEL,24/09/2020,7328576272,4.30,TESCO PFS 2488
OXFORDSHIRE CC,ENTERPRISEVC,BUSINESS SYST STAFF,MATERIALS,24/09/2020,7328575486,7.29,AMZNMKTPLACE AMAZON.CO
OXFORDSHIRE CC,SOCIAL AND COMMUNITY SERVICES,LEAVING CARE NORTH,CLOTHING AND UNIFORMS,23/09/2020,7325923644,15.95,AMAZON.CO.UK 7E2KT4DR5
OXFORDSHIRE CC,"CHILDRENS, YOUNG PEOPLE AND FAMILIES","	DISABILITIES TEAM-C",MATERIALS,23/09/2020,7325923064,4.85,AMAZON.CO.UK XX8I44TZ5
OXFORDSHIRE CC,ENTERPRISEVC,BUSINESS SYST STAFF,MATERIALS,23/09/2020,7325923126,24.41,AMAZON.CO.UK YZ25L9LY5
OXFORDSHIRE CC,CORPORATE CORE,"	MEMBERS SERVICES",MATERIALS,23/09/2020,7325923568,20.07,AMAZON.CO.UK ZP7DP4H95
OXFORDSHIRE CC,"CHILDRENS, YOUNG PEOPLE AND FAMILIES",DIDCOT MOVE-ON HOME,MATERIALS,23/09/2020,7325923132,6.90,AMZNMKTPLACE
OXFORDSHIRE CC,"CHILDRENS, YOUNG PEOPLE AND FAMILIES",THAME E&A HOME,CATERING PROVISIONS,23/09/2020,7325923042,23.18,ASDA SUPERSTORE
OXFORDSHIRE CC,SOCIAL AND COMMUNITY SERVICES,DIDCOT MOVE-ON HOME,MATERIALS,23/09/2020,7325923160,42.84,WWW.JUSTGLOVES.CO.UK
OXFORDSHIRE CC,SOCIAL AND COMMUNITY SERVICES,CSS WITNEY,MATERIALS,23/09/2020,7325923738,99.98,AMZNMKTPLACE AMAZON.CO
OXFORDSHIRE CC,SOCIAL AND COMMUNITY SERVICES,LEAVING CARE NORTH,MATERIALS,23/09/2020,7325923640,15.95,AMAZON.CO.UK PX5G38WG5
OXFORDSHIRE CC,SOCIAL AND COMMUNITY SERVICES,CSS WALLINGFORD,MATERIALS,23/09/2020,7325923282,7.99,AMZNMKTPLACE
OXFORDSHIRE CC,"CHILDRENS, YOUNG PEOPLE AND FAMILIES",CSC COVID-19,TELEPHONE - EQUIPMENT,23/09/2020,7325923110,10.00,VESTA VODAFONE
OXFORDSHIRE CC,SOCIAL AND COMMUNITY SERVICES,DIDCOT MOVE-ON HOME,CATERING PROVISIONS,23/09/2020,7325923166,15.70,SAINSBURYS SACAT 2067
OXFORDSHIRE CC,"CHILDRENS, YOUNG PEOPLE AND FAMILIES",THAME E&A HOME,CATERING PROVISIONS,23/09/2020,7325923458,4.30,SAINSBURYS SACAT 2096
OXFORDSHIRE CC,CORPORATE CORE,OPERATIONS,MATERIALS,23/09/2020,7325923574,31.20,AMAZON.CO.UK I96H08YB5
OXFORDSHIRE CC,"CHILDRENS, YOUNG PEOPLE AND FAMILIES","	OCCG GRANT",CATERING,23/09/2020,7325923500,3.59,BUBBLEOLOGY
OXFORDSHIRE CC,ENVIRONMENT AND ECONOMY,HARD FM,EQUIPMENT,23/09/2020,7325923038,189.00,POWERTOOL WORLD
OXFORDSHIRE CC,SOCIAL AND COMMUNITY SERVICES,CSS WITNEY,MATERIALS,23/09/2020,7325923750,11.98,AMZNMKTPLACE
OXFORDSHIRE CC,ENVIRONMENT AND ECONOMY,"	ROW MAINT",HIRE OF EQUIPMENT,23/09/2020,7325923562,187.80,HELPFUL HIRINGS
OXFORDSHIRE CC,ENTERPRISEVC,BUSINESS SYST STAFF,MATERIALS,23/09/2020,7325923124,7.29,AMAZON.CO.UK I91OH03T5
OXFORDSHIRE CC,ENTERPRISEVC,BUSINESS SYST STAFF,MATERIALS,23/09/2020,7325923122,28.82,AMZNMKTPLACE AMAZON.CO
OXFORDSHIRE CC,"CHILDRENS, YOUNG PEOPLE AND FAMILIES",NRPF & HOMELESSNESS,PAYMENT TO GOVERNMENT DEPARTMENTS,23/09/2020,7325923934,220.80,OXFORD CITY COUNCIL DO
OXFORDSHIRE CC,"CHILDRENS, YOUNG PEOPLE AND FAMILIES",POST 16 SI TRADED,DISABILITY AIDS AND EQUIPMENT,23/09/2020,7325923760,48.60,RNIB CHARITY
OXFORDSHIRE CC,"CHILDRENS, YOUNG PEOPLE AND FAMILIES","	RESIDENTIAL STRATEGY",MATERIALS,23/09/2020,7325923630,35.99,AMZNMKTPLACE AMAZON.CO
OXFORDSHIRE CC,SOCIAL AND COMMUNITY SERVICES,CSS WITNEY,MATERIALS,23/09/2020,7325923742,13.90,AMAZON.CO.UK F94AN7R75
OXFORDSHIRE CC,SOCIAL AND COMMUNITY SERVICES,CSS WALLINGFORD,MATERIALS,23/09/2020,7325923278,54.17,AMAZON.CO.UK 256JA7345
OXFORDSHIRE CC,SOCIAL AND COMMUNITY SERVICES,CSS - DIDCOT,CATERING PROVISIONS,23/09/2020,7325922978,14.03,SAINSBURYS 2244
OXFORDSHIRE CC,SOCIAL AND COMMUNITY SERVICES,SCHOOLS FM,MATERIALS,23/09/2020,7325923106,19.99,AMZNMKTPLACE
OXFORDSHIRE CC,SOCIAL AND COMMUNITY SERVICES,DIDOCT LIBRARY,"NEWSPAPERS, PERIODICALS AND PUBLICATIONS",23/09/2020,7325923998,496.19,PPOINT_ TWYFORD C S LT
OXFORDSHIRE CC,ENVIRONMENT AND ECONOMY,HARD FM,HARDWARE AND CROCKERY,23/09/2020,7325923044,9.99,SCREWFIX DIRECT
OXFORDSHIRE CC,SOCIAL AND COMMUNITY SERVICES,CSS BICESTER,MATERIALS,23/09/2020,7325923232,2.20,AMZNMKTPLACE
OXFORDSHIRE CC,"CHILDRENS, YOUNG PEOPLE AND FAMILIES",CSS WALLINGFORD,CATERING PROVISIONS,23/09/2020,7325922956,20.22,WAITROSE 675
OXFORDSHIRE CC,"CHILDRENS, YOUNG PEOPLE AND FAMILIES",NORTH FSS- BANBURY,PAYMENTS TO TRANSPORT OPERATORS,23/09/2020,7325923114,39.80,WWW.GWR.COM
OXFORDSHIRE CC,ENVIRONMENT AND ECONOMY,HARD FM,HARDWARE AND CROCKERY,23/09/2020,7325923040,91.82,SCREWFIX DIRECT
OXFORDSHIRE CC,SOCIAL AND COMMUNITY SERVICES,SCHOOLS FM,CATERING,23/09/2020,7325923252,103.70,BOOKER LIMITED OXFORD
OXFORDSHIRE CC,SHARED SERVICES,CSC SUPP & SERVICES,PURCHASE OF IT EQUIPMENT,23/09/2020,7325923416,161.00,AMZNMKTPLACE
OXFORDSHIRE CC,SOCIAL AND COMMUNITY SERVICES,CSS WALLINGFORD,CATERING PROVISIONS,23/09/2020,7325923288,3.15,WAITROSE 675
OXFORDSHIRE CC,"CHILDRENS, YOUNG PEOPLE AND FAMILIES","	MUSIC UNALLOCABLE",IT SOFTWARE,23/09/2020,7325923326,35.39,ADOBE CREATIVE CLOUD
OXFORDSHIRE CC,SOCIAL AND COMMUNITY SERVICES,CSS - BANBURY,MATERIALS,23/09/2020,7325923920,22.98,AMZNMKTPLACE
OXFORDSHIRE CC,SOCIAL AND COMMUNITY SERVICES,DIDOCT LIBRARY,"SUPPLIES, STATIONERY AND MATERIALS",23/09/2020,7325924002,2.00,WILKO RETAIL LIMITED
OXFORDSHIRE CC,ENVIRONMENT AND ECONOMY,HARD FM,HARDWARE AND CROCKERY,23/09/2020,7325923030,424.17,B AND Q
OXFORDSHIRE CC,"CHILDRENS, YOUNG PEOPLE AND FAMILIES","	40 THE MOORS",CATERING PROVISIONS,23/09/2020,7325923898,92.56,TESCO STORE 2788
OXFORDSHIRE CC,"CHILDRENS, YOUNG PEOPLE AND FAMILIES",UASC 16&17,OTHER EXPENSES,23/09/2020,7325924028,47.94,PAYPAL  IDCI EBAY IDCI
OXFORDSHIRE CC,SOCIAL AND COMMUNITY SERVICES,CSS BICESTER,CATERING PROVISIONS,23/09/2020,7325923072,14.45,SAINSBURYS (2243)
OXFORDSHIRE CC,"CHILDRENS, YOUNG PEOPLE AND FAMILIES",DIDCOT MOVE-ON HOME,CATERING PROVISIONS,23/09/2020,7325923136,19.99,B&M 514 - DICOT
OXFORDSHIRE CC,ENVIRONMENT AND ECONOMY,HARD FM,HARDWARE AND CROCKERY,23/09/2020,7325923036,827.16,OXON FASTENING SYSTEMS
OXFORDSHIRE CC,ENVIRONMENT AND ECONOMY,"	LIBRARY PROJECTS",MATERIALS,23/09/2020,7325923340,33.99,AMAZON.CO.UK U45E61TH5
OXFORDSHIRE CC,ENVIRONMENT AND ECONOMY,COVID-19 COD,EQUIPMENT,23/09/2020,7325923346,33.99,AMAZON.CO.UK YU1AY7515
OXFORDSHIRE CC,ENVIRONMENT AND ECONOMY,COVID-19 COD,EQUIPMENT,23/09/2020,7325923362,33.99,AMAZON.CO.UK 988YV9GD5
OXFORDSHIRE CC,ENVIRONMENT AND ECONOMY,COVID-19 COD,EQUIPMENT,23/09/2020,7325923354,33.99,AMAZON.CO.UK 5J1LF2LJ5
OXFORDSHIRE CC,ENVIRONMENT AND ECONOMY,COVID-19 COD,EQUIPMENT,23/09/2020,7325923342,33.99,AMAZON.CO.UK XW78Q3HJ5
OXFORDSHIRE CC,ENVIRONMENT AND ECONOMY,COVID-19 COD,EQUIPMENT,23/09/2020,7325923332,33.99,AMAZON.CO.UK SM8KK65G5
OXFORDSHIRE CC,ENVIRONMENT AND ECONOMY,COVID-19 COD,EQUIPMENT,23/09/2020,7325923352,33.99,AMAZON.CO.UK 461W368U5
OXFORDSHIRE CC,"CHILDRENS, YOUNG PEOPLE AND FAMILIES",DIDCOT MOVE-ON HOME,MATERIALS,23/09/2020,7325923146,1.99,CARD FACTORY
OXFORDSHIRE CC,SOCIAL AND COMMUNITY SERVICES,CSS WITNEY,CATERING PROVISIONS,23/09/2020,7325923748,38.99,POUNDSTRETCHER 700
OXFORDSHIRE CC,ENVIRONMENT AND ECONOMY,COVID-19 COD,EQUIPMENT,23/09/2020,7325923358,33.99,AMAZON.CO.UK 849LJ7J65
OXFORDSHIRE CC,ENVIRONMENT AND ECONOMY,COVID-19 COD,EQUIPMENT,23/09/2020,7325923336,33.99,AMAZON.CO.UK S12X28S75
OXFORDSHIRE CC,ENVIRONMENT AND ECONOMY,COVID-19 COD,EQUIPMENT,23/09/2020,7325923350,33.99,AMAZON.CO.UK 2J4IC6SJ5
OXFORDSHIRE CC,"CHILDRENS, YOUNG PEOPLE AND FAMILIES",DIDCOT MOVE-ON HOME,DRUGS AND MEDICAL SUPPLIES,23/09/2020,7325923142,3.99,BOOTS 2138
OXFORDSHIRE CC,"CHILDRENS, YOUNG PEOPLE AND FAMILIES",0-5 STDS & PROGRESS,EDUCATIONAL AND VOCATIONAL TRAINING ,23/09/2020,7325923968,198.00,WWW.EARLYEXCELLENCE.CO
OXFORDSHIRE CC,ENTERPRISEVC,,CAR LEASING - PRIVATE RENTALS,23/09/2020,7325924128,488.54,ENTERPRISE RENT-A-CAR
OXFORDSHIRE CC,ENTERPRISEVC,,CAR LEASING - PRIVATE RENTALS,23/09/2020,7325924126,100.20,ENTERPRISE RENT-A-CAR
OXFORDSHIRE CC,ENTERPRISEVC,,CAR LEASING - PRIVATE RENTALS,23/09/2020,7325924124,46.12,ENTERPRISE RENT-A-CAR
OXFORDSHIRE CC,ENTERPRISEVC,,CAR LEASING - PRIVATE RENTALS,23/09/2020,7325924122,42.96,ENTERPRISE RENT-A-CAR
OXFORDSHIRE CC,ENTERPRISEVC,,CAR LEASING - PRIVATE RENTALS,23/09/2020,7325924120,25.14,ENTERPRISE RENT-A-CAR
OXFORDSHIRE CC,ENTERPRISEVC,,CAR LEASING - PRIVATE RENTALS,23/09/2020,7325924116,76.90,ENTERPRISE RENT-A-CAR
OXFORDSHIRE CC,ENTERPRISEVC,,CAR LEASING - PRIVATE RENTALS,23/09/2020,7325924114,46.12,ENTERPRISE RENT-A-CAR
OXFORDSHIRE CC,ENTERPRISEVC,,CAR LEASING - PRIVATE RENTALS,23/09/2020,7325924110,87.28,ENTERPRISE RENT-A-CAR
OXFORDSHIRE CC,ENTERPRISEVC,,CAR LEASING - PRIVATE RENTALS,23/09/2020,7325924104,105.86,ENTERPRISE RENT-A-CAR
OXFORDSHIRE CC,"CHILDRENS, YOUNG PEOPLE AND FAMILIES","	40 THE MOORS",TELEPHONE - EQUIPMENT,23/09/2020,7325923904,20.00,EE TOPUP  VESTA
OXFORDSHIRE CC,CORPORATE CORE,,"SUPPLIES, STATIONERY AND MATERIALS",23/09/2020,7325924094,79.74,LYRECO UK LTD
OXFORDSHIRE CC,CORPORATE CORE,,"SUPPLIES, STATIONERY AND MATERIALS",23/09/2020,7325924090,62.28,LYRECO UK LTD
OXFORDSHIRE CC,CORPORATE CORE,SCHOOLS FM,CATERING PROVISIONS,23/09/2020,7325923272,7.00,SAINSBURYS SACAT 2067
OXFORDSHIRE CC,"CHILDRENS, YOUNG PEOPLE AND FAMILIES",EYNSHAM,CATERING PROVISIONS,23/09/2020,7325924014,78.96,TESCO STORES 2008
OXFORDSHIRE CC,"CHILDRENS, YOUNG PEOPLE AND FAMILIES",DIDCOT MOVE-ON HOME,CATERING PROVISIONS,23/09/2020,7325923960,.85,SAINSBURYS SACAT 2067
OXFORDSHIRE CC,"CHILDRENS, YOUNG PEOPLE AND FAMILIES",THAME E&A HOME,VEHICLE FUEL,23/09/2020,7325923004,5.75,THAME BP SF CONNECT
OXFORDSHIRE CC,"CHILDRENS, YOUNG PEOPLE AND FAMILIES",THAME E&A HOME,VEHICLE FUEL,23/09/2020,7325923002,10.00,THAME BP SF CONNECT
OXFORDSHIRE CC,"CHILDRENS, YOUNG PEOPLE AND FAMILIES","	LOOKED AFTER SOUTH",VEHICLE FUEL,23/09/2020,7325924044,1.00,BLENHEIM SERVICE STATI
OXFORDSHIRE CC,ENVIRONMENT AND ECONOMY,"	NAT TRAILS GENERAL",VEHICLE FUEL,23/09/2020,7325923000,68.49,TESCO PAY AT PUMP 2488
OXFORDSHIRE CC,"CHILDRENS, YOUNG PEOPLE AND FAMILIES","	SEN/ICT EQUIPMENT",PURCHASE OF IT EQUIPMENT,22/09/2020,7323141168,56.98,AMZNMKTPLACE
OXFORDSHIRE CC,"CHILDRENS, YOUNG PEOPLE AND FAMILIES","	40 THE MOORS",CATERING,22/09/2020,7323141338,67.94,WWW.PAPAJOHNS.CO.UK
OXFORDSHIRE CC,"CHILDRENS, YOUNG PEOPLE AND FAMILIES",THAME E&A HOME,CATERING,22/09/2020,7323141426,18.65,NANDOS PERI PERI
OXFORDSHIRE CC,"CHILDRENS, YOUNG PEOPLE AND FAMILIES",EYNSHAM,CATERING PROVISIONS,22/09/2020,7323141438,3.19,CO-OPERATIVE FOOD
OXFORDSHIRE CC,"CHILDRENS, YOUNG PEOPLE AND FAMILIES",DIDCOT MOVE-ON HOME,CATERING PROVISIONS,22/09/2020,7323140650,5.50,SAINSBURYS SACAT 2067
OXFORDSHIRE CC,"CHILDRENS, YOUNG PEOPLE AND FAMILIES",DIDCOT MOVE-ON HOME,CATERING PROVISIONS,22/09/2020,7323140644,17.96,SAINSBURYS SACAT 2067
OXFORDSHIRE CC,"CHILDRENS, YOUNG PEOPLE AND FAMILIES","	40 THE MOORS",CATERING PROVISIONS,22/09/2020,7323141312,7.95,SAINSBURYS SACAT 0631
OXFORDSHIRE CC,SOCIAL AND COMMUNITY SERVICES,SCHOOLS FM,MATERIALS,22/09/2020,7323140656,15.70,T L C
OXFORDSHIRE CC,"CHILDRENS, YOUNG PEOPLE AND FAMILIES","	LEAVING CARE SOUTH",MATERIALS,22/09/2020,7323141412,74.90,ARGOS LTD
OXFORDSHIRE CC,SOCIAL AND COMMUNITY SERVICES,CSS BICESTER,MATERIALS,22/09/2020,7323140540,13.95,AMZNMKTPLACE
OXFORDSHIRE CC,"CHILDRENS, YOUNG PEOPLE AND FAMILIES",0-5 STDS & PROGRESS,EDUCATIONAL AND VOCATIONAL TRAINING ,22/09/2020,7323141352,10.00,WP-THE BRITISH ASS
OXFORDSHIRE CC,"CHILDRENS, YOUNG PEOPLE AND FAMILIES",WITNEY,CATERING PROVISIONS,22/09/2020,7323141416,11.50,ASDA STORES 4920
OXFORDSHIRE CC,CORPORATE CORE,SCHOOLS FM,CATERING,22/09/2020,7323140786,93.37,BOOKER LIMITED OXFORD
OXFORDSHIRE CC,ENVIRONMENT AND ECONOMY,HARD FM,GENERAL MAINTENANCE,22/09/2020,7323140556,279.00,AIR CONDITIONING GROUP
OXFORDSHIRE CC,ENVIRONMENT AND ECONOMY,HARD FM,IT SOFTWARE,22/09/2020,7323140560,544.48,SAFETYCULTURE
OXFORDSHIRE CC,"CHILDRENS, YOUNG PEOPLE AND FAMILIES",CSS WALLINGFORD,MATERIALS,22/09/2020,7323140452,49.00,AMZNMKTPLACE
OXFORDSHIRE CC,ENVIRONMENT AND ECONOMY,HARD FM,HARDWARE AND CROCKERY,22/09/2020,7323140576,6.63,SCREWFIX DIRECT
OXFORDSHIRE CC,"CHILDRENS, YOUNG PEOPLE AND FAMILIES","	RESIDENTIAL STRATEGY",CATERING PROVISIONS,22/09/2020,7323141116,35.00,SAINSBURYS SACAT 0631
OXFORDSHIRE CC,"CHILDRENS, YOUNG PEOPLE AND FAMILIES","	RESIDENTIAL STRATEGY",MATERIALS,22/09/2020,7323141120,129.99,ARGOS KIDLINGTON INSID
OXFORDSHIRE CC,SOCIAL AND COMMUNITY SERVICES,WITNEY LIBRARY,CATERING PROVISIONS,22/09/2020,7323141454,29.20,PPOINT_ NEWZLINK LTD 3
OXFORDSHIRE CC,"CHILDRENS, YOUNG PEOPLE AND FAMILIES","	LEAVING CARE SOUTH",MATERIALS,22/09/2020,7323141408,25.49,AMZNMKTPLACE
OXFORDSHIRE CC,ENTERPRISEVC,PROPERTY & INVESTMENT LEADERSHIP TEAM,SUBSCRIPTIONS,22/09/2020,7323140678,373.44,GOVERNMENT EVENTS
OXFORDSHIRE CC,ENTERPRISEVC,PROPERTY & INVESTMENT LEADERSHIP TEAM,SUBSCRIPTIONS,22/09/2020,7323140672,373.44,GOVERNMENT EVENTS
OXFORDSHIRE CC,"CHILDRENS, YOUNG PEOPLE AND FAMILIES","	LEAVING CARE SOUTH","BOOKS, DVDS AND CDS",22/09/2020,7323141406,115.57,AMZN MKTP UK 8B9SR3055
OXFORDSHIRE CC,"CHILDRENS, YOUNG PEOPLE AND FAMILIES",CSS WALLINGFORD,MATERIALS,22/09/2020,7323140448,6.29,AMZNMKTPLACE
OXFORDSHIRE CC,"CHILDRENS, YOUNG PEOPLE AND FAMILIES",CSS WALLINGFORD,MATERIALS,22/09/2020,7323140442,19.96,AMAZON.CO.UK TX04E0R05
OXFORDSHIRE CC,SOCIAL AND COMMUNITY SERVICES,SCHOOLS FM,CATERING,22/09/2020,7323140660,5.99,BOOKER LIMITED OXFORD
OXFORDSHIRE CC,SOCIAL AND COMMUNITY SERVICES,LOOKED AFTER NORTH,HIRE OF ACCOMMODATION AND FACILITIES,22/09/2020,7323140938,294.00,BEST WESTERN PLUS OXFO
OXFORDSHIRE CC,SOCIAL AND COMMUNITY SERVICES,DIDCOT MOVE-ON HOME,CATERING PROVISIONS,22/09/2020,7323140708,6.14,SAINSBURYS SACAT 2067
OXFORDSHIRE CC,SOCIAL AND COMMUNITY SERVICES,CSS - ABINGDON,CATERING PROVISIONS,22/09/2020,7323140550,5.54,WAITROSE 211
OXFORDSHIRE CC,SOCIAL AND COMMUNITY SERVICES,CSS - ABINGDON,CATERING,22/09/2020,7323140552,1.99,UDON THAI MARKET
OXFORDSHIRE CC,ENVIRONMENT AND ECONOMY,HARD FM,HARDWARE AND CROCKERY,22/09/2020,7323140564,39.48,WWW.IRONMONGERYDIRECT.
OXFORDSHIRE CC,SOCIAL AND COMMUNITY SERVICES,CSS - ABINGDON,CATERING PROVISIONS,22/09/2020,7323140546,2.53,POLSKI SKLEP ZUBR
OXFORDSHIRE CC,CORPORATE CORE,SCHOOLS FM,CATERING,22/09/2020,7323140780,160.74,BOOKER LIMITED OXFORD
OXFORDSHIRE CC,ENVIRONMENT AND ECONOMY,HARD FM,HARDWARE AND CROCKERY,22/09/2020,7323140568,38.95,B & Q 1062
OXFORDSHIRE CC,"CHILDRENS, YOUNG PEOPLE AND FAMILIES",UASC 16&17,MATERIALS,22/09/2020,7323140542,10.19,AMZNMKTPLACE
OXFORDSHIRE CC,"CHILDRENS, YOUNG PEOPLE AND FAMILIES","	40 THE MOORS",FURNITURE,22/09/2020,7323141306,92.20,DUNELM LTD
OXFORDSHIRE CC,"CHILDRENS, YOUNG PEOPLE AND FAMILIES","	FAMILY SUPPORT CITY3",HIRE OF ACCOMMODATION AND FACILITIES,22/09/2020,7323140886,39.00,WELCOME BREAK
OXFORDSHIRE CC,"CHILDRENS, YOUNG PEOPLE AND FAMILIES",FIELDWORK UASC,PAYMENTS TO TRANSPORT OPERATORS,22/09/2020,7323140908,35.00,GWR OXFORD SST
OXFORDSHIRE CC,SOCIAL AND COMMUNITY SERVICES,CSS BICESTER,CATERING PROVISIONS,22/09/2020,7323140754,19.62,ALDI 49 775
OXFORDSHIRE CC,SOCIAL AND COMMUNITY SERVICES,CSS WITNEY,CATERING PROVISIONS,22/09/2020,7323141154,51.91,TESCO STORES 2008
OXFORDSHIRE CC,"CHILDRENS, YOUNG PEOPLE AND FAMILIES",EYNSHAM,IT SOFTWARE,22/09/2020,7323141420,13.00,MAYFIELDEGGS
OXFORDSHIRE CC,"CHILDRENS, YOUNG PEOPLE AND FAMILIES","	40 THE MOORS",CATERING PROVISIONS,22/09/2020,7323140902,146.72,TESCO STORES 4480
OXFORDSHIRE CC,"CHILDRENS, YOUNG PEOPLE AND FAMILIES",THAME E&A HOME,CATERING PROVISIONS,22/09/2020,7323140818,177.63,TESCO STORES 2038
OXFORDSHIRE CC,SOCIAL AND COMMUNITY SERVICES,CSS - BANBURY,CATERING PROVISIONS,22/09/2020,7323140776,54.55,SAINSBURYS TO YOU 0642
OXFORDSHIRE CC,"CHILDRENS, YOUNG PEOPLE AND FAMILIES","	SEN/ICT EQUIPMENT",IT SOFTWARE,22/09/2020,7323140972,22.00,MIRADORE
OXFORDSHIRE CC,"CHILDRENS, YOUNG PEOPLE AND FAMILIES","	LEAVING CARE CITY 2","SUPPLIES, STATIONERY AND MATERIALS",22/09/2020,7323141058,14.22,AMZNMKTPLACE AMAZON.CO
OXFORDSHIRE CC,"CHILDRENS, YOUNG PEOPLE AND FAMILIES",NTH FAM SUPRT-BCSTR,PAYMENT TO GOVERNMENT DEPARTMENTS,22/09/2020,7323140764,207.00,PARADIGM HOUSING GROUP
OXFORDSHIRE CC,"CHILDRENS, YOUNG PEOPLE AND FAMILIES","	LEAVING CARE NORTH",PAYMENT TO GOVERNMENT DEPARTMENTS,22/09/2020,7323141396,-31.50,GEN REGISTER OFFICE
OXFORDSHIRE CC,SOCIAL AND COMMUNITY SERVICES,CSS WITNEY,MATERIALS,21/09/2020,7319897324,9.74,AMAZON.CO.UK MM4UK36L5
OXFORDSHIRE CC,CORPORATE CORE,"MARKETING, COMMUNICATIONS & ENGAGEMENT","PUBLICITY, PROMOTIONS AND ADVERTISEMENT",21/09/2020,7319896498,500.00,FACEBK XGEVMVJ9Z2
OXFORDSHIRE CC,"CHILDRENS, YOUNG PEOPLE AND FAMILIES",THAME E&A HOME,CATERING,21/09/2020,7319898038,15.00,MITCHELLSANDBUTLER
OXFORDSHIRE CC,CORPORATE CORE,"	MEMBERS SERVICES",MATERIALS,21/09/2020,7319896750,91.21,AMZNMKTPLACE
OXFORDSHIRE CC,"CHILDRENS, YOUNG PEOPLE AND FAMILIES",THAME E&A HOME,HIRE OF ACCOMMODATION AND FACILITIES,21/09/2020,7319898030,425.00,SANDGATE WORCESTER LTD
OXFORDSHIRE CC,"CHILDRENS, YOUNG PEOPLE AND FAMILIES",EYNSHAM,CATERING PROVISIONS,21/09/2020,7319897552,8.73,CO-OPERATIVE FOOD
OXFORDSHIRE CC,"CHILDRENS, YOUNG PEOPLE AND FAMILIES",DIDCOT MOVE-ON HOME,CATERING,21/09/2020,7319896234,29.74,SAINSBURYS SACAT 2067
OXFORDSHIRE CC,"CHILDRENS, YOUNG PEOPLE AND FAMILIES","	MARLBOROUGH",MATERIALS,21/09/2020,7319896430,40.50,AMZNMKTPLACE
OXFORDSHIRE CC,"CHILDRENS, YOUNG PEOPLE AND FAMILIES",THAME E&A HOME,CATERING PROVISIONS,21/09/2020,7319896556,20.00,SAINSBURYS 2096
OXFORDSHIRE CC,CORPORATE CORE,ICT OPERATIONS & MAI,MATERIALS,21/09/2020,7319897902,9.99,AMZNMKTPLACE
OXFORDSHIRE CC,"CHILDRENS, YOUNG PEOPLE AND FAMILIES",DIDCOT MOVE-ON HOME,CATERING PROVISIONS,21/09/2020,7319895672,10.50,B&M 514 - DICOT
OXFORDSHIRE CC,"CHILDRENS, YOUNG PEOPLE AND FAMILIES",THAME E&A HOME,CATERING PROVISIONS,21/09/2020,7319898070,8.95,SAINSBURYS SACAT 2096
OXFORDSHIRE CC,"CHILDRENS, YOUNG PEOPLE AND FAMILIES",WITNEY,VEHICLE FUEL,21/09/2020,7319897948,1.75,TESCO PFS 3418
OXFORDSHIRE CC,"CHILDRENS, YOUNG PEOPLE AND FAMILIES",THAME E&A HOME,CATERING PROVISIONS,21/09/2020,7319896272,8.65,SAINSBURYS 2096
OXFORDSHIRE CC,"CHILDRENS, YOUNG PEOPLE AND FAMILIES","	40 THE MOORS",CATERING PROVISIONS,21/09/2020,7319897516,19.79,TESCO STORE 2788
OXFORDSHIRE CC,"CHILDRENS, YOUNG PEOPLE AND FAMILIES",THAME E&A HOME,CATERING,21/09/2020,7319896264,9.30,COSTA THAME
OXFORDSHIRE CC,"CHILDRENS, YOUNG PEOPLE AND FAMILIES",DIDCOT MOVE-ON HOME,CATERING PROVISIONS,21/09/2020,7319895662,10.49,SAINSBURYS SACAT 2067
OXFORDSHIRE CC,"CHILDRENS, YOUNG PEOPLE AND FAMILIES",UASC 16&17,CATERING PROVISIONS,21/09/2020,7319896626,3.50,WM MORRISONS STORE
OXFORDSHIRE CC,"CHILDRENS, YOUNG PEOPLE AND FAMILIES",UASC 16&17,CATERING PROVISIONS,21/09/2020,7319896612,4.41,ALDI 10 775
OXFORDSHIRE CC,"CHILDRENS, YOUNG PEOPLE AND FAMILIES",EYNSHAM,MATERIALS,21/09/2020,7319898006,2.99,AMZNMKTPLACE
OXFORDSHIRE CC,CORPORATE CORE,"MARKETING, COMMUNICATIONS & ENGAGEMENT",MATERIALS,21/09/2020,7319895810,24.98,LINKEDIN 5684337183
OXFORDSHIRE CC,"CHILDRENS, YOUNG PEOPLE AND FAMILIES",EYNSHAM,MATERIALS,21/09/2020,7319898002,9.99,CURRYS OXFORD 2401
OXFORDSHIRE CC,"CHILDRENS, YOUNG PEOPLE AND FAMILIES",EYNSHAM,MATERIALS,21/09/2020,7319897988,21.55,HOBBYCRAFT
OXFORDSHIRE CC,"CHILDRENS, YOUNG PEOPLE AND FAMILIES",DIDCOT MOVE-ON HOME,CATERING PROVISIONS,21/09/2020,7319897660,2.65,SAINSBURYS SACAT 2067
OXFORDSHIRE CC,"CHILDRENS, YOUNG PEOPLE AND FAMILIES",DIDCOT MOVE-ON HOME,CATERING PROVISIONS,21/09/2020,7319897666,3.75,SAINSBURYS SACAT 2067
OXFORDSHIRE CC,"CHILDRENS, YOUNG PEOPLE AND FAMILIES",EYNSHAM,MATERIALS,21/09/2020,7319897992,13.99,ARGOS LTD
OXFORDSHIRE CC,"CHILDRENS, YOUNG PEOPLE AND FAMILIES",THAME E&A HOME,MATERIALS,21/09/2020,7319895410,16.99,SPORTSDIRECT.COM
OXFORDSHIRE CC,"CHILDRENS, YOUNG PEOPLE AND FAMILIES","	40 THE MOORS",MATERIALS,21/09/2020,7319896354,72.99,SPORTSDIRECT.COM
OXFORDSHIRE CC,"CHILDRENS, YOUNG PEOPLE AND FAMILIES",ICT INFORMATION,IT SOFTWARE,21/09/2020,7319895400,344.21,GOOGLE  CLOUD_01D722-8
OXFORDSHIRE CC,"CHILDRENS, YOUNG PEOPLE AND FAMILIES",THAME E&A HOME,VEHICLE FUEL,21/09/2020,7319895326,11.50,THAME BP SF CONNECT
OXFORDSHIRE CC,"CHILDRENS, YOUNG PEOPLE AND FAMILIES","	40 THE MOORS",HARDWARE AND CROCKERY,21/09/2020,7319897498,85.87,B AND Q
OXFORDSHIRE CC,SOCIAL AND COMMUNITY SERVICES,DIDCOT MOVE-ON HOME,CATERING,21/09/2020,7319895702,3.18,MCDONALDS
OXFORDSHIRE CC,SOCIAL AND COMMUNITY SERVICES,LOOKED AFTER SOUTH,VEHICLE FUEL,21/09/2020,7319895966,25.05,TESCO PFS 3932
OXFORDSHIRE CC,"CHILDRENS, YOUNG PEOPLE AND FAMILIES",WITNEY,CATERING PROVISIONS,21/09/2020,7319895336,9.25,SAINSBURYS SACAT 0632
OXFORDSHIRE CC,"CHILDRENS, YOUNG PEOPLE AND FAMILIES","	LEAVING CARE SOUTH",HIRE OF ACCOMMODATION AND FACILITIES,21/09/2020,7319896412,60.00,DEALGAN MANAGEMENT SER
OXFORDSHIRE CC,CORPORATE CORE,"	MEMBERS SERVICES",MATERIALS,21/09/2020,7319896736,55.16,AMAZON.CO.UK 6I6TI0R65
OXFORDSHIRE CC,CORPORATE CORE,HISTORY SERVICE,EQUIPMENT,21/09/2020,7319897046,24.27,AMAZON.CO.UK JA3HX5UA5
OXFORDSHIRE CC,CORPORATE CORE,HISTORY SERVICE,EQUIPMENT,21/09/2020,7319897056,18.40,AMAZON.CO.UK MQ20H30I5
OXFORDSHIRE CC,ENVIRONMENT AND ECONOMY,HARD FM,HARDWARE AND CROCKERY,21/09/2020,7319895356,57.98,SCREWFIX DIRECT
OXFORDSHIRE CC,"CHILDRENS, YOUNG PEOPLE AND FAMILIES",DIDCOT MOVE-ON HOME,CATERING,21/09/2020,7319896218,14.49,SAINSBURYS 2067
OXFORDSHIRE CC,SOCIAL AND COMMUNITY SERVICES,WITNEY MOVE ON HOME,CATERING PROVISIONS,21/09/2020,7319895584,43.15,ASDA STORES 4920
OXFORDSHIRE CC,SOCIAL AND COMMUNITY SERVICES,WITNEY MOVE ON HOME,CATERING PROVISIONS,21/09/2020,7319895576,52.23,ASDA STORES 4920
OXFORDSHIRE CC,"CHILDRENS, YOUNG PEOPLE AND FAMILIES","	LOOKED AFTER CITY 1",OTHER TRANSPORT ARRANGEMENTS,21/09/2020,7319895736,4.00,ABC TAXIS
OXFORDSHIRE CC,"CHILDRENS, YOUNG PEOPLE AND FAMILIES","	LOOKED AFTER CITY 1",OTHER TRANSPORT ARRANGEMENTS,21/09/2020,7319895732,4.00,ABC TAXIS
OXFORDSHIRE CC,"CHILDRENS, YOUNG PEOPLE AND FAMILIES","	LOOKED AFTER CITY 1",OTHER TRANSPORT ARRANGEMENTS,21/09/2020,7319895720,15.00,ABC TAXIS
OXFORDSHIRE CC,"CHILDRENS, YOUNG PEOPLE AND FAMILIES","	LOOKED AFTER CITY 1",OTHER TRANSPORT ARRANGEMENTS,21/09/2020,7319895710,15.00,ABC TAXIS
OXFORDSHIRE CC,"CHILDRENS, YOUNG PEOPLE AND FAMILIES",NTH FAM SUPRT-BCSTR,TELEPHONE - EQUIPMENT,21/09/2020,7319895476,10.00,MIP TESCO MOBILE TOPUP
OXFORDSHIRE CC,"CHILDRENS, YOUNG PEOPLE AND FAMILIES",THAME E&A HOME,VEHICLE FUEL,21/09/2020,7319895320,7.25,THAME BP SF CONNECT
OXFORDSHIRE CC,"CHILDRENS, YOUNG PEOPLE AND FAMILIES",DIDCOT MOVE-ON HOME,CATERING PROVISIONS,21/09/2020,7319897634,9.15,LLOYDS AT SAINSBURYS
OXFORDSHIRE CC,SOCIAL AND COMMUNITY SERVICES,DIDOCT LIBRARY,HEALTH AND SAFETY EQUIPMENT,21/09/2020,7319897820,26.68,AMZNMKTPLACE
OXFORDSHIRE CC,SOCIAL AND COMMUNITY SERVICES,BENSON LIBRARY,"SUPPLIES, STATIONERY AND MATERIALS",21/09/2020,7319897814,32.25,AMAZON.CO.UK O18X47II5
OXFORDSHIRE CC,"CHILDRENS, YOUNG PEOPLE AND FAMILIES","	RESIDENTIAL STRATEGY",MATERIALS,21/09/2020,7319897086,5.50,AMZNMKTPLACE
OXFORDSHIRE CC,"CHILDRENS, YOUNG PEOPLE AND FAMILIES",CNTL ERLY HELP-BBLEY,"SUPPLIES, STATIONERY AND MATERIALS",21/09/2020,7319898130,3.00,HONEST STATIONERY
OXFORDSHIRE CC,"CHILDRENS, YOUNG PEOPLE AND FAMILIES","	40 THE MOORS",MATERIALS,21/09/2020,7319897586,224.99,HALFORDS ON LINE
OXFORDSHIRE CC,"CHILDRENS, YOUNG PEOPLE AND FAMILIES",EYNSHAM,MATERIALS,21/09/2020,7319898080,12.99,AMZNMKTPLACE
OXFORDSHIRE CC,"CHILDRENS, YOUNG PEOPLE AND FAMILIES",EYNSHAM,MATERIALS,21/09/2020,7319898094,23.99,AMZNMKTPLACE
OXFORDSHIRE CC,SOCIAL AND COMMUNITY SERVICES,LOOKED AFTER SOUTH,CATERING,21/09/2020,7319895950,19.99,971
OXFORDSHIRE CC,"CHILDRENS, YOUNG PEOPLE AND FAMILIES",STH EARLY HELP-ABNDN,PAYMENT TO GOVERNMENT DEPARTMENTS,21/09/2020,7319895056,14.00,GEN REGISTER OFFICE
OXFORDSHIRE CC,SOCIAL AND COMMUNITY SERVICES,CSS - ABINGDON,"BOOKS, DVDS AND CDS",21/09/2020,7319895302,228.00,WWW.AMACSPORTS.CO.UK
OXFORDSHIRE CC,"CHILDRENS, YOUNG PEOPLE AND FAMILIES","	LOOKED AFTER CITY 2",OTHER EXPENSES,21/09/2020,7319897078,39.45,SP   EDIBLE BLOOMS UK
OXFORDSHIRE CC,"CHILDRENS, YOUNG PEOPLE AND FAMILIES","	FAM SUPP CITY 1",FURNITURE,21/09/2020,7319895486,145.99,AMZNMKTPLACE
OXFORDSHIRE CC,"CHILDRENS, YOUNG PEOPLE AND FAMILIES","	LEADING THE EYFS Q&I",MATERIALS,21/09/2020,7319897688,159.99,AMZNMKTPLACE AMAZON.CO
OXFORDSHIRE CC,"CHILDRENS, YOUNG PEOPLE AND FAMILIES","	ADOPTION",NON-STAFF SUBSISTENCE AND EXPENSES,21/09/2020,7319898118,36.29,WWW.PRESTIGEFLOWERS.CO
OXFORDSHIRE CC,"CHILDRENS, YOUNG PEOPLE AND FAMILIES",DIDCOT MOVE-ON HOME,CATERING,21/09/2020,7319897670,6.20,KASPAS DIDCOT
OXFORDSHIRE CC,"CHILDRENS, YOUNG PEOPLE AND FAMILIES",KINGFISHER,CATERING PROVISIONS,21/09/2020,7319895986,21.85,MARKS & SPENCER PLC SA
OXFORDSHIRE CC,"CHILDRENS, YOUNG PEOPLE AND FAMILIES","	40 THE MOORS",ENTERTAINMENT EXPENSES,21/09/2020,7319897506,13.56,VUE ENTERTAINMENT LTD
OXFORDSHIRE CC,ENVIRONMENT AND ECONOMY,HARD FM,HARDWARE AND CROCKERY,21/09/2020,7319895386,353.86,JEWSON LTD
OXFORDSHIRE CC,SOCIAL AND COMMUNITY SERVICES,LEAVING CARE NORTH,HARDWARE AND CROCKERY,21/09/2020,7319897130,41.64,SCREWFIX DIRECT
OXFORDSHIRE CC,ENVIRONMENT AND ECONOMY,"	LOWER WINDRUSH PROJ",OTHER SERVICES,21/09/2020,7319897796,11.99,ZOOM.US 888-799-9666
OXFORDSHIRE CC,ENVIRONMENT AND ECONOMY,HARD FM,HARDWARE AND CROCKERY,21/09/2020,7319895426,50.70,WICKES OXFORD
OXFORDSHIRE CC,ENVIRONMENT AND ECONOMY,HARD FM,HARDWARE AND CROCKERY,21/09/2020,7319895364,25.58,SCREWFIX DIRECT
OXFORDSHIRE CC,ENVIRONMENT AND ECONOMY,HARD FM,HARDWARE AND CROCKERY,21/09/2020,7319895378,22.99,SCREWFIX DIRECT
OXFORDSHIRE CC,"CHILDRENS, YOUNG PEOPLE AND FAMILIES","	LEAVING CARE NORTH",PAYMENT TO GOVERNMENT DEPARTMENTS,21/09/2020,7319897866,28.00,GEN REGISTER OFFICE
OXFORDSHIRE CC,SOCIAL AND COMMUNITY SERVICES,CSS - DIDCOT,CATERING PROVISIONS,21/09/2020,7319895236,10.35,SAINSBURYS SACAT 2244
OXFORDSHIRE CC,SOCIAL AND COMMUNITY SERVICES,CSS WALLINGFORD,CATERING PROVISIONS,21/09/2020,7319895868,23.85,WAITROSE 675
OXFORDSHIRE CC,SOCIAL AND COMMUNITY SERVICES,"	PUBLIC HEALTH GENERA",MATERIALS,21/09/2020,7319895820,59.00,STK SHUTTERSTOCK
OXFORDSHIRE CC,SOCIAL AND COMMUNITY SERVICES,CSS - DIDCOT,MATERIALS,21/09/2020,7319895248,11.17,HOME BARGAINS
OXFORDSHIRE CC,"CHILDRENS, YOUNG PEOPLE AND FAMILIES",EYNSHAM,FURNITURE,21/09/2020,7319898100,68.40,DUNELM
OXFORDSHIRE CC,"CHILDRENS, YOUNG PEOPLE AND FAMILIES",FIELDWORK UASC,PAYMENTS TO TRANSPORT OPERATORS,21/09/2020,7319896386,7.00,GWR OXFORD SST
OXFORDSHIRE CC,CORPORATE CORE,"	LEGAL SERVICES",LEGAL COSTS,21/09/2020,7319897000,33.00,OXFORDSHIRE CC MOTO1
OXFORDSHIRE CC,"CHILDRENS, YOUNG PEOPLE AND FAMILIES",CSS - ABINGDON,CATERING PROVISIONS,21/09/2020,7319896282,49.50,TESCO STORES 2008
OXFORDSHIRE CC,CORPORATE CORE,,"SUPPLIES, STATIONERY AND MATERIALS",21/09/2020,7319898340,36.42,LYRECO UK LTD
OXFORDSHIRE CC,"CHILDRENS, YOUNG PEOPLE AND FAMILIES",EYNSHAM,CATERING PROVISIONS,21/09/2020,7319897978,146.91,TESCO STORES 2008
OXFORDSHIRE CC,"CHILDRENS, YOUNG PEOPLE AND FAMILIES",THAME E&A HOME,CATERING PROVISIONS,21/09/2020,7319896056,93.28,TESCO STORES 2038
OXFORDSHIRE CC,"CHILDRENS, YOUNG PEOPLE AND FAMILIES","	40 THE MOORS",CATERING PROVISIONS,21/09/2020,7319896342,196.06,SAINSBURYS (2243)
OXFORDSHIRE CC,SOCIAL AND COMMUNITY SERVICES,"	HISTORY SERVICE","BOOKS, DVDS AND CDS",21/09/2020,7319895858,-4.49,AMZ AMAZON.CO.UK
OXFORDSHIRE CC,"CHILDRENS, YOUNG PEOPLE AND FAMILIES","	LEAVING CARE SOUTH",PAYMENTS TO TRANSPORT OPERATORS,21/09/2020,7319896420,-63.50,CROSS COUNTRY TRAINS
OXFORDSHIRE CC,ENVIRONMENT AND ECONOMY,HARD FM,HARDWARE AND CROCKERY,21/09/2020,7319895372,-14.99,SCREWFIX DIDCOT
OXFORDSHIRE CC,SOCIAL AND COMMUNITY SERVICES,WITNEY MOVE ON HOME,CATERING PROVISIONS,21/09/2020,7319895590,.75,CO-OP GROUP 070582
OXFORDSHIRE CC,"CHILDRENS, YOUNG PEOPLE AND FAMILIES","	LEAVING CARE NORTH",PAYMENT TO GOVERNMENT DEPARTMENTS,21/09/2020,7319897860,38.00,GEN REGISTER OFFICE
OXFORDSHIRE CC,SOCIAL AND COMMUNITY SERVICES,LEAVING CARE NORTH,CATERING,21/09/2020,7319897140,18.40,WWW.JUST EAT.CO.UK
OXFORDSHIRE CC,"CHILDRENS, YOUNG PEOPLE AND FAMILIES","	RESIDENTIAL STRATEGY",PAYMENT TO GOVERNMENT DEPARTMENTS,21/09/2020,7319897094,-7.50,GEN REGISTER OFFICE
OXFORDSHIRE CC,ENVIRONMENT AND ECONOMY,"	FM RECHARGES",MATERIALS,18/09/2020,7317638730,39.95,AMZNMKTPLACE
OXFORDSHIRE CC,ENVIRONMENT AND ECONOMY,"	FM RECHARGES",MATERIALS,18/09/2020,7317638732,59.96,AMZNMKTPLACE
OXFORDSHIRE CC,"CHILDRENS, YOUNG PEOPLE AND FAMILIES",EYNSHAM,MATERIALS,18/09/2020,7317639042,7.88,AMZNMKTPLACE
OXFORDSHIRE CC,"CHILDRENS, YOUNG PEOPLE AND FAMILIES","	LOOKED AFTER CITY 2",MATERIALS,18/09/2020,7317638946,15.69,AMZNMKTPLACE
OXFORDSHIRE CC,SOCIAL AND COMMUNITY SERVICES,"	MUSEUMS COLLECTIONS",CATERING PROVISIONS,18/09/2020,7317638750,3.12,MILK&MORE
OXFORDSHIRE CC,"CHILDRENS, YOUNG PEOPLE AND FAMILIES",WITNEY,CATERING PROVISIONS,18/09/2020,7317638660,4.60,CO-OP GROUP 070582
OXFORDSHIRE CC,"CHILDRENS, YOUNG PEOPLE AND FAMILIES",EYNSHAM,CATERING PROVISIONS,18/09/2020,7317639044,13.15,SPAR EYNSHAM
OXFORDSHIRE CC,"CHILDRENS, YOUNG PEOPLE AND FAMILIES",THAME E&A HOME,MATERIALS,18/09/2020,7317638640,9.99,AMAZON.CO.UK 3H83F2885
OXFORDSHIRE CC,"CHILDRENS, YOUNG PEOPLE AND FAMILIES",THAME E&A HOME,CATERING PROVISIONS,18/09/2020,7317638870,10.85,SAINSBURYS 2096
OXFORDSHIRE CC,"CHILDRENS, YOUNG PEOPLE AND FAMILIES",EYNSHAM,CATERING PROVISIONS,18/09/2020,7317639036,46.23,OXFORD PEARTREE KFC
OXFORDSHIRE CC,"CHILDRENS, YOUNG PEOPLE AND FAMILIES","	LOOKED AFTER SOUTH",CATERING PROVISIONS,18/09/2020,7317639046,10.00,WM MORRISONS STORE
OXFORDSHIRE CC,SOCIAL AND COMMUNITY SERVICES,WITNEY MOVE ON HOME,CATERING PROVISIONS,18/09/2020,7317638724,17.09,LIDL GB OXFORD
OXFORDSHIRE CC,SOCIAL AND COMMUNITY SERVICES,RESIDENTIAL STRATEGY,CATERING PROVISIONS,18/09/2020,7317638820,18.79,TESCO STORES 4480
OXFORDSHIRE CC,ENTERPRISEVC,BUSINESS SYST STAFF,IT SOFTWARE,18/09/2020,7317638736,18.99,UDEMY
OXFORDSHIRE CC,ENTERPRISEVC,BUSINESS SYST STAFF,"BOOKS, DVDS AND CDS",18/09/2020,7317638734,23.99,UDEMY
OXFORDSHIRE CC,"CHILDRENS, YOUNG PEOPLE AND FAMILIES","	FAMILY SUPPORT CITY3",MATERIALS,18/09/2020,7317638828,91.93,AMZNMKTPLACE
OXFORDSHIRE CC,ENTERPRISEVC,BUSINESS SYST STAFF,IT SERVICES,18/09/2020,7317638738,24.99,UDEMY
OXFORDSHIRE CC,"CHILDRENS, YOUNG PEOPLE AND FAMILIES","	LOOKED AFTER SOUTH",CATERING,18/09/2020,7317639048,6.39,MCDONALDS
OXFORDSHIRE CC,"CHILDRENS, YOUNG PEOPLE AND FAMILIES","	OCCG GRANT",CATERING,18/09/2020,7317638878,3.95,BOSWELLS CAFE COWLEY
OXFORDSHIRE CC,ENVIRONMENT AND ECONOMY,HARD FM,FURNITURE,18/09/2020,7317638690,85.00,VISUAL SIGNS LTD
OXFORDSHIRE CC,"CHILDRENS, YOUNG PEOPLE AND FAMILIES",THAME E&A HOME,CATERING PROVISIONS,18/09/2020,7317638710,6.80,SAINSBURYS SACAT 2096
OXFORDSHIRE CC,SOCIAL AND COMMUNITY SERVICES,LOOKED AFTER NORTH,MATERIALS,18/09/2020,7317638850,4.00,HOBBYCRAFT
OXFORDSHIRE CC,SOCIAL AND COMMUNITY SERVICES,LOOKED AFTER NORTH,STATIONERY,18/09/2020,7317638848,3.39,POUNDSTRETCHER 322
OXFORDSHIRE CC,"CHILDRENS, YOUNG PEOPLE AND FAMILIES","	LOOKED AFTER CITY 2",MATERIALS,18/09/2020,7317638944,7.99,AMAZON.CO.UK HC73M2NE5
OXFORDSHIRE CC,ENVIRONMENT AND ECONOMY,THE OXFORDSHIRE MUSEUM - SITE,MATERIALS,18/09/2020,7317638930,11.84,AMAZON.CO.UK UC4LE5TR5
OXFORDSHIRE CC,"CHILDRENS, YOUNG PEOPLE AND FAMILIES","	LOOKED AFTER CITY 2",MATERIALS,18/09/2020,7317638942,8.23,AMAZON.CO.UK 5Y58P87D5
OXFORDSHIRE CC,"CHILDRENS, YOUNG PEOPLE AND FAMILIES","	LEAVING CARE NORTH",MATERIALS,18/09/2020,7317638760,49.95,ARGOS LTD
OXFORDSHIRE CC,SOCIAL AND COMMUNITY SERVICES,CSS WANTAGE,CATERING PROVISIONS,18/09/2020,7317638956,54.50,SAINSBURYS 2244
OXFORDSHIRE CC,SOCIAL AND COMMUNITY SERVICES,CSS - BANBURY,VEHICLES REPAIRS AND MAINTENANCE,18/09/2020,7317639014,36.00,FSR LV
OXFORDSHIRE CC,"CHILDRENS, YOUNG PEOPLE AND FAMILIES",EYNSHAM,MATERIALS,18/09/2020,7317639038,13.99,AMZNMKTPLACE
OXFORDSHIRE CC,"CHILDRENS, YOUNG PEOPLE AND FAMILIES","	40 THE MOORS",CATERING,18/09/2020,7317639008,2.76,COSTA COFFEE
OXFORDSHIRE CC,"CHILDRENS, YOUNG PEOPLE AND FAMILIES",DIDCOT MOVE-ON HOME,CATERING PROVISIONS,18/09/2020,7317638814,9.15,SAINSBURYS SACAT 2067
OXFORDSHIRE CC,SHARED SERVICES,CSC SUPP & SERVICES,PURCHASE OF IT EQUIPMENT,18/09/2020,7317638846,215.37,AMZNMKTPLACE
OXFORDSHIRE CC,SOCIAL AND COMMUNITY SERVICES,RESIDENTIAL STRATEGY,OTHER TRANSPORT ARRANGEMENTS,18/09/2020,7317638816,3.00,WESTAGTE OXFORD CAR P
OXFORDSHIRE CC,"CHILDRENS, YOUNG PEOPLE AND FAMILIES",UASC 16&17,DRUGS AND MEDICAL SUPPLIES,18/09/2020,7317638682,6.50,"BOOTS,OXFORD"
OXFORDSHIRE CC,"CHILDRENS, YOUNG PEOPLE AND FAMILIES",EYNSHAM,DRUGS AND MEDICAL SUPPLIES,18/09/2020,7317639040,1.99,LLOYDS PHARMACY
OXFORDSHIRE CC,SOCIAL AND COMMUNITY SERVICES,RESIDENTIAL STRATEGY,MATERIALS,18/09/2020,7317638818,21.00,TIMPSON LTD
OXFORDSHIRE CC,SOCIAL AND COMMUNITY SERVICES,RESIDENTIAL STRATEGY,CATERING,18/09/2020,7317638826,1.99,MCDONALDS
OXFORDSHIRE CC,SOCIAL AND COMMUNITY SERVICES,RESIDENTIAL STRATEGY,"SUPPLIES, STATIONERY AND MATERIALS",18/09/2020,7317638824,1.79,RYMAN 1172
OXFORDSHIRE CC,SOCIAL AND COMMUNITY SERVICES,RESIDENTIAL STRATEGY,CLOTHING AND UNIFORMS,18/09/2020,7317638822,40.00,RIVER ISLAND 097
OXFORDSHIRE CC,"CHILDRENS, YOUNG PEOPLE AND FAMILIES","	LEAVING CARE NORTH",MATERIALS,18/09/2020,7317638756,7.00,ARGOS LTD
OXFORDSHIRE CC,SOCIAL AND COMMUNITY SERVICES,CSS WANTAGE,CATERING PROVISIONS,18/09/2020,7317638954,8.88,AMZNMKTPLACE
OXFORDSHIRE CC,"CHILDRENS, YOUNG PEOPLE AND FAMILIES","	LOOKED AFTER CITY 1",OTHER TRANSPORT ARRANGEMENTS,18/09/2020,7317638790,8.61,THETRAINLINE.COM
OXFORDSHIRE CC,SOCIAL AND COMMUNITY SERVICES,CSS BICESTER,MATERIALS,18/09/2020,7317638752,17.64,AMZNMKTPLACE
OXFORDSHIRE CC,ENVIRONMENT AND ECONOMY,"	COUNTY PRINT FINSHRS",MATERIALS,18/09/2020,7317638698,171.54,DISCOUNT DISPLAYS LTD
OXFORDSHIRE CC,ENVIRONMENT AND ECONOMY,"	COUNTRYSIDE PREMISES",GENERAL REFUSE COLLECTION AND DISPOSAL,18/09/2020,7317638976,59.52,M & M SKIP HIRE
OXFORDSHIRE CC,"CHILDRENS, YOUNG PEOPLE AND FAMILIES","	MUSIC UNALLOCABLE",MATERIALS,18/09/2020,7317638796,74.99,M & M SKIP HIRE
OXFORDSHIRE CC,SOCIAL AND COMMUNITY SERVICES,CSS BICESTER,CATERING PROVISIONS,18/09/2020,7317638702,12.25,ALDI 49 775
OXFORDSHIRE CC,SOCIAL AND COMMUNITY SERVICES,CSS WALLINGFORD,CATERING PROVISIONS,18/09/2020,7317638764,3.15,WAITROSE 675
OXFORDSHIRE CC,ENVIRONMENT AND ECONOMY,HARD FM,MATERIALS,18/09/2020,7317638684,12.50,HALFORDS 0988
OXFORDSHIRE CC,ENVIRONMENT AND ECONOMY,HARD FM,HARDWARE AND CROCKERY,18/09/2020,7317638688,8.98,GMGB IT DEPT
OXFORDSHIRE CC,"CHILDRENS, YOUNG PEOPLE AND FAMILIES","	OCCG GRANT",CATERING,18/09/2020,7317638880,2.80,R AND R
OXFORDSHIRE CC,"CHILDRENS, YOUNG PEOPLE AND FAMILIES",MANAGEMENT,MATERIALS,18/09/2020,7317639054,14.98,AMAZON.CO.UK TI86P8T85
OXFORDSHIRE CC,"CHILDRENS, YOUNG PEOPLE AND FAMILIES",PANEL COSTS,PAYMENTS TO VOLUNTARY BODIES,18/09/2020,7317638658,55.00,CVAA UK LTD
OXFORDSHIRE CC,ENVIRONMENT AND ECONOMY,HARD FM,HARDWARE AND CROCKERY,18/09/2020,7317638686,2.71,B & Q 1062
OXFORDSHIRE CC,"CHILDRENS, YOUNG PEOPLE AND FAMILIES","	LEAVING CARE NORTH",CATERING PROVISIONS,18/09/2020,7317638754,4.05,MOONPIG
OXFORDSHIRE CC,"CHILDRENS, YOUNG PEOPLE AND FAMILIES","	LEAVING CARE SOUTH",PAYMENTS TO TRANSPORT OPERATORS,18/09/2020,7317638844,73.50,CROSS COUNTRY TRAINS
OXFORDSHIRE CC,ENVIRONMENT AND ECONOMY,HARD FM,HARDWARE AND CROCKERY,18/09/2020,7317638692,14.15,WICKES OXFORD
OXFORDSHIRE CC,"CHILDRENS, YOUNG PEOPLE AND FAMILIES","	LEAVING CARE NORTH",EDUCATIONAL AND VOCATIONAL TRAINING ,18/09/2020,7317639028,325.00,TOTALMATHSTUTORING.COM
OXFORDSHIRE CC,"CHILDRENS, YOUNG PEOPLE AND FAMILIES","	HOME SUPPORT",MATERIALS,18/09/2020,7317638806,35.40,AMZNMKTPLACE
OXFORDSHIRE CC,ENVIRONMENT AND ECONOMY,"	KNIGHTS COURT",CATERING PROVISIONS,18/09/2020,7317638852,1.49,COWLEY CONVENIENCE STO
OXFORDSHIRE CC,SOCIAL AND COMMUNITY SERVICES,"	ASSESSMENT TEAM NORT",OTHER EXPENSES,18/09/2020,7317639006,54.71,TESCO STORES 4480
OXFORDSHIRE CC,"CHILDRENS, YOUNG PEOPLE AND FAMILIES","	LEAVING CARE NORTH",OTHER EXPENSES,18/09/2020,7317638758,215.95,ARGOS LTD
OXFORDSHIRE CC,"CHILDRENS, YOUNG PEOPLE AND FAMILIES",CSS - DIDCOT,CATERING PROVISIONS,18/09/2020,7317638780,.95,TESCO STORES
OXFORDSHIRE CC,"CHILDRENS, YOUNG PEOPLE AND FAMILIES",NTH EARLY HELP-BNRBY,TRAINING RELATED EXPENDITURE,18/09/2020,7317638726,110.00,PAYPAL  WOMENSLIBER
OXFORDSHIRE CC,ENVIRONMENT AND ECONOMY,"	ROW MAINT",CLOTHING AND UNIFORMS,18/09/2020,7317638646,356.09,THE OUTDOORS COMPANY
OXFORDSHIRE CC,"CHILDRENS, YOUNG PEOPLE AND FAMILIES",NTH EARLY HELP-BNRBY,OTHER PREMISES RELATED COSTS,18/09/2020,7317638728,157.50,TVLICENSING.CO.UK
OXFORDSHIRE CC,SOCIAL AND COMMUNITY SERVICES,CSS BICESTER,MATERIALS,17/09/2020,9200462821,18.93,AMZNMKTPLACE
OXFORDSHIRE CC,SOCIAL AND COMMUNITY SERVICES,CSS BICESTER,MATERIALS,17/09/2020,9200462823,7.29,AMZNMKTPLACE
OXFORDSHIRE CC,SOCIAL AND COMMUNITY SERVICES,"	HISTORY SERVICE","BOOKS, DVDS AND CDS",17/09/2020,9200462831,16.99,AMAZON.CO.UK 8M74V8I85
OXFORDSHIRE CC,CORPORATE CORE,"MARKETING, COMMUNICATIONS & ENGAGEMENT",MATERIALS,17/09/2020,9200462907,500.00,GOOGLE  ADS4896546035
OXFORDSHIRE CC,"CHILDRENS, YOUNG PEOPLE AND FAMILIES","	40 THE MOORS",TELEPHONE - EQUIPMENT,17/09/2020,9200463089,35.00,WWW.THREE.CO.UK
OXFORDSHIRE CC,"CHILDRENS, YOUNG PEOPLE AND FAMILIES","	40 THE MOORS",,17/09/2020,9200462749,6.49,MICROSOFT XBOX
OXFORDSHIRE CC,"CHILDRENS, YOUNG PEOPLE AND FAMILIES",THAME E&A HOME,CATERING PROVISIONS,17/09/2020,9200462871,6.80,SAINSBURYS 2096
OXFORDSHIRE CC,"CHILDRENS, YOUNG PEOPLE AND FAMILIES","	40 THE MOORS",CATERING PROVISIONS,17/09/2020,9200462751,3.09,TESCO STORE 2788
OXFORDSHIRE CC,"CHILDRENS, YOUNG PEOPLE AND FAMILIES",EYNSHAM,CATERING,17/09/2020,9200463131,70.00,THE WATER MARGIN J&A L
OXFORDSHIRE CC,SOCIAL AND COMMUNITY SERVICES,CSS WITNEY,MATERIALS,17/09/2020,9200463031,6.27,AMAZON.CO.UK SF1WC3L85
OXFORDSHIRE CC,SOCIAL AND COMMUNITY SERVICES,CSS WITNEY,MATERIALS,17/09/2020,9200463029,16.50,AMAZON.CO.UK LP3LB7XA5
OXFORDSHIRE CC,SOCIAL AND COMMUNITY SERVICES,CSS WITNEY,MATERIALS,17/09/2020,9200463033,8.16,AMAZON.CO.UK 796UC51Z5
OXFORDSHIRE CC,SOCIAL AND COMMUNITY SERVICES,CSS WITNEY,MATERIALS,17/09/2020,9200463035,24.68,AMZNMKTPLACE
OXFORDSHIRE CC,SOCIAL AND COMMUNITY SERVICES,CSS WITNEY,MATERIALS,17/09/2020,9200463037,18.60,AMZNMKTPLACE
OXFORDSHIRE CC,"CHILDRENS, YOUNG PEOPLE AND FAMILIES","	RESIDENTIAL STRATEGY",CATERING PROVISIONS,17/09/2020,9200462701,8.00,SAINSBURYS SACAT 0631
OXFORDSHIRE CC,"CHILDRENS, YOUNG PEOPLE AND FAMILIES","	RESIDENTIAL STRATEGY",MATERIALS,17/09/2020,9200462707,5.99,ARGOS KIDLINGTON INSID
OXFORDSHIRE CC,"CHILDRENS, YOUNG PEOPLE AND FAMILIES","	LEAVING CARE SOUTH",OTHER TRANSPORT ARRANGEMENTS,17/09/2020,9200462887,73.50,CROSS COUNTRY TRAINS
OXFORDSHIRE CC,"CHILDRENS, YOUNG PEOPLE AND FAMILIES","	LEAVING CARE CITY 2","SUPPLIES, STATIONERY AND MATERIALS",17/09/2020,9200462995,77.97,AMAZON.CO.UK YZ0L46HG5
OXFORDSHIRE CC,"CHILDRENS, YOUNG PEOPLE AND FAMILIES",DIDCOT MOVE-ON HOME,CATERING PROVISIONS,17/09/2020,9200462803,3.00,SAINSBURYS SACAT 2067
OXFORDSHIRE CC,"CHILDRENS, YOUNG PEOPLE AND FAMILIES",DIDCOT MOVE-ON HOME,CATERING PROVISIONS,17/09/2020,9200462805,23.10,SAINSBURYS SACAT 2067
OXFORDSHIRE CC,"CHILDRENS, YOUNG PEOPLE AND FAMILIES",DEPUTY DIRECTOR &MAN,EDUCATIONAL AND VOCATIONAL TRAINING ,17/09/2020,9200463143,546.00,KNOWLEDGE EXCHANGE GRO
OXFORDSHIRE CC,ENTERPRISEVC,BUSINESS SYST STAFF,CATERING PROVISIONS,17/09/2020,9200462799,4.60,SAINSBURYS LOC 4264
OXFORDSHIRE CC,ENTERPRISEVC,BUSINESS SYST STAFF,CATERING PROVISIONS,17/09/2020,9200462797,9.12,SAINSBURYS LOC 4264
OXFORDSHIRE CC,"CHILDRENS, YOUNG PEOPLE AND FAMILIES","	MALTFIELD HOUSE",MATERIALS,17/09/2020,9200463063,1.90,SINGHS STORES LTD
OXFORDSHIRE CC,"CHILDRENS, YOUNG PEOPLE AND FAMILIES",THAME E&A HOME,CATERING PROVISIONS,17/09/2020,9200462709,59.05,WAITROSE 206
OXFORDSHIRE CC,"CHILDRENS, YOUNG PEOPLE AND FAMILIES","	MALTFIELD HOUSE",CATERING PROVISIONS,17/09/2020,9200463061,10.56,LIDL GB  WITNEY
OXFORDSHIRE CC,"CHILDRENS, YOUNG PEOPLE AND FAMILIES",THAME E&A HOME,MATERIALS,17/09/2020,9200462665,9.75,AMZNMKTPLACE
OXFORDSHIRE CC,ENVIRONMENT AND ECONOMY,HARD FM,HARDWARE AND CROCKERY,17/09/2020,9200462735,214.80,IRONMONGERY DIRECT LTD
OXFORDSHIRE CC,"CHILDRENS, YOUNG PEOPLE AND FAMILIES",THAME E&A HOME,MATERIALS,17/09/2020,9200462671,8.25,CLINTONS-155
OXFORDSHIRE CC,"CHILDRENS, YOUNG PEOPLE AND FAMILIES","	RESIDENTIAL STRATEGY",CATERING PROVISIONS,17/09/2020,9200462705,2.58,TESCO STORE 2788
OXFORDSHIRE CC,ENVIRONMENT AND ECONOMY,HARD FM,HARDWARE AND CROCKERY,17/09/2020,9200462729,34.99,SCREWFIX OXFORD
OXFORDSHIRE CC,"CHILDRENS, YOUNG PEOPLE AND FAMILIES",STH EARLY HELP-ABNDN,OTHER TRANSPORT ARRANGEMENTS,17/09/2020,9200462663,82.50,STAGECOACH SERVICE
OXFORDSHIRE CC,"CHILDRENS, YOUNG PEOPLE AND FAMILIES",UASC POST 18,CATERING,17/09/2020,9200462851,6.38,COSTA COFFEE 43039930
OXFORDSHIRE CC,ENVIRONMENT AND ECONOMY,HARD FM,HARDWARE AND CROCKERY,17/09/2020,9200462719,69.31,JEWSON LTD
OXFORDSHIRE CC,"CHILDRENS, YOUNG PEOPLE AND FAMILIES","	HOME SUPPORT",IT SOFTWARE,17/09/2020,9200462863,68.99,STEAMING LTD
OXFORDSHIRE CC,ENVIRONMENT AND ECONOMY,HARD FM,HARDWARE AND CROCKERY,17/09/2020,9200462717,20.10,JEWSON LTD
OXFORDSHIRE CC,"CHILDRENS, YOUNG PEOPLE AND FAMILIES","	LOOKED AFTER SOUTH",HIRE OF ACCOMMODATION AND FACILITIES,17/09/2020,9200462695,40.02,TRAVELODGE
OXFORDSHIRE CC,CORPORATE CORE,SCHOOLS FM,CATERING,17/09/2020,9200462833,149.74,BOOKER LIMITED OXFORD
OXFORDSHIRE CC,ENVIRONMENT AND ECONOMY,HARD FM,HARDWARE AND CROCKERY,17/09/2020,9200462727,47.67,CITY PLUMBING
OXFORDSHIRE CC,"CHILDRENS, YOUNG PEOPLE AND FAMILIES",CNTL EARLY HELP-RHIL,"SUPPLIES, STATIONERY AND MATERIALS",17/09/2020,9200462765,17.40,FAMILY LINKS
OXFORDSHIRE CC,"CHILDRENS, YOUNG PEOPLE AND FAMILIES",CNTL ERLY HELP-BBLEY,HARDWARE AND CROCKERY,17/09/2020,9200462809,4.34,SCREWFIX OXFORD
OXFORDSHIRE CC,"CHILDRENS, YOUNG PEOPLE AND FAMILIES",DIDCOT MOVE-ON HOME,CATERING,17/09/2020,9200462867,4.00,SAINSBURYS SACAT 2067
OXFORDSHIRE CC,"CHILDRENS, YOUNG PEOPLE AND FAMILIES",FIELDWORK UASC,"BOOKS, DVDS AND CDS",17/09/2020,9200462881,18.30,PEN TO PAPER
OXFORDSHIRE CC,"CHILDRENS, YOUNG PEOPLE AND FAMILIES",CNTL ERLY HELP-BBLEY,HARDWARE AND CROCKERY,17/09/2020,9200462807,43.48,SCREWFIX DIRECT
OXFORDSHIRE CC,"CHILDRENS, YOUNG PEOPLE AND FAMILIES","	LEAVING CARE CITY 1",OTHER EXPENSES,17/09/2020,9200462759,43.98,AMZNMKTPLACE
OXFORDSHIRE CC,SOCIAL AND COMMUNITY SERVICES,CSS WANTAGE,CATERING PROVISIONS,17/09/2020,9200463039,16.39,AMZNMKTPLACE
OXFORDSHIRE CC,SOCIAL AND COMMUNITY SERVICES,CSS BICESTER,MATERIALS,17/09/2020,9200462819,13.99,AMZNMKTPLACE
OXFORDSHIRE CC,"CHILDRENS, YOUNG PEOPLE AND FAMILIES",CSC COVID-19,DRUGS AND MEDICAL SUPPLIES,17/09/2020,9200462711,4.10,"BOOTS,BANBURY"
OXFORDSHIRE CC,ENVIRONMENT AND ECONOMY,HARD FM,HARDWARE AND CROCKERY,17/09/2020,9200462725,99.98,TOOLSTATION LTD
OXFORDSHIRE CC,"CHILDRENS, YOUNG PEOPLE AND FAMILIES","	FAM SUPP CITY 1",PAYMENT TO GOVERNMENT DEPARTMENTS,17/09/2020,9200462763,33.00,OXFORDSHIRE CC MOTO1
OXFORDSHIRE CC,SOCIAL AND COMMUNITY SERVICES,CSS - OXFORD,CATERING PROVISIONS,17/09/2020,9200462981,15.12,TESCO STORE 2994
OXFORDSHIRE CC,"CHILDRENS, YOUNG PEOPLE AND FAMILIES",CSC COVID-19,TELEPHONE - EQUIPMENT,17/09/2020,9200462825,20.00,VESTA   VODAFONE TOPUP
OXFORDSHIRE CC,SOCIAL AND COMMUNITY SERVICES,CSS BICESTER,CATERING PROVISIONS,17/09/2020,9200462747,9.60,SAINSBURYS SACAT (2243
OXFORDSHIRE CC,ENVIRONMENT AND ECONOMY,"	NAT TRAILS GENERAL",HARDWARE AND CROCKERY,17/09/2020,9200462699,50.78,SCREWFIX DIRECT
OXFORDSHIRE CC,"CHILDRENS, YOUNG PEOPLE AND FAMILIES","	AAC EQUIPMENT",PURCHASE OF IT EQUIPMENT,17/09/2020,9200463041,198.92,AMZNMKTPLACE
OXFORDSHIRE CC,"CHILDRENS, YOUNG PEOPLE AND FAMILIES","	HOME SUPPORT",MATERIALS,17/09/2020,9200462859,12.80,AMZNMKTPLACE
OXFORDSHIRE CC,"CHILDRENS, YOUNG PEOPLE AND FAMILIES","	AAC EQUIPMENT",PURCHASE OF IT EQUIPMENT,17/09/2020,9200463043,115.74,AMZNMKTPLACE
OXFORDSHIRE CC,SOCIAL AND COMMUNITY SERVICES,CSS BICESTER,MATERIALS,17/09/2020,9200462817,100.00,AMZNMKTPLACE
OXFORDSHIRE CC,"CHILDRENS, YOUNG PEOPLE AND FAMILIES",EYNSHAM,MATERIALS,17/09/2020,9200463133,8.00,WITNEY INSIDE SAINSBUR
OXFORDSHIRE CC,"CHILDRENS, YOUNG PEOPLE AND FAMILIES","	FAM SUPP CITY 1",HIRE OF ACCOMMODATION AND FACILITIES,17/09/2020,9200462767,352.84,TRAVELODGE
OXFORDSHIRE CC,"CHILDRENS, YOUNG PEOPLE AND FAMILIES",CSC COVID-19,TELEPHONE - EQUIPMENT,17/09/2020,9200462791,10.00,VESTA   VODAFONE TOPUP
OXFORDSHIRE CC,"CHILDRENS, YOUNG PEOPLE AND FAMILIES","	LEAVING CARE CITY 1",OTHER EXPENSES,17/09/2020,9200462755,23.99,AMZNMKTPLACE
OXFORDSHIRE CC,"CHILDRENS, YOUNG PEOPLE AND FAMILIES","	HOME SUPPORT",CATERING,17/09/2020,9200462861,186.07,REGS CAFE
OXFORDSHIRE CC,"CHILDRENS, YOUNG PEOPLE AND FAMILIES","	FAM SUPP CITY 1",MATERIALS,17/09/2020,9200462769,439.98,ARGOS LTD
OXFORDSHIRE CC,"CHILDRENS, YOUNG PEOPLE AND FAMILIES",UASC 16&17,OTHER EXPENSES,17/09/2020,9200462715,31.98,BIBLE SOCIETY RESOURCE
OXFORDSHIRE CC,"CHILDRENS, YOUNG PEOPLE AND FAMILIES",UASC POST 18,"SUPPLIES, STATIONERY AND MATERIALS",17/09/2020,9200462997,10.31,AMZNMKTPLACE
OXFORDSHIRE CC,SOCIAL AND COMMUNITY SERVICES,LOOKED AFTER NORTH,HIRE OF ACCOMMODATION AND FACILITIES,17/09/2020,9200462889,485.00,BEST WESTERN PLUS OXFO
OXFORDSHIRE CC,"CHILDRENS, YOUNG PEOPLE AND FAMILIES","	MUSIC UNALLOCABLE",VEHICLE FUEL,17/09/2020,9200462849,43.51,SAINSBURYS OPT 0180
OXFORDSHIRE CC,ENTERPRISEVC,BUSINESS SYST STAFF,CATERING PROVISIONS,17/09/2020,9200462801,-9.12,SAINSBURYS LOC 4264
OXFORDSHIRE CC,ENVIRONMENT AND ECONOMY,HARD FM,HARDWARE AND CROCKERY,17/09/2020,9200462731,-47.67,CITY PLUMBING
OXFORDSHIRE CC,"CHILDRENS, YOUNG PEOPLE AND FAMILIES",THAME E&A HOME,MATERIALS,17/09/2020,9200462667,16.99,AMZNMKTPLACE AMAZON.CO
OXFORDSHIRE CC,"CHILDRENS, YOUNG PEOPLE AND FAMILIES","	LOOKED AFTER SOUTH",HIRE OF ACCOMMODATION AND FACILITIES,17/09/2020,9200462693,80.49,PREMIER INN
OXFORDSHIRE CC,"CHILDRENS, YOUNG PEOPLE AND FAMILIES",EYNSHAM,OTHER COMMUNICATIONS,16/09/2020,9197165581,8.99,NETFLIX.COM
OXFORDSHIRE CC,"CHILDRENS, YOUNG PEOPLE AND FAMILIES","	40 THE MOORS",MATERIALS,16/09/2020,9197165485,179.98,SPORTSDIRECT.COM
OXFORDSHIRE CC,"CHILDRENS, YOUNG PEOPLE AND FAMILIES","	LEAVING CARE SOUTH",CATERING PROVISIONS,16/09/2020,9197165323,20.00,TESCO STORES 2008
OXFORDSHIRE CC,"CHILDRENS, YOUNG PEOPLE AND FAMILIES",THAME E&A HOME,CATERING PROVISIONS,16/09/2020,9197165193,10.00,ASDA SUPERSTORE
OXFORDSHIRE CC,"CHILDRENS, YOUNG PEOPLE AND FAMILIES",DIDCOT MOVE-ON HOME,CATERING PROVISIONS,16/09/2020,9197165503,12.55,SAINSBURYS SACAT 2067
OXFORDSHIRE CC,"CHILDRENS, YOUNG PEOPLE AND FAMILIES",EYNSHAM,CATERING PROVISIONS,16/09/2020,9197165487,3.74,SPAR EYNSHAM
OXFORDSHIRE CC,"CHILDRENS, YOUNG PEOPLE AND FAMILIES",THAME E&A HOME,CATERING PROVISIONS,16/09/2020,9197165215,18.90,SAINSBURYS 2096
OXFORDSHIRE CC,"CHILDRENS, YOUNG PEOPLE AND FAMILIES","	DISABILITIES TEAM-C",MATERIALS,16/09/2020,9197165195,185.00,AMZNMKTPLACE
OXFORDSHIRE CC,"CHILDRENS, YOUNG PEOPLE AND FAMILIES","	40 THE MOORS",TELEPHONE - EQUIPMENT,16/09/2020,9197165199,30.00,EE TOP UP VESTA
OXFORDSHIRE CC,"CHILDRENS, YOUNG PEOPLE AND FAMILIES",C&I BASE ST ANDREWS,POSTAGE AND DELIVERY,16/09/2020,9197165321,13.40,POST OFFICE COUNTER
OXFORDSHIRE CC,"CHILDRENS, YOUNG PEOPLE AND FAMILIES","	LOOKED AFTER CITY 2",OTHER TRANSPORT ARRANGEMENTS,16/09/2020,9197165387,1.70,CAR PARK CHARGES
OXFORDSHIRE CC,SOCIAL AND COMMUNITY SERVICES,LEAVING CARE NORTH,CATERING PROVISIONS,16/09/2020,9197165411,3.65,TESCO STORES 4480
OXFORDSHIRE CC,"CHILDRENS, YOUNG PEOPLE AND FAMILIES","	LOOKED AFTER CITY 2",REGISTRATION AND INSPECTION FEES,16/09/2020,9197165297,25.00,GEN REGISTER OFFICE
OXFORDSHIRE CC,CORPORATE CORE,RESOURCING,PURCHASE OF IT EQUIPMENT,16/09/2020,9197165317,49.98,AMZNMKTPLACE
OXFORDSHIRE CC,"CHILDRENS, YOUNG PEOPLE AND FAMILIES",UASC 16&17,NON-STAFF SUBSISTENCE AND EXPENSES,16/09/2020,9197165169,21.16,CO OPERATIVE FOOD
OXFORDSHIRE CC,CORPORATE CORE,MOTOR FLEET,MOTOR IF FEES,16/09/2020,9197165553,4.50,WWW.MIB.ORG.UK
OXFORDSHIRE CC,SOCIAL AND COMMUNITY SERVICES,CSS WITNEY,MATERIALS,16/09/2020,9197165439,12.99,AMAZON.CO.UK NG2N80NB5
OXFORDSHIRE CC,SOCIAL AND COMMUNITY SERVICES,CSS BICESTER,CATERING PROVISIONS,16/09/2020,9197165165,17.70,WILKO RETAIL LIMITED
OXFORDSHIRE CC,SOCIAL AND COMMUNITY SERVICES,CSS BICESTER,CATERING PROVISIONS,16/09/2020,9197165163,8.07,B&M 025 - BICESTER
OXFORDSHIRE CC,ENVIRONMENT AND ECONOMY,HARD FM,HARDWARE AND CROCKERY,16/09/2020,9197165191,15.20,B & Q 1176
OXFORDSHIRE CC,"CHILDRENS, YOUNG PEOPLE AND FAMILIES",THAME E&A HOME,CATERING PROVISIONS,16/09/2020,9197165349,6.35,TESCO STORES 6519
OXFORDSHIRE CC,SOCIAL AND COMMUNITY SERVICES,"	LEARNING & ACCESS",MATERIALS,16/09/2020,9197165231,57.02,AMZNMKTPLACE
OXFORDSHIRE CC,"CHILDRENS, YOUNG PEOPLE AND FAMILIES","	LEAVING CARE CITY 1",PAYMENT TO GOVERNMENT DEPARTMENTS,16/09/2020,9197165223,2.95,ST ALBANS DISTRICT COU
OXFORDSHIRE CC,ENVIRONMENT AND ECONOMY,MUSEUM CAFE,LICENCES,16/09/2020,9197165409,320.00,WEST OXFORDSHIRE D
OXFORDSHIRE CC,CORPORATE CORE,MOTOR FLEET,MOTOR IF FEES,16/09/2020,9197165551,95.40,SIDNEY H HOOPER & COMP
OXFORDSHIRE CC,CORPORATE CORE,LIBRARY COLLECTIONS,"BOOKS, DVDS AND CDS",16/09/2020,9197165237,319.83,OVERDRIVE DIST
OXFORDSHIRE CC,SOCIAL AND COMMUNITY SERVICES,SCHOOLS FM,CATERING,16/09/2020,9197165221,156.77,BOOKER LIMITED OXFORD
OXFORDSHIRE CC,SOCIAL AND COMMUNITY SERVICES,CSS BICESTER,CATERING PROVISIONS,16/09/2020,9197165255,4.00,SAINSBURYS SACAT (2243
OXFORDSHIRE CC,SOCIAL AND COMMUNITY SERVICES,CSS BICESTER,MATERIALS,16/09/2020,9197165167,10.00,POUNDLAND LTD 1505
OXFORDSHIRE CC,"CHILDRENS, YOUNG PEOPLE AND FAMILIES","	OCCG GRANT",CATERING PROVISIONS,16/09/2020,9197165355,3.15,CO-OPERATIVE FOOD
OXFORDSHIRE CC,SOCIAL AND COMMUNITY SERVICES,SCHOOLS FM,CATERING PROVISIONS,16/09/2020,9197165213,20.00,TESCO STORES 4480
OXFORDSHIRE CC,SOCIAL AND COMMUNITY SERVICES,CSS BICESTER,MATERIALS,16/09/2020,9197165257,24.00,POUNDLAND LTD 1505
OXFORDSHIRE CC,SOCIAL AND COMMUNITY SERVICES,CSS WANTAGE,CATERING PROVISIONS,16/09/2020,9197165441,9.99,AMZNMKTPLACE
OXFORDSHIRE CC,SOCIAL AND COMMUNITY SERVICES,CSS WANTAGE,CATERING PROVISIONS,16/09/2020,9197165443,21.78,AMZNMKTPLACE
OXFORDSHIRE CC,SOCIAL AND COMMUNITY SERVICES,CSS WANTAGE,CATERING PROVISIONS,16/09/2020,9197165445,19.48,AMZNMKTPLACE
OXFORDSHIRE CC,CORPORATE CORE,ICT OPERATIONS & MAI,MATERIALS,16/09/2020,9197165539,41.93,AMZNMKTPLACE
OXFORDSHIRE CC,ENVIRONMENT AND ECONOMY,HARD FM,HARDWARE AND CROCKERY,16/09/2020,9197165183,19.90,SCREWFIX DIRECT
OXFORDSHIRE CC,"CHILDRENS, YOUNG PEOPLE AND FAMILIES","	RIVERSIDE CENTRE",CATERING PROVISIONS,16/09/2020,9197165201,14.99,SAINSBURYS 0600
OXFORDSHIRE CC,ENVIRONMENT AND ECONOMY,HARD FM,HARDWARE AND CROCKERY,16/09/2020,9197165189,54.25,WICKES OXFORD
OXFORDSHIRE CC,ENTERPRISEVC,,CAR LEASING - PRIVATE RENTALS,16/09/2020,9197165593,565.75,ENTERPRISE RENT-A-CAR
OXFORDSHIRE CC,"CHILDRENS, YOUNG PEOPLE AND FAMILIES",NTH FAM SUPRT-BCSTR,CLOTHING AND UNIFORMS,16/09/2020,9197165259,73.26,SWI SCHOOLWEAR
OXFORDSHIRE CC,"CHILDRENS, YOUNG PEOPLE AND FAMILIES",DIDCOT MOVE-ON HOME,CATERING PROVISIONS,16/09/2020,9197165217,2.10,SAINSBURYS SACAT 2067
OXFORDSHIRE CC,"CHILDRENS, YOUNG PEOPLE AND FAMILIES",DIDCOT MOVE-ON HOME,CATERING PROVISIONS,16/09/2020,9197165219,14.00,SAINSBURYS SACAT 2067
OXFORDSHIRE CC,"CHILDRENS, YOUNG PEOPLE AND FAMILIES",EYNSHAM,CATERING PROVISIONS,16/09/2020,9197165547,5.99,POUNDSTRETCHER 700
OXFORDSHIRE CC,SOCIAL AND COMMUNITY SERVICES,CSS - ABINGDON,MATERIALS,16/09/2020,9197165177,6.00,POUNDLAND LTD 1366
OXFORDSHIRE CC,"CHILDRENS, YOUNG PEOPLE AND FAMILIES",EYNSHAM,CATERING PROVISIONS,16/09/2020,9197165549,31.00,SAINSBURYS SACAT 0632
OXFORDSHIRE CC,ENTERPRISEVC,,CAR LEASING - PRIVATE RENTALS,16/09/2020,9197165591,78.11,ENTERPRISE RENT-A-CAR
OXFORDSHIRE CC,ENTERPRISEVC,,CAR LEASING - PRIVATE RENTALS,16/09/2020,9197165589,43.18,ENTERPRISE RENT-A-CAR
OXFORDSHIRE CC,ENTERPRISEVC,,CAR LEASING - PRIVATE RENTALS,16/09/2020,9197165587,46.12,ENTERPRISE RENT-A-CAR
OXFORDSHIRE CC,ENTERPRISEVC,,CAR LEASING - PRIVATE RENTALS,16/09/2020,9197165585,75.43,ENTERPRISE RENT-A-CAR
OXFORDSHIRE CC,ENTERPRISEVC,,CAR LEASING - PRIVATE RENTALS,16/09/2020,9197165583,92.41,ENTERPRISE RENT-A-CAR
OXFORDSHIRE CC,"CHILDRENS, YOUNG PEOPLE AND FAMILIES","	LOOKED AFTER CITY 1","SUPPLIES, STATIONERY AND MATERIALS",16/09/2020,9197165175,11.99,B&M 236 - COWLEY
OXFORDSHIRE CC,ENVIRONMENT AND ECONOMY,HARD FM,IT SOFTWARE,16/09/2020,9197165179,183.69,SAFETYCULTURE
OXFORDSHIRE CC,ENVIRONMENT AND ECONOMY,HARD FM,VEHICLES REPAIRS AND MAINTENANCE,16/09/2020,9197165185,159.23,IVOR MILES LIMITED
OXFORDSHIRE CC,SOCIAL AND COMMUNITY SERVICES,SCHOOLS FM,CATERING PROVISIONS,16/09/2020,9197165211,12.10,SAINSBURYS 0632
OXFORDSHIRE CC,"CHILDRENS, YOUNG PEOPLE AND FAMILIES",CNTL ERLY HELP-BBLEY,CATERING PROVISIONS,16/09/2020,9197165559,14.00,TESCO STORE 2990
OXFORDSHIRE CC,ENVIRONMENT AND ECONOMY,HARD FM,HARDWARE AND CROCKERY,16/09/2020,9197165187,135.97,BUILDBASE - OXFORD
OXFORDSHIRE CC,CORPORATE CORE,SNR LEADERSHIP TEAM,PAYMENTS TO VOLUNTARY BODIES,16/09/2020,9197165339,240.00,WWW.ADASS.ORG.UK
OXFORDSHIRE CC,"CHILDRENS, YOUNG PEOPLE AND FAMILIES",UASC POST 18,"SUPPLIES, STATIONERY AND MATERIALS",16/09/2020,9197165385,4.49,AMZNMKTPLACE
OXFORDSHIRE CC,"CHILDRENS, YOUNG PEOPLE AND FAMILIES",EYNSHAM,CATERING PROVISIONS,16/09/2020,9197165543,106.10,TESCO STORES 2008
OXFORDSHIRE CC,SOCIAL AND COMMUNITY SERVICES,"	MUSEUMS COLLECTIONS",CATERING PROVISIONS,16/09/2020,9197165235,-3.26,MILK&MORE
OXFORDSHIRE CC,SOCIAL AND COMMUNITY SERVICES,"	MUSEUMS COLLECTIONS",CATERING PROVISIONS,16/09/2020,9197165233,-1.56,MILK&MORE
OXFORDSHIRE CC,ENVIRONMENT AND ECONOMY,"	LIBRARY PROJECTS",PAYMENT TO GOVERNMENT DEPARTMENTS,16/09/2020,9197165307,-1.00,OCC LIBRARY SERVICES
OXFORDSHIRE CC,ENVIRONMENT AND ECONOMY,"	LIBRARY PROJECTS",PAYMENT TO GOVERNMENT DEPARTMENTS,16/09/2020,9197165305,-1.00,OCC LIBRARY SERVICES
OXFORDSHIRE CC,ENVIRONMENT AND ECONOMY,"	LIBRARY PROJECTS",PAYMENT TO GOVERNMENT DEPARTMENTS,16/09/2020,9197165303,-1.00,OCC LIBRARY SERVICES
OXFORDSHIRE CC,ENVIRONMENT AND ECONOMY,"	LIBRARY PROJECTS",PAYMENT TO GOVERNMENT DEPARTMENTS,16/09/2020,9197165301,-1.00,OCC LIBRARY SERVICES
OXFORDSHIRE CC,ENVIRONMENT AND ECONOMY,"	LIBRARY PROJECTS",PAYMENT TO GOVERNMENT DEPARTMENTS,16/09/2020,9197165299,-1.00,OCC LIBRARY SERVICES
OXFORDSHIRE CC,ENVIRONMENT AND ECONOMY,HARD FM,EQUIPMENT,16/09/2020,9197165181,45.94,NEWEY & EYRE
OXFORDSHIRE CC,"CHILDRENS, YOUNG PEOPLE AND FAMILIES","	LEAVING CARE NORTH",CATERING,16/09/2020,9197165283,4.10,CAFFE NERO BANBURY
OXFORDSHIRE CC,"CHILDRENS, YOUNG PEOPLE AND FAMILIES","	40 THE MOORS",CATERING,15/09/2020,9194759029,16.20,JUST EAT
OXFORDSHIRE CC,ENVIRONMENT AND ECONOMY,"	MOUNT HOUSE",MATERIALS,15/09/2020,9194758743,39.00,AMAZON.CO.UK NU31P7MG5
OXFORDSHIRE CC,"CHILDRENS, YOUNG PEOPLE AND FAMILIES",BULLINGDON PRISON,"BOOKS, DVDS AND CDS",15/09/2020,9194759067,108.18,WWW.PRISONS.ORG.UK
OXFORDSHIRE CC,"CHILDRENS, YOUNG PEOPLE AND FAMILIES","	40 THE MOORS",CATERING PROVISIONS,15/09/2020,9194758673,43.50,OXFORD PEARTREE KFC
OXFORDSHIRE CC,SOCIAL AND COMMUNITY SERVICES,DIDCOT MOVE-ON HOME,MATERIALS,15/09/2020,9194758677,33.67,AMZNMKTPLACE
OXFORDSHIRE CC,"CHILDRENS, YOUNG PEOPLE AND FAMILIES",KINGFISHER,CATERING,15/09/2020,9194758845,28.05,FIVE GUYS
OXFORDSHIRE CC,"CHILDRENS, YOUNG PEOPLE AND FAMILIES","	OCCG GRANT",OTHER EXPENSES,15/09/2020,9194758559,10.99,CANVA  02813-9068621
OXFORDSHIRE CC,"CHILDRENS, YOUNG PEOPLE AND FAMILIES","	LOOKED AFTER SOUTH",OTHER TRANSPORT ARRANGEMENTS,15/09/2020,9194758823,192.00,SHERBETS
OXFORDSHIRE CC,"CHILDRENS, YOUNG PEOPLE AND FAMILIES","	LEAVING CARE SOUTH",MATERIALS,15/09/2020,9194758495,29.95,AMZNMKTPLACE
OXFORDSHIRE CC,"CHILDRENS, YOUNG PEOPLE AND FAMILIES",UASC 16&17,CATERING PROVISIONS,15/09/2020,9194758847,8.41,CO-OPERATIVE FOOD
OXFORDSHIRE CC,"CHILDRENS, YOUNG PEOPLE AND FAMILIES",EYNSHAM,CATERING PROVISIONS,15/09/2020,9194759075,6.17,CO-OPERATIVE FOOD
OXFORDSHIRE CC,SOCIAL AND COMMUNITY SERVICES,SCHOOLS FM,CATERING,15/09/2020,9194758719,68.08,BOOKER LIMITED SWINDON
OXFORDSHIRE CC,CORPORATE CORE,COVID-19 COD,EQUIPMENT,15/09/2020,9194758863,93.52,AMZNMKTPLACE
OXFORDSHIRE CC,"CHILDRENS, YOUNG PEOPLE AND FAMILIES",THAME E&A HOME,CATERING PROVISIONS,15/09/2020,9194758529,28.20,ASDA SUPERSTORE
OXFORDSHIRE CC,"CHILDRENS, YOUNG PEOPLE AND FAMILIES",CSS WALLINGFORD,MATERIALS,15/09/2020,9194758447,7.08,AMZNMKTPLACE
OXFORDSHIRE CC,CORPORATE CORE,COVID-19 COD,EQUIPMENT,15/09/2020,9194758865,136.40,AMZNMKTPLACE
OXFORDSHIRE CC,"CHILDRENS, YOUNG PEOPLE AND FAMILIES",EYNSHAM,MATERIALS,15/09/2020,9194759125,7.99,AMZNMKTPLACE
OXFORDSHIRE CC,"CHILDRENS, YOUNG PEOPLE AND FAMILIES",EYNSHAM,MATERIALS,15/09/2020,9194759123,7.08,AMZNMKTPLACE
OXFORDSHIRE CC,SOCIAL AND COMMUNITY SERVICES,CSS - BANBURY,CATERING PROVISIONS,15/09/2020,9194758421,24.88,TESCO STORE 2064
OXFORDSHIRE CC,"CHILDRENS, YOUNG PEOPLE AND FAMILIES","	RIVERSIDE CENTRE",TRAINING RELATED EXPENDITURE,15/09/2020,9194758911,34.50,BIG ROCK CLIMBING
OXFORDSHIRE CC,CORPORATE CORE,"	LEGAL SERVICES",PROFESSIONAL SUBSCRIPTIONS,15/09/2020,9194758903,618.00,LAW SOCIETY FINANC
OXFORDSHIRE CC,ENVIRONMENT AND ECONOMY,"	FM RECHARGES",MATERIALS,15/09/2020,9194758715,2.75,TESCO STORE 2990
OXFORDSHIRE CC,"CHILDRENS, YOUNG PEOPLE AND FAMILIES",THAME E&A HOME,ENTERTAINMENT EXPENSES,15/09/2020,9194758785,26.00,CLIMBING CENTRE GR
OXFORDSHIRE CC,"CHILDRENS, YOUNG PEOPLE AND FAMILIES",CSC COVID-19,NON-STAFF SUBSISTENCE AND EXPENSES,15/09/2020,9194758541,3.00,THE WORKS
OXFORDSHIRE CC,"CHILDRENS, YOUNG PEOPLE AND FAMILIES",FIELDWORK UASC,MATERIALS,15/09/2020,9194758535,12.00,THE ENTERTAINER 100
OXFORDSHIRE CC,ENVIRONMENT AND ECONOMY,HARD FM,HARDWARE AND CROCKERY,15/09/2020,9194758599,27.96,SCREWFIX DIRECT
OXFORDSHIRE CC,"CHILDRENS, YOUNG PEOPLE AND FAMILIES",FIELDWORK UASC,NON-STAFF SUBSISTENCE AND EXPENSES,15/09/2020,9194758545,8.05,SPORTSDIRECT 436
OXFORDSHIRE CC,ENVIRONMENT AND ECONOMY,COUNTY LIBRARY,OTHER TRANSPORT ARRANGEMENTS,15/09/2020,9194758607,3.80,NCP BANBURY MARLBOROUG
OXFORDSHIRE CC,"CHILDRENS, YOUNG PEOPLE AND FAMILIES","	LEAVING CARE NORTH",OTHER TRANSPORT ARRANGEMENTS,15/09/2020,9194759093,13.46,MORRISON PETROL
OXFORDSHIRE CC,ENVIRONMENT AND ECONOMY,HARD FM,HARDWARE AND CROCKERY,15/09/2020,9194758575,50.95,SCREWFIX DIRECT
OXFORDSHIRE CC,ENVIRONMENT AND ECONOMY,HARD FM,OTHER TRANSPORT ARRANGEMENTS,15/09/2020,9194758593,3.80,NCP BANBURY MARLBOROUG
OXFORDSHIRE CC,"CHILDRENS, YOUNG PEOPLE AND FAMILIES","	LOOKED AFTER CITY 2",OTHER TRANSPORT ARRANGEMENTS,15/09/2020,9194759071,160.00,IZ  ROYAL CARS OXFORD
OXFORDSHIRE CC,SOCIAL AND COMMUNITY SERVICES,CSS WANTAGE,CLOTHING AND UNIFORMS,15/09/2020,9194758957,26.00,SEWORKWEAR.COM
OXFORDSHIRE CC,"CHILDRENS, YOUNG PEOPLE AND FAMILIES","	LEAVING CARE NORTH",OTHER EXPENSES,15/09/2020,9194759091,384.99,CURRYS
OXFORDSHIRE CC,"CHILDRENS, YOUNG PEOPLE AND FAMILIES",CNTL ERLY HELP-BBLEY,CATERING,15/09/2020,9194759099,45.58,BOOKER LIMITED OXFORD
OXFORDSHIRE CC,"CHILDRENS, YOUNG PEOPLE AND FAMILIES",CSS WALLINGFORD,CATERING PROVISIONS,15/09/2020,9194758455,22.52,WAITROSE 675
OXFORDSHIRE CC,SOCIAL AND COMMUNITY SERVICES,LEAVING CARE NORTH,"SUPPLIES, STATIONERY AND MATERIALS",15/09/2020,9194758829,1.20,POUNDSTRETCHER 322
OXFORDSHIRE CC,ENVIRONMENT AND ECONOMY,HARD FM,EQUIPMENT,15/09/2020,9194758567,390.00,SI PUMPS LIMITED
OXFORDSHIRE CC,ENVIRONMENT AND ECONOMY,"	BRIDGES GENERAL",PAYMENT TO GOVERNMENT DEPARTMENTS,15/09/2020,9194758871,50.00,CHERWELL DC
OXFORDSHIRE CC,"CHILDRENS, YOUNG PEOPLE AND FAMILIES","	LEAVING CARE CITY 2","SUPPLIES, STATIONERY AND MATERIALS",15/09/2020,9194758793,429.00,CURRYS ONLINE
OXFORDSHIRE CC,"CHILDRENS, YOUNG PEOPLE AND FAMILIES","	LOOKED AFTER CITY 2",OTHER EXPENSES,15/09/2020,9194759069,216.85,EQUESTRIAN WORLD UK LT
OXFORDSHIRE CC,"CHILDRENS, YOUNG PEOPLE AND FAMILIES","	LEAVING CARE NORTH",OTHER EXPENSES,15/09/2020,9194759089,20.99,TESCO STORES 4480
OXFORDSHIRE CC,CORPORATE CORE,REGISTRAR,MATERIALS,15/09/2020,9194758693,10.98,AMAZON.CO.UK FC4LV7ND5
OXFORDSHIRE CC,"CHILDRENS, YOUNG PEOPLE AND FAMILIES","	LEAVING CARE NORTH",CLOTHING AND UNIFORMS,15/09/2020,9194758941,53.99,LOVE THE SALES
OXFORDSHIRE CC,"CHILDRENS, YOUNG PEOPLE AND FAMILIES","	FOSTER CARE RECRUIT","SUPPLIES, STATIONERY AND MATERIALS",15/09/2020,9194758885,270.00,ROUND & ABOUT PUBLICAT
OXFORDSHIRE CC,"CHILDRENS, YOUNG PEOPLE AND FAMILIES","	40 THE MOORS",CLOTHING AND UNIFORMS,15/09/2020,9194759049,75.00,PUMA ONLINE SHOP UK
OXFORDSHIRE CC,ENVIRONMENT AND ECONOMY,THE RIDGEWAY,METERED WATER,15/09/2020,9194758773,4.39,CASTLE WATER
OXFORDSHIRE CC,ENVIRONMENT AND ECONOMY,THE RIDGEWAY,METERED WATER,15/09/2020,9194758771,6.11,CASTLE WATER
OXFORDSHIRE CC,ENVIRONMENT AND ECONOMY,HARD FM,IT SOFTWARE,15/09/2020,9194758589,183.88,SAFETYCULTURE
OXFORDSHIRE CC,"CHILDRENS, YOUNG PEOPLE AND FAMILIES","	MALTFIELD HOUSE",MATERIALS,15/09/2020,9194759005,15.99,ROBERT DYAS HOLDNG LTD
OXFORDSHIRE CC,SOCIAL AND COMMUNITY SERVICES,"	ASSESSMENT TEAM NORT",HIRE OF ACCOMMODATION AND FACILITIES,15/09/2020,9194759023,441.80,LITTLEBURY HOTEL
OXFORDSHIRE CC,CORPORATE CORE,OTHER,MATERIALS,15/09/2020,9194758977,7.56,AMAZON.CO.UK K05ZF0VQ5
OXFORDSHIRE CC,SOCIAL AND COMMUNITY SERVICES,CSS WANTAGE,CATERING PROVISIONS,15/09/2020,9194758959,17.20,SAINSBURYS 2244
OXFORDSHIRE CC,SOCIAL AND COMMUNITY SERVICES,CSS - DIDCOT,CATERING PROVISIONS,15/09/2020,9194758961,12.90,SAINSBURYS 2244
OXFORDSHIRE CC,SOCIAL AND COMMUNITY SERVICES,CSS WITNEY,CATERING PROVISIONS,15/09/2020,9194758955,77.52,SAINSBURYS 0632
OXFORDSHIRE CC,SOCIAL AND COMMUNITY SERVICES,"	SHARED LIVES",OTHER EXPENSES,15/09/2020,9194759077,24.22,AMZNMKTPLACE AMAZON.CO
OXFORDSHIRE CC,ENVIRONMENT AND ECONOMY,HARD FM,HARDWARE AND CROCKERY,15/09/2020,9194758583,356.38,B AND Q
OXFORDSHIRE CC,"CHILDRENS, YOUNG PEOPLE AND FAMILIES","	40 THE MOORS",CATERING PROVISIONS,15/09/2020,9194758815,175.31,TESCO STORES 4480
OXFORDSHIRE CC,"CHILDRENS, YOUNG PEOPLE AND FAMILIES",EYNSHAM,IT SOFTWARE,15/09/2020,9194759073,13.00,MAYFIELDEGGS
OXFORDSHIRE CC,SOCIAL AND COMMUNITY SERVICES,CSS - BANBURY,CATERING PROVISIONS,15/09/2020,9194758427,5.30,TESCO-STORES-5812
OXFORDSHIRE CC,SOCIAL AND COMMUNITY SERVICES,CSS BICESTER,CATERING PROVISIONS,15/09/2020,9194758441,130.84,TESCO STORES 4480
OXFORDSHIRE CC,"CHILDRENS, YOUNG PEOPLE AND FAMILIES",THAME E&A HOME,CATERING PROVISIONS,15/09/2020,9194758765,175.10,TESCO STORES 2038
OXFORDSHIRE CC,CORPORATE CORE,LIBRARY COLLECTIONS,"BOOKS, DVDS AND CDS",15/09/2020,9194758727,"2,942.24",BOLINDA PUBLISHING
OXFORDSHIRE CC,CORPORATE CORE,OPERATIONS,TRAINING RELATED EXPENDITURE,15/09/2020,9194758867,-1.00,OCC LIBRARY SERVICES
OXFORDSHIRE CC,ENVIRONMENT AND ECONOMY,"	LIBRARY PROJECTS",PAYMENT TO GOVERNMENT DEPARTMENTS,15/09/2020,9194758803,-1.00,OCC LIBRARY SERVICES
OXFORDSHIRE CC,ENVIRONMENT AND ECONOMY,"	LIBRARY PROJECTS",PAYMENT TO GOVERNMENT DEPARTMENTS,15/09/2020,9194758801,-1.00,OCC LIBRARY SERVICES
OXFORDSHIRE CC,ENVIRONMENT AND ECONOMY,"	LIBRARY PROJECTS",PAYMENT TO GOVERNMENT DEPARTMENTS,15/09/2020,9194758799,-1.00,OCC LIBRARY SERVICES
OXFORDSHIRE CC,ENVIRONMENT AND ECONOMY,"	LIBRARY PROJECTS",PAYMENT TO GOVERNMENT DEPARTMENTS,15/09/2020,9194758797,-1.00,OCC LIBRARY SERVICES
OXFORDSHIRE CC,"CHILDRENS, YOUNG PEOPLE AND FAMILIES",THAME E&A HOME,CATERING PROVISIONS,15/09/2020,9194758769,-2.00,TESCO STORES 2038
OXFORDSHIRE CC,"CHILDRENS, YOUNG PEOPLE AND FAMILIES",THAME E&A HOME,VEHICLE FUEL,15/09/2020,9194758713,2.40,THAME BP SF CONNECT
OXFORDSHIRE CC,SOCIAL AND COMMUNITY SERVICES,DIDCOT MOVE-ON HOME,CATERING PROVISIONS,15/09/2020,9194758723,33.41,SAINSBURYS 2067
OXFORDSHIRE CC,"CHILDRENS, YOUNG PEOPLE AND FAMILIES","	MALTFIELD HOUSE",CATERING PROVISIONS,15/09/2020,9194759007,3.10,SAINSBURYS 0632
OXFORDSHIRE CC,"CHILDRENS, YOUNG PEOPLE AND FAMILIES",DIDCOT MOVE-ON HOME,CATERING PROVISIONS,15/09/2020,9194758717,7.00,SAINSBURYS SACAT 2067
OXFORDSHIRE CC,"CHILDRENS, YOUNG PEOPLE AND FAMILIES","	LOOKED AFTER SOUTH",CLOTHING AND UNIFORMS,15/09/2020,9194759033,-50.38,SP   MRBEAST MERCHLINE
OXFORDSHIRE CC,CORPORATE CORE,HOLTON SITE,EQUIPMENT,14/09/2020,9191662027,7.48,AMZNMKTPLACE
OXFORDSHIRE CC,SOCIAL AND COMMUNITY SERVICES,RESIDENTIAL STRATEGY,CATERING,14/09/2020,9191661947,8.00,MEDITERRANEAN FISH BAR
OXFORDSHIRE CC,"CHILDRENS, YOUNG PEOPLE AND FAMILIES",EYNSHAM,CATERING,14/09/2020,9191661785,6.75,SPAR EYNSHAM
OXFORDSHIRE CC,SOCIAL AND COMMUNITY SERVICES,RESIDENTIAL STRATEGY,CATERING PROVISIONS,14/09/2020,9191661951,1.49,PAK HALAL ERDEM FOOD C
OXFORDSHIRE CC,SOCIAL AND COMMUNITY SERVICES,RESIDENTIAL STRATEGY,CATERING PROVISIONS,14/09/2020,9191661953,10.00,PAK HALAL ERDEM FOOD C
OXFORDSHIRE CC,SOCIAL AND COMMUNITY SERVICES,RESIDENTIAL STRATEGY,CATERING PROVISIONS,14/09/2020,9191661949,2.99,ATIF SUPER STORE
OXFORDSHIRE CC,CORPORATE CORE,ICT OPERATIONS & MAI,IT SERVICES,14/09/2020,9191662181,20.16,GITHUB
OXFORDSHIRE CC,SOCIAL AND COMMUNITY SERVICES,RESIDENTIAL STRATEGY,CATERING PROVISIONS,14/09/2020,9191661955,1.05,CO-OPERATIVE FOOD
OXFORDSHIRE CC,"CHILDRENS, YOUNG PEOPLE AND FAMILIES",EYNSHAM,CATERING,14/09/2020,9191661783,16.36,CO-OPERATIVE FOOD
OXFORDSHIRE CC,"CHILDRENS, YOUNG PEOPLE AND FAMILIES","	OCCG GRANT",CATERING PROVISIONS,14/09/2020,9191662005,3.00,WM MORRISONS STORE
OXFORDSHIRE CC,"CHILDRENS, YOUNG PEOPLE AND FAMILIES","	40 THE MOORS",MATERIALS,14/09/2020,9191661965,4.00,POUNDLAND LTD
OXFORDSHIRE CC,"CHILDRENS, YOUNG PEOPLE AND FAMILIES",EYNSHAM,FURNITURE,14/09/2020,9191661781,14.58,AMZNMKTPLACE
OXFORDSHIRE CC,"CHILDRENS, YOUNG PEOPLE AND FAMILIES","	40 THE MOORS",CLOTHING AND UNIFORMS,14/09/2020,9191662145,151.96,FOOTASYLUM PLC
OXFORDSHIRE CC,SOCIAL AND COMMUNITY SERVICES,"	PUBLIC HEALTH GENERA",MATERIALS,14/09/2020,9191661869,96.79,AMZNMKTPLACE
OXFORDSHIRE CC,"CHILDRENS, YOUNG PEOPLE AND FAMILIES",THAME E&A HOME,CATERING PROVISIONS,14/09/2020,9191661831,8.45,TESCO STORE 2064
OXFORDSHIRE CC,"CHILDRENS, YOUNG PEOPLE AND FAMILIES","	RESIDENTIAL STRATEGY",OTHER COMMUNICATIONS,14/09/2020,9191662061,5.99,NETFLIX.COM
OXFORDSHIRE CC,"CHILDRENS, YOUNG PEOPLE AND FAMILIES","	OCCG GRANT",VEHICLE FUEL,14/09/2020,9191662007,.99,MORRISON PETROL
OXFORDSHIRE CC,SOCIAL AND COMMUNITY SERVICES,RESIDENTIAL STRATEGY,CATERING PROVISIONS,14/09/2020,9191661945,2.95,ALDI 99 775
OXFORDSHIRE CC,"CHILDRENS, YOUNG PEOPLE AND FAMILIES",DIDCOT MOVE-ON HOME,MATERIALS,14/09/2020,9191661849,1.99,HEART TO HEART THORNTO
OXFORDSHIRE CC,"CHILDRENS, YOUNG PEOPLE AND FAMILIES",DIDCOT MOVE-ON HOME,CATERING PROVISIONS,14/09/2020,9191661851,18.21,SAINSBURYS SACAT 2067
OXFORDSHIRE CC,"CHILDRENS, YOUNG PEOPLE AND FAMILIES","	40 THE MOORS",TELEPHONE - EQUIPMENT,14/09/2020,9191661827,30.00,EE TOPUP  VESTA
OXFORDSHIRE CC,"CHILDRENS, YOUNG PEOPLE AND FAMILIES",WITNEY,CATERING PROVISIONS,14/09/2020,9191661789,1.35,CO-OP GROUP 070582
OXFORDSHIRE CC,"CHILDRENS, YOUNG PEOPLE AND FAMILIES",WITNEY,CATERING PROVISIONS,14/09/2020,9191661787,6.60,CO-OP GROUP 070582
OXFORDSHIRE CC,"CHILDRENS, YOUNG PEOPLE AND FAMILIES",WITNEY,MATERIALS,14/09/2020,9191661791,4.97,CARD FACTORY
OXFORDSHIRE CC,"CHILDRENS, YOUNG PEOPLE AND FAMILIES",THAME E&A HOME,CATERING PROVISIONS,14/09/2020,9191661941,6.60,PPOINT_ MANOR STORES 6
OXFORDSHIRE CC,"CHILDRENS, YOUNG PEOPLE AND FAMILIES","	OCCG GRANT",CATERING PROVISIONS,14/09/2020,9191662009,16.96,ALDI STORES 775-141
OXFORDSHIRE CC,"CHILDRENS, YOUNG PEOPLE AND FAMILIES",EYNSHAM,OTHER EXPENSES,14/09/2020,9191661779,22.00,EYNSHAM BARBERS
OXFORDSHIRE CC,"CHILDRENS, YOUNG PEOPLE AND FAMILIES",EYNSHAM,CATERING,14/09/2020,9191661777,2.25,CO-OPERATIVE FOOD
OXFORDSHIRE CC,"CHILDRENS, YOUNG PEOPLE AND FAMILIES",DIDCOT MOVE-ON HOME,CATERING PROVISIONS,14/09/2020,9191662151,15.25,SAINSBURYS SACAT 2067
OXFORDSHIRE CC,"CHILDRENS, YOUNG PEOPLE AND FAMILIES","	FAMILY SUPPORT CITY3",CLIENT LODGINGS AND ACCOMMODATION,14/09/2020,9191661837,52.89,GAR HOTEL RES
OXFORDSHIRE CC,"CHILDRENS, YOUNG PEOPLE AND FAMILIES","	40 THE MOORS",MATERIALS,14/09/2020,9191662059,180.95,AMZNMKTPLACE
OXFORDSHIRE CC,CORPORATE CORE,"MARKETING, COMMUNICATIONS & ENGAGEMENT","PUBLICITY, PROMOTIONS AND ADVERTISEMENT",14/09/2020,9191661997,500.00,FACEBK 9LAVQVS9Z2
OXFORDSHIRE CC,"CHILDRENS, YOUNG PEOPLE AND FAMILIES",EYNSHAM,FURNITURE,14/09/2020,9191661775,34.99,ARGOS LTD
OXFORDSHIRE CC,"CHILDRENS, YOUNG PEOPLE AND FAMILIES",THAME E&A HOME,CATERING PROVISIONS,14/09/2020,9191661805,6.40,SAINSBURYS SACAT 2096
OXFORDSHIRE CC,SOCIAL AND COMMUNITY SERVICES,LOOKED AFTER NORTH,MATERIALS,14/09/2020,9191661989,253.94,ARGOS LTD
OXFORDSHIRE CC,ENVIRONMENT AND ECONOMY,COVID-19 COD,"SUPPLIES, STATIONERY AND MATERIALS",14/09/2020,9191661921,737.99,WWW.DISPLAYWIZARD.CO.U
OXFORDSHIRE CC,"CHILDRENS, YOUNG PEOPLE AND FAMILIES","	40 THE MOORS",CLOTHING AND UNIFORMS,14/09/2020,9191661963,51.59,BOOHOO.COM
OXFORDSHIRE CC,"CHILDRENS, YOUNG PEOPLE AND FAMILIES",EYNSHAM,CATERING,14/09/2020,9191661773,9.00,CO-OPERATIVE FOOD
OXFORDSHIRE CC,CORPORATE CORE,ICT OPERATIONS & MAI,EQUIPMENT,14/09/2020,9191662179,58.20,GLOBE PACKAGING - PACK
OXFORDSHIRE CC,"CHILDRENS, YOUNG PEOPLE AND FAMILIES","	LEAVING CARE NORTH",CATERING PROVISIONS,14/09/2020,9191661987,4.65,WM MORRISONS STORE
OXFORDSHIRE CC,SOCIAL AND COMMUNITY SERVICES,LOOKED AFTER SOUTH,POSTAGE AND DELIVERY,14/09/2020,9191661889,2.06,POST OFFICE COUNTER
OXFORDSHIRE CC,SOCIAL AND COMMUNITY SERVICES,LOOKED AFTER SOUTH,POSTAGE AND DELIVERY,14/09/2020,9191661887,6.70,POST OFFICE COUNTER
OXFORDSHIRE CC,"CHILDRENS, YOUNG PEOPLE AND FAMILIES",WITNEY,CATERING PROVISIONS,14/09/2020,9191662189,62.02,ASDA STORES 4920
OXFORDSHIRE CC,CORPORATE CORE,SCHOOLS FM,CATERING,14/09/2020,9191661873,167.87,BOOKER LIMITED OXFORD
OXFORDSHIRE CC,"CHILDRENS, YOUNG PEOPLE AND FAMILIES","	LOOKED AFTER SOUTH",HIRE OF ACCOMMODATION AND FACILITIES,14/09/2020,9191661979,5.00,THE HIGHFIELD
OXFORDSHIRE CC,"CHILDRENS, YOUNG PEOPLE AND FAMILIES",UASC POST 18,POSTAGE AND DELIVERY,14/09/2020,9191661809,8.50,POST OFFICE COUNTER
OXFORDSHIRE CC,CORPORATE CORE,MOTOR FLEET,MOTOR IF FEES,14/09/2020,9191662199,95.40,SIDNEY H HOOPER & COMP
OXFORDSHIRE CC,SOCIAL AND COMMUNITY SERVICES,DIDCOT MOVE-ON HOME,MATERIALS,14/09/2020,9191661829,215.27,AMAZON.CO.UK 9I5RL1EB5
OXFORDSHIRE CC,"CHILDRENS, YOUNG PEOPLE AND FAMILIES","	LEAVING CARE NORTH",PAYMENT TO GOVERNMENT DEPARTMENTS,14/09/2020,9191662175,38.00,GEN REGISTER OFFICE
OXFORDSHIRE CC,"CHILDRENS, YOUNG PEOPLE AND FAMILIES",CNTL ERLY HELP-BBLEY,HARDWARE AND CROCKERY,14/09/2020,9191662221,32.10,TOOLSTATION LTD
OXFORDSHIRE CC,ENVIRONMENT AND ECONOMY,HARD FM,HARDWARE AND CROCKERY,14/09/2020,9191661813,119.98,TOOLSTATION LTD
OXFORDSHIRE CC,SOCIAL AND COMMUNITY SERVICES,LOOKED AFTER NORTH,HIRE OF ACCOMMODATION AND FACILITIES,14/09/2020,9191661981,480.00,HOTEL ON BOOKING.COM
OXFORDSHIRE CC,SOCIAL AND COMMUNITY SERVICES,CSS WALLINGFORD,CATERING PROVISIONS,14/09/2020,9191661875,13.83,WAITROSE 675
OXFORDSHIRE CC,"CHILDRENS, YOUNG PEOPLE AND FAMILIES",THAME E&A HOME,CATERING PROVISIONS,14/09/2020,9191661995,3.10,SAINSBURYS 2096
OXFORDSHIRE CC,ENVIRONMENT AND ECONOMY,"	COMMERCIAL MANAGEMEN",PAYMENT TO GOVERNMENT DEPARTMENTS,14/09/2020,9191661923,232.00,CHERWELL DISTRICT COUN
OXFORDSHIRE CC,"CHILDRENS, YOUNG PEOPLE AND FAMILIES",CSS - ABINGDON,CATERING PROVISIONS,14/09/2020,9191661943,83.00,TESCO STORES 2008
OXFORDSHIRE CC,ENVIRONMENT AND ECONOMY,"	FM RECHARGES",MATERIALS,14/09/2020,9191661811,299.00,THAMES WATER WEB
OXFORDSHIRE CC,ENVIRONMENT AND ECONOMY,HARD FM,HARDWARE AND CROCKERY,14/09/2020,9191661815,31.93,SCREWFIX DIRECT
OXFORDSHIRE CC,SOCIAL AND COMMUNITY SERVICES,CSS WANTAGE,MATERIALS,14/09/2020,9191661759,32.96,CHARLTON PARK GDN
OXFORDSHIRE CC,"CHILDRENS, YOUNG PEOPLE AND FAMILIES",THAME E&A HOME,CATERING PROVISIONS,14/09/2020,9191661905,109.37,TESCO STORES 2038
OXFORDSHIRE CC,SOCIAL AND COMMUNITY SERVICES,CSS WANTAGE,MATERIALS,14/09/2020,9191661757,16.00,SAINSBURYS SACAT 2067
OXFORDSHIRE CC,"CHILDRENS, YOUNG PEOPLE AND FAMILIES",EYNSHAM,CATERING PROVISIONS,14/09/2020,9191662191,130.52,TESCO STORES 2008
OXFORDSHIRE CC,"CHILDRENS, YOUNG PEOPLE AND FAMILIES","	40 THE MOORS",CATERING PROVISIONS,14/09/2020,9191661961,365.22,SAINSBURYS TO YOU 0600
OXFORDSHIRE CC,SOCIAL AND COMMUNITY SERVICES,CSS WALLINGFORD,CATERING PROVISIONS,14/09/2020,9191661877,.29,WAITROSE 675
OXFORDSHIRE CC,"CHILDRENS, YOUNG PEOPLE AND FAMILIES",WITNEY,MANAGEMENT CONSULTANT FEES,14/09/2020,9191661807,157.50,TVLICENSING.CO.UK
OXFORDSHIRE CC,SOCIAL AND COMMUNITY SERVICES,LEAVING CARE NORTH,CATERING,14/09/2020,9191662063,10.60,COFFEE NO 1 DAVENTRY
OXFORDSHIRE CC,"CHILDRENS, YOUNG PEOPLE AND FAMILIES","	LEAVING CARE NORTH",PAYMENT TO GOVERNMENT DEPARTMENTS,14/09/2020,9191662177,-7.50,GEN REGISTER OFFICE
OXFORDSHIRE CC,"CHILDRENS, YOUNG PEOPLE AND FAMILIES","	LOOKED AFTER CITY 1",REGISTRATION AND INSPECTION FEES,14/09/2020,9191661913,-7.50,GEN REGISTER OFFICE
OXFORDSHIRE CC,"CHILDRENS, YOUNG PEOPLE AND FAMILIES",THAME E&A HOME,MATERIALS,11/09/2020,9187154697,6.99,TESCO SUBSCRIPTION
OXFORDSHIRE CC,SOCIAL AND COMMUNITY SERVICES,"	MUSEUMS COLLECTIONS",CATERING PROVISIONS,11/09/2020,9187154619,4.82,MILK&MORE
OXFORDSHIRE CC,"CHILDRENS, YOUNG PEOPLE AND FAMILIES",THAME E&A HOME,IT SOFTWARE,11/09/2020,9187155423,42.00,SP   CERNUCCI
OXFORDSHIRE CC,"CHILDRENS, YOUNG PEOPLE AND FAMILIES","	40 THE MOORS",OTHER EXPENSES,11/09/2020,9187155091,59.00,EE LIMITED
OXFORDSHIRE CC,SOCIAL AND COMMUNITY SERVICES,"	KINGFISHER",OTHER TRANSPORT ARRANGEMENTS,11/09/2020,9187154771,6.60,M6 TOLL
OXFORDSHIRE CC,"CHILDRENS, YOUNG PEOPLE AND FAMILIES",THAME E&A HOME,VEHICLE FUEL,11/09/2020,9187155399,3.50,THAME BP SF CONNECT
OXFORDSHIRE CC,"CHILDRENS, YOUNG PEOPLE AND FAMILIES",THAME E&A HOME,VEHICLE FUEL,11/09/2020,9187155403,2.00,THAME BP SF CONNECT
OXFORDSHIRE CC,"CHILDRENS, YOUNG PEOPLE AND FAMILIES","	LOOKED AFTER CITY 1",NON-STAFF SUBSISTENCE AND EXPENSES,11/09/2020,9187154505,6.99,MASTER KEBAB HOUSE
OXFORDSHIRE CC,"CHILDRENS, YOUNG PEOPLE AND FAMILIES",THAME E&A HOME,CATERING PROVISIONS,11/09/2020,9187155421,10.50,SAINSBURYS 2096
OXFORDSHIRE CC,SOCIAL AND COMMUNITY SERVICES,"	KINGFISHER",CATERING PROVISIONS,11/09/2020,9187154763,6.80,WELCOME BREAK STARBUCK
OXFORDSHIRE CC,"CHILDRENS, YOUNG PEOPLE AND FAMILIES","	40 THE MOORS",EDUCATIONAL AND VOCATIONAL TRAINING ,11/09/2020,9187155255,10.00,WWW.ABINGDON-WITNEY.AC
OXFORDSHIRE CC,"CHILDRENS, YOUNG PEOPLE AND FAMILIES",THAME E&A HOME,CATERING PROVISIONS,11/09/2020,9187155419,27.15,COSTA THAME
OXFORDSHIRE CC,"CHILDRENS, YOUNG PEOPLE AND FAMILIES",EYNSHAM,CATERING,11/09/2020,9187154465,4.73,CO-OPERATIVE FOOD
OXFORDSHIRE CC,CORPORATE CORE,"MARKETING, COMMUNICATIONS & ENGAGEMENT",PHOTOCOPYING,11/09/2020,9187154867,29.00,STK SHUTTERSTOCK
OXFORDSHIRE CC,"CHILDRENS, YOUNG PEOPLE AND FAMILIES",HOUSE PROJECT,CATERING,11/09/2020,9187155389,1.99,SWAN & CASTLE
OXFORDSHIRE CC,"CHILDRENS, YOUNG PEOPLE AND FAMILIES","	LOOKED AFTER NORTH",HIRE OF ACCOMMODATION AND FACILITIES,11/09/2020,9187155531,319.50,HOTEL ON BOOKING.COM
OXFORDSHIRE CC,"CHILDRENS, YOUNG PEOPLE AND FAMILIES","	LEAVING CARE CITY 1",MATERIALS,11/09/2020,9187155537,95.00,ARGOS LTD
OXFORDSHIRE CC,SOCIAL AND COMMUNITY SERVICES,CSS BICESTER,CATERING PROVISIONS,11/09/2020,9187154645,18.65,MARKS&SPENCER PLC SF
OXFORDSHIRE CC,"CHILDRENS, YOUNG PEOPLE AND FAMILIES",HOUSE PROJECT,CATERING,11/09/2020,9187155387,13.15,SWAN & CASTLE
OXFORDSHIRE CC,"CHILDRENS, YOUNG PEOPLE AND FAMILIES",CNTL EARLY HELP-BRTN,HIRE OF ACCOMMODATION AND FACILITIES,11/09/2020,9187155239,28.07,AIRBNB   HM2HXMJMYC
OXFORDSHIRE CC,SOCIAL AND COMMUNITY SERVICES,"	KINGFISHER",CATERING,11/09/2020,9187154769,9.50,THE EATING INN RESTAUR
OXFORDSHIRE CC,"CHILDRENS, YOUNG PEOPLE AND FAMILIES",DIDCOT MOVE-ON HOME,CATERING PROVISIONS,11/09/2020,9187154605,30.15,SAINSBURYS SACAT 2067
OXFORDSHIRE CC,"CHILDRENS, YOUNG PEOPLE AND FAMILIES","	RESIDENTIAL STRATEGY",MATERIALS,11/09/2020,9187155099,14.99,ARGOS KIDLINGTON INSID
OXFORDSHIRE CC,"CHILDRENS, YOUNG PEOPLE AND FAMILIES",EYNSHAM,CATERING PROVISIONS,11/09/2020,9187154809,27.93,SAINSBURYS 0632
OXFORDSHIRE CC,CORPORATE CORE,BUSINESS SUPPORT,"SUPPLIES, STATIONERY AND MATERIALS",11/09/2020,9187154785,277.42,EDENRED (INCENTIVES &
OXFORDSHIRE CC,CORPORATE CORE,RECHARGES SOC CARE,"SUPPLIES, STATIONERY AND MATERIALS",11/09/2020,9187154785,277.42,EDENRED (INCENTIVES &
OXFORDSHIRE CC,CORPORATE CORE,CEF EYECARE VOUCHERS,"SUPPLIES, STATIONERY AND MATERIALS",11/09/2020,9187154785,277.41,EDENRED (INCENTIVES &
OXFORDSHIRE CC,ENVIRONMENT AND ECONOMY,HARD FM,IT SOFTWARE,11/09/2020,9187154851,364.31,SAFETYCULTURE
OXFORDSHIRE CC,"CHILDRENS, YOUNG PEOPLE AND FAMILIES",HOUSE PROJECT,OTHER TRANSPORT ARRANGEMENTS,11/09/2020,9187155381,2.00,SEACOURT PARK AND RIDE
OXFORDSHIRE CC,"CHILDRENS, YOUNG PEOPLE AND FAMILIES","	LEAVING CARE NORTH",BIRTHDAY ALLOWANCE,11/09/2020,9187155433,7.00,WM MORRISONS STORE
OXFORDSHIRE CC,"CHILDRENS, YOUNG PEOPLE AND FAMILIES",CNTL EARLY HELP-RHIL,OTHER EXPENSES,11/09/2020,9187154567,22.00,SAINSBURY'S
OXFORDSHIRE CC,"CHILDRENS, YOUNG PEOPLE AND FAMILIES",THAME E&A HOME,CATERING PROVISIONS,11/09/2020,9187155395,1.09,TESCO STORE 2124
OXFORDSHIRE CC,"CHILDRENS, YOUNG PEOPLE AND FAMILIES","	LEAVING CARE CITY 2",OTHER EXPENSES,11/09/2020,9187154749,239.00,DREAMS LTD
OXFORDSHIRE CC,CORPORATE CORE,COVID-19 COD,EQUIPMENT,11/09/2020,9187154945,44.16,AMZNMKTPLACE
OXFORDSHIRE CC,"CHILDRENS, YOUNG PEOPLE AND FAMILIES","	LEAVING CARE CITY 2",OTHER EXPENSES,11/09/2020,9187154741,299.00,DREAMS LTD
OXFORDSHIRE CC,SOCIAL AND COMMUNITY SERVICES,DIDCOT MOVE-ON HOME,MATERIALS,11/09/2020,9187154525,7.50,AMZNMKTPLACE
OXFORDSHIRE CC,"CHILDRENS, YOUNG PEOPLE AND FAMILIES","	LEAVING CARE SOUTH",MATERIALS,11/09/2020,9187155345,45.94,AMZNMKTPLACE AMAZON.CO
OXFORDSHIRE CC,"CHILDRENS, YOUNG PEOPLE AND FAMILIES","	LEAVING CARE NORTH","SUPPLIES, STATIONERY AND MATERIALS",11/09/2020,9187155437,249.00,AO RETAIL LIMITED
OXFORDSHIRE CC,SOCIAL AND COMMUNITY SERVICES,"	KINGFISHER",CATERING,11/09/2020,9187154759,9.98,ROADCHEF M SERV UPAY L
OXFORDSHIRE CC,SOCIAL AND COMMUNITY SERVICES,CSS BICESTER,LAUNDRY AND DRY CLEANING,11/09/2020,9187154413,90.00,BICESTER SHOE REPAIRS
OXFORDSHIRE CC,CORPORATE CORE,"	LEGAL SERVICES",MATERIALS,11/09/2020,9187155013,20.73,AMAZON.CO.UK C47F609Q5
OXFORDSHIRE CC,SOCIAL AND COMMUNITY SERVICES,"	KINGFISHER",OTHER TRANSPORT ARRANGEMENTS,11/09/2020,9187154777,4.80,M6 TOLL
OXFORDSHIRE CC,SOCIAL AND COMMUNITY SERVICES,"	KINGFISHER",OTHER TRANSPORT ARRANGEMENTS,11/09/2020,9187154775,4.80,M6 TOLL
OXFORDSHIRE CC,"CHILDRENS, YOUNG PEOPLE AND FAMILIES",CNTL ERLY HELP-BBLEY,PRINTING,11/09/2020,9187155331,180.77,LOCAL HEROES
OXFORDSHIRE CC,CORPORATE CORE,INCOME TEAM,PAYMENT TO GOVERNMENT DEPARTMENTS,11/09/2020,9187154805,1.50,WWW.GOV.UK
OXFORDSHIRE CC,"CHILDRENS, YOUNG PEOPLE AND FAMILIES",STH EARLY HELP-DDCOT,DOMESTIC SUPPLIES,11/09/2020,9187154703,82.95,ARGOS LTD
OXFORDSHIRE CC,SOCIAL AND COMMUNITY SERVICES,CSS - DIDCOT,CATERING PROVISIONS,11/09/2020,9187154467,28.00,SAINSBURYS SACAT 2244
OXFORDSHIRE CC,"CHILDRENS, YOUNG PEOPLE AND FAMILIES",EYNSHAM,MATERIALS,11/09/2020,9187154599,7.90,EVENLODE DIY
OXFORDSHIRE CC,"CHILDRENS, YOUNG PEOPLE AND FAMILIES","	LEAVING CARE NORTH",CATERING PROVISIONS,11/09/2020,9187154847,4.40,WM MORRISONS STORE
OXFORDSHIRE CC,"CHILDRENS, YOUNG PEOPLE AND FAMILIES",THAME E&A HOME,MATERIALS,11/09/2020,9187154425,6.99,AMZNMKTPLACE AMAZON.CO
OXFORDSHIRE CC,CORPORATE CORE,MOTOR FLEET,MOTOR IF OWN DAMAGE,11/09/2020,9187155415,"2,304.60",WHOLESALE AUTOPARTS
OXFORDSHIRE CC,SOCIAL AND COMMUNITY SERVICES,"	KINGFISHER",CATERING PROVISIONS,11/09/2020,9187154767,3.98,WELCOME BREAK
OXFORDSHIRE CC,CORPORATE CORE,MOTOR FLEET,MOTOR IF TP DAMAGE,11/09/2020,9187155409,27.00,WHOLESALE AUTOPARTS
OXFORDSHIRE CC,ENVIRONMENT AND ECONOMY,HARD FM,HARDWARE AND CROCKERY,11/09/2020,9187154509,26.00,WICKES BICESTER
OXFORDSHIRE CC,"CHILDRENS, YOUNG PEOPLE AND FAMILIES","	LOOKED AFTER CITY 1",PAYMENTS TO TRANSPORT OPERATORS,11/09/2020,9187154625,172.72,TRAINLINE
OXFORDSHIRE CC,CORPORATE CORE,,"SUPPLIES, STATIONERY AND MATERIALS",11/09/2020,9187155541,25.15,LYRECO UK LTD
OXFORDSHIRE CC,"CHILDRENS, YOUNG PEOPLE AND FAMILIES",HOUSE PROJECT,OTHER TRANSPORT ARRANGEMENTS,11/09/2020,9187155375,2.80,OXFORD BUS COMPANY
OXFORDSHIRE CC,SOCIAL AND COMMUNITY SERVICES,"	SHARED LIVES",PAYMENT TO GOVERNMENT DEPARTMENTS,11/09/2020,9187155367,-45.00,CHERWELL DC
OXFORDSHIRE CC,"CHILDRENS, YOUNG PEOPLE AND FAMILIES",THAME E&A HOME,MATERIALS,11/09/2020,9187154421,46.00,AMZNMKTPLACE AMAZON.CO
OXFORDSHIRE CC,"CHILDRENS, YOUNG PEOPLE AND FAMILIES","	LOOKED AFTER SOUTH",HIRE OF ACCOMMODATION AND FACILITIES,11/09/2020,9187154449,60.00,THE HIGHFIELD
OXFORDSHIRE CC,"CHILDRENS, YOUNG PEOPLE AND FAMILIES","	LEAVING CARE NORTH",CLOTHING AND UNIFORMS,11/09/2020,9187155153,275.00,PAYPAL  HUDA AHMED ONB
OXFORDSHIRE CC,"CHILDRENS, YOUNG PEOPLE AND FAMILIES",NTH FAM SUPRT-BCSTR,OTHER EXPENSES,11/09/2020,9187155271,-1.00,ARGOS LTD
OXFORDSHIRE CC,ENVIRONMENT AND ECONOMY,"	ROW MAINT",VEHICLE FUEL,11/09/2020,9187154935,77.01,TESCO PAY AT PUMP 3920
OXFORDSHIRE CC,SOCIAL AND COMMUNITY SERVICES,CSS WITNEY,MATERIALS,10/09/2020,9183670759,33.82,AMAZON.CO.UK H34CZ52S5
OXFORDSHIRE CC,"CHILDRENS, YOUNG PEOPLE AND FAMILIES",EYNSHAM,CATERING PROVISIONS,10/09/2020,9183669755,6.89,SPAR EYNSHAM
OXFORDSHIRE CC,"CHILDRENS, YOUNG PEOPLE AND FAMILIES",WITNEY,CATERING PROVISIONS,10/09/2020,9183669437,17.50,SAINSBURYS 0632
OXFORDSHIRE CC,"CHILDRENS, YOUNG PEOPLE AND FAMILIES",DIDCOT MOVE-ON HOME,CATERING PROVISIONS,10/09/2020,9183670949,18.20,SAINSBURYS SACAT 2067
OXFORDSHIRE CC,"CHILDRENS, YOUNG PEOPLE AND FAMILIES",NORTH FSS- WITNEY,PAYMENTS TO TRANSPORT OPERATORS,10/09/2020,9183669311,77.40,WWW.GWR.COM
OXFORDSHIRE CC,"CHILDRENS, YOUNG PEOPLE AND FAMILIES",KINGFISHER,CATERING,10/09/2020,9183670273,3.77,COSTA COFFEE 43039930
OXFORDSHIRE CC,ENVIRONMENT AND ECONOMY,HARD FM,HARDWARE AND CROCKERY,10/09/2020,9183669545,45.98,SCREWFIX DIRECT
OXFORDSHIRE CC,"CHILDRENS, YOUNG PEOPLE AND FAMILIES",THAME E&A HOME,POSTAGE AND DELIVERY,10/09/2020,9183669317,7.50,POST OFFICE COUNTER
OXFORDSHIRE CC,"CHILDRENS, YOUNG PEOPLE AND FAMILIES",CNTL EARLY HELP-RHIL,OTHER EXPENSES,10/09/2020,9183669709,66.00,ASDA GEORGE COM LEEDS
OXFORDSHIRE CC,CORPORATE CORE,COVID-19 COD,EQUIPMENT,10/09/2020,9183669711,58.17,VISTAPRINT
OXFORDSHIRE CC,"CHILDRENS, YOUNG PEOPLE AND FAMILIES","	40 THE MOORS",CLOTHING AND UNIFORMS,10/09/2020,9183670885,150.43,MUNRO VALETING SUPPLIE
OXFORDSHIRE CC,SOCIAL AND COMMUNITY SERVICES,DIDCOT MOVE-ON HOME,CATERING,10/09/2020,9183669649,10.05,KASPAS DIDCOT
OXFORDSHIRE CC,SOCIAL AND COMMUNITY SERVICES,CSS BICESTER,MATERIALS,10/09/2020,9183669795,41.99,AMZNMKTPLACE AMAZON.CO
OXFORDSHIRE CC,SOCIAL AND COMMUNITY SERVICES,CSS WITNEY,MATERIALS,10/09/2020,9183670757,15.00,AMZNMKTPLACE AMAZON.CO
OXFORDSHIRE CC,"CHILDRENS, YOUNG PEOPLE AND FAMILIES","	LEAVING CARE SOUTH",OTHER TRANSPORT ARRANGEMENTS,10/09/2020,9183669407,5.00,DART-CHARGE
OXFORDSHIRE CC,"CHILDRENS, YOUNG PEOPLE AND FAMILIES",DISABILITIES TEAM S,AFTER SCHOOL ACTIVITIES,10/09/2020,9183669873,246.05,GET ACTIVE
OXFORDSHIRE CC,"CHILDRENS, YOUNG PEOPLE AND FAMILIES",DISABILITIES TEAM S,AFTER SCHOOL ACTIVITIES,10/09/2020,9183669865,12.95,GET ACTIVE
OXFORDSHIRE CC,"CHILDRENS, YOUNG PEOPLE AND FAMILIES",0-5 STDS & PROGRESS,MATERIALS,10/09/2020,9183670961,28.75,AMZNMKTPLACE
OXFORDSHIRE CC,SOCIAL AND COMMUNITY SERVICES,CSS - OXFORD,CATERING PROVISIONS,10/09/2020,9183669849,3.20,ALDI STORES 775-142
OXFORDSHIRE CC,ENVIRONMENT AND ECONOMY,COUNTY LIBRARY,GENERAL MAINTENANCE,10/09/2020,9183669571,195.84,LOCHINVAR LTD
OXFORDSHIRE CC,ENVIRONMENT AND ECONOMY,HARD FM,HARDWARE AND CROCKERY,10/09/2020,9183669509,13.00,B AND Q
OXFORDSHIRE CC,"CHILDRENS, YOUNG PEOPLE AND FAMILIES","	FAM SUPP CITY 1",HIRE OF ACCOMMODATION AND FACILITIES,10/09/2020,9183669705,440.56,TRAVELODGE
OXFORDSHIRE CC,SOCIAL AND COMMUNITY SERVICES,DIDCOT MOVE-ON HOME,IT SOFTWARE,10/09/2020,9183669637,29.80,DIDCOT OFFICE SUPPLIES
OXFORDSHIRE CC,"CHILDRENS, YOUNG PEOPLE AND FAMILIES",KINGFISHER,CATERING PROVISIONS,10/09/2020,9183670281,5.35,CO-OPERATIVE FOOD
OXFORDSHIRE CC,SOCIAL AND COMMUNITY SERVICES,CSS BICESTER,CATERING PROVISIONS,10/09/2020,9183669611,7.58,ICELAND
OXFORDSHIRE CC,SOCIAL AND COMMUNITY SERVICES,DIDCOT MOVE-ON HOME,MATERIALS,10/09/2020,9183669645,34.31,AMZNMKTPLACE
OXFORDSHIRE CC,SOCIAL AND COMMUNITY SERVICES,DIDCOT MOVE-ON HOME,MATERIALS,10/09/2020,9183669643,3.90,AMZNMKTPLACE
OXFORDSHIRE CC,"CHILDRENS, YOUNG PEOPLE AND FAMILIES","	LEAVING CARE SOUTH",FURNITURE,10/09/2020,9183671077,303.00,DREAMS LTD
OXFORDSHIRE CC,"CHILDRENS, YOUNG PEOPLE AND FAMILIES",CNTL ERLY HELP-BBLEY,MATERIALS,10/09/2020,9183671145,2.50,FREDS DISCOUNT STORE
OXFORDSHIRE CC,SOCIAL AND COMMUNITY SERVICES,DIDCOT MOVE-ON HOME,MATERIALS,10/09/2020,9183669651,24.72,WWW.MEDICALSUPPLIES.CO
OXFORDSHIRE CC,"CHILDRENS, YOUNG PEOPLE AND FAMILIES",WITNEY,VEHICLE FUEL,10/09/2020,9183669473,1.20,SHELL WITNEY
OXFORDSHIRE CC,SOCIAL AND COMMUNITY SERVICES,CSS - DIDCOT,MATERIALS,10/09/2020,9183669449,23.85,HOME BARGAINS
OXFORDSHIRE CC,SOCIAL AND COMMUNITY SERVICES,DIDCOT MOVE-ON HOME,DRUGS AND MEDICAL SUPPLIES,10/09/2020,9183669659,5.97,SUPERDRUG STORES PLC
OXFORDSHIRE CC,ENVIRONMENT AND ECONOMY,COUNTY LIBRARY,GENERAL MAINTENANCE,10/09/2020,9183669567,64.26,LOCHINVAR LTD
OXFORDSHIRE CC,SOCIAL AND COMMUNITY SERVICES,DIDCOT MOVE-ON HOME,CATERING PROVISIONS,10/09/2020,9183669655,2.75,SAINSBURYS SACAT 2067
OXFORDSHIRE CC,"CHILDRENS, YOUNG PEOPLE AND FAMILIES","	RESIDENTIAL STRATEGY",EDUCATIONAL AND VOCATIONAL TRAINING ,10/09/2020,9183669687,119.70,PROTRAININGS
OXFORDSHIRE CC,"CHILDRENS, YOUNG PEOPLE AND FAMILIES","	RESIDENTIAL STRATEGY",EDUCATIONAL AND VOCATIONAL TRAINING ,10/09/2020,9183669699,478.80,PROTRAININGS
OXFORDSHIRE CC,"CHILDRENS, YOUNG PEOPLE AND FAMILIES","	LOOKED AFTER SOUTH",OTHER TRANSPORT ARRANGEMENTS,10/09/2020,9183669395,78.75,WWW.THEKEY.CO.UK
OXFORDSHIRE CC,SOCIAL AND COMMUNITY SERVICES,COMMENTS&INFORMATION,STATIONERY,10/09/2020,9183670049,2.49,WH SMITH
OXFORDSHIRE CC,"CHILDRENS, YOUNG PEOPLE AND FAMILIES",DIDCOT MOVE-ON HOME,CATERING PROVISIONS,10/09/2020,9183670933,3.00,SAINSBURYS SACAT 2067
OXFORDSHIRE CC,SOCIAL AND COMMUNITY SERVICES,COMMENTS&INFORMATION,STATIONERY,10/09/2020,9183670043,8.25,WILKO RETAIL LIMITED
OXFORDSHIRE CC,"CHILDRENS, YOUNG PEOPLE AND FAMILIES",DIDCOT MOVE-ON HOME,CATERING PROVISIONS,10/09/2020,9183670929,4.75,SAINSBURYS SACAT 2067
OXFORDSHIRE CC,"CHILDRENS, YOUNG PEOPLE AND FAMILIES",DIDCOT MOVE-ON HOME,CATERING PROVISIONS,10/09/2020,9183670943,2.00,SAINSBURYS SACAT 2067
OXFORDSHIRE CC,SOCIAL AND COMMUNITY SERVICES,COMMENTS&INFORMATION,POSTAGE AND DELIVERY,10/09/2020,9183670035,14.20,POST OFFICE COUNTER
OXFORDSHIRE CC,SOCIAL AND COMMUNITY SERVICES,CSS WALLINGFORD,CATERING PROVISIONS,10/09/2020,9183669875,2.30,WAITROSE 675
OXFORDSHIRE CC,"CHILDRENS, YOUNG PEOPLE AND FAMILIES",STH EARLY HELP-ABNDN,OTHER TRANSPORT ARRANGEMENTS,10/09/2020,9183669441,21.00,WWW.THEKEY.CO.UK
OXFORDSHIRE CC,SOCIAL AND COMMUNITY SERVICES,LOOKED AFTER SOUTH,OTHER TRANSPORT ARRANGEMENTS,10/09/2020,9183669903,4.00,OXPENS CAR PARK
OXFORDSHIRE CC,"CHILDRENS, YOUNG PEOPLE AND FAMILIES",KINGFISHER,TELEPHONE - EQUIPMENT,10/09/2020,9183671233,10.00,WWW.THREE.CO.UK
OXFORDSHIRE CC,ENVIRONMENT AND ECONOMY,HARD FM,IT SOFTWARE,10/09/2020,9183669503,180.42,SAFETYCULTURE
OXFORDSHIRE CC,ENVIRONMENT AND ECONOMY,HARD FM,IT SOFTWARE,10/09/2020,9183669495,180.42,SAFETYCULTURE
OXFORDSHIRE CC,ENVIRONMENT AND ECONOMY,COUNTY LIBRARY,IT SOFTWARE,10/09/2020,9183669559,180.42,SAFETYCULTURE
OXFORDSHIRE CC,ENVIRONMENT AND ECONOMY,HARD FM,IT SOFTWARE,10/09/2020,9183669537,180.42,SAFETYCULTURE
OXFORDSHIRE CC,ENVIRONMENT AND ECONOMY,HARD FM,IT SOFTWARE,10/09/2020,9183669525,180.42,SAFETYCULTURE
OXFORDSHIRE CC,ENVIRONMENT AND ECONOMY,HARD FM,IT SOFTWARE,10/09/2020,9183669517,360.84,SAFETYCULTURE
OXFORDSHIRE CC,ENVIRONMENT AND ECONOMY,HARD FM,IT SOFTWARE,10/09/2020,9183669489,180.42,SAFETYCULTURE
OXFORDSHIRE CC,SOCIAL AND COMMUNITY SERVICES,"	KINGFISHER",CATERING,10/09/2020,9183669983,8.22,COSTA COFFEE 43039930
OXFORDSHIRE CC,"CHILDRENS, YOUNG PEOPLE AND FAMILIES","	FAM SUPP SOUTH",DOMESTIC SUPPLIES,10/09/2020,9183669939,199.99,ARGOS LTD
OXFORDSHIRE CC,"CHILDRENS, YOUNG PEOPLE AND FAMILIES","	FAM SUPP SOUTH",DOMESTIC SUPPLIES,10/09/2020,9183669955,399.98,ARGOS LTD
OXFORDSHIRE CC,"CHILDRENS, YOUNG PEOPLE AND FAMILIES",CSC COVID-19,TELEPHONE - EQUIPMENT,10/09/2020,9183669811,20.00,VESTA   VODAFONE TOPUP
OXFORDSHIRE CC,CORPORATE CORE,"	LEGAL SERVICES",PAYMENT TO GOVERNMENT DEPARTMENTS,10/09/2020,9183670675,750.00,OXFORD CITY COUNCIL DO
OXFORDSHIRE CC,CORPORATE CORE,,"SUPPLIES, STATIONERY AND MATERIALS",10/09/2020,9183671251,47.81,LYRECO UK LTD
OXFORDSHIRE CC,CORPORATE CORE,,"SUPPLIES, STATIONERY AND MATERIALS",10/09/2020,9183671243,33.58,LYRECO UK LTD
OXFORDSHIRE CC,"CHILDRENS, YOUNG PEOPLE AND FAMILIES",CNTL ERLY HELP-BBLEY,HARDWARE AND CROCKERY,10/09/2020,9183671159,2.68,TOOLSTATION LTD
OXFORDSHIRE CC,SOCIAL AND COMMUNITY SERVICES,CSS BICESTER,MATERIALS,10/09/2020,9183669799,53.35,AMZNMKTPLACE
OXFORDSHIRE CC,"CHILDRENS, YOUNG PEOPLE AND FAMILIES","	LOOKED AFTER SOUTH",PAYMENT TO GOVERNMENT DEPARTMENTS,10/09/2020,9183671115,23.00,DVSA  LEARNER
OXFORDSHIRE CC,SOCIAL AND COMMUNITY SERVICES,CSS WITNEY,MATERIALS,10/09/2020,9183670753,4.99,AMZNMKTPLACE AMAZON.CO
OXFORDSHIRE CC,"CHILDRENS, YOUNG PEOPLE AND FAMILIES","	LEAVING CARE NORTH",OTHER EXPENSES,10/09/2020,9183669855,10.65,CAFFE NERO BANBURY
OXFORDSHIRE CC,SOCIAL AND COMMUNITY SERVICES,CSS - OXFORD,MATERIALS,10/09/2020,9183669843,21.98,AMZNMKTPLACE AMAZON.CO
OXFORDSHIRE CC,"CHILDRENS, YOUNG PEOPLE AND FAMILIES","	40 THE MOORS",HIRED AND CONTRACTED SERVICES,10/09/2020,9183670055,14.00,KIDLINGTON BARBERS
OXFORDSHIRE CC,SOCIAL AND COMMUNITY SERVICES,CSS - BANBURY,HEALTH AND SAFETY EQUIPMENT,10/09/2020,9183670897,26.79,AMZNMKTPLACE AMAZON.CO
OXFORDSHIRE CC,ENVIRONMENT AND ECONOMY,HARD FM,EQUIPMENT,10/09/2020,9183669481,22.54,W F SENATE
OXFORDSHIRE CC,CORPORATE CORE,OTHER,MATERIALS,10/09/2020,9183670805,10.99,AMZNMKTPLACE AMAZON.CO
OXFORDSHIRE CC,CORPORATE CORE,OTHER,MATERIALS,10/09/2020,9183670799,14.99,AMZNMKTPLACE AMAZON.CO
OXFORDSHIRE CC,"CHILDRENS, YOUNG PEOPLE AND FAMILIES",NORTH FSS- WITNEY,HIRE OF ACCOMMODATION AND FACILITIES,10/09/2020,9183669307,41.49,PREMIER INN
OXFORDSHIRE CC,"CHILDRENS, YOUNG PEOPLE AND FAMILIES",NORTH FSS- WITNEY,HIRE OF ACCOMMODATION AND FACILITIES,10/09/2020,9183669299,43.99,PREMIER INN
OXFORDSHIRE CC,SOCIAL AND COMMUNITY SERVICES,CSS WITNEY,MATERIALS,09/09/2020,9181192387,10.26,AMAZON.CO.UK XI61N03U5
OXFORDSHIRE CC,"CHILDRENS, YOUNG PEOPLE AND FAMILIES",KINGFISHER,MATERIALS,09/09/2020,9181192027,22.40,AMZNMKTPLACE
OXFORDSHIRE CC,SOCIAL AND COMMUNITY SERVICES,CSS BICESTER,MATERIALS,09/09/2020,9181191651,31.24,AMZNMKTPLACE
OXFORDSHIRE CC,SOCIAL AND COMMUNITY SERVICES,CSS BICESTER,MATERIALS,09/09/2020,9181191645,5.82,AMZNMKTPLACE
OXFORDSHIRE CC,CORPORATE CORE,HISTORY SERVICE,FURNITURE,09/09/2020,9181192247,6.00,AMZNMKTPLACE
OXFORDSHIRE CC,"CHILDRENS, YOUNG PEOPLE AND FAMILIES","	MALTFIELD HOUSE",CATERING PROVISIONS,09/09/2020,9181192471,5.00,CO-OP GROUP 070582
OXFORDSHIRE CC,"CHILDRENS, YOUNG PEOPLE AND FAMILIES",0-5 STDS & PROGRESS,MATERIALS,09/09/2020,9181192719,4.50,AMAZON.CO.UK 6A56I8ZP5
OXFORDSHIRE CC,"CHILDRENS, YOUNG PEOPLE AND FAMILIES","	MALTFIELD HOUSE",CATERING PROVISIONS,09/09/2020,9181192467,6.50,SAINSBURYS 0632
OXFORDSHIRE CC,"CHILDRENS, YOUNG PEOPLE AND FAMILIES","	40 THE MOORS",CATERING PROVISIONS,09/09/2020,9181191473,32.33,B&M 515 - ABINGDON
OXFORDSHIRE CC,"CHILDRENS, YOUNG PEOPLE AND FAMILIES","	MALTFIELD HOUSE",CATERING PROVISIONS,09/09/2020,9181192463,15.93,POUNDSTRETCHER 700
OXFORDSHIRE CC,"CHILDRENS, YOUNG PEOPLE AND FAMILIES","	40 THE MOORS",CATERING,09/09/2020,9181191471,7.50,COSTA COFFEE 43043010
OXFORDSHIRE CC,"CHILDRENS, YOUNG PEOPLE AND FAMILIES",DIDCOT MOVE-ON HOME,CATERING,09/09/2020,9181191819,11.35,SAINSBURYS SACAT 2067
OXFORDSHIRE CC,"CHILDRENS, YOUNG PEOPLE AND FAMILIES",WITNEY,CATERING PROVISIONS,09/09/2020,9181191385,20.12,LIDL GB  WITNEY
OXFORDSHIRE CC,"CHILDRENS, YOUNG PEOPLE AND FAMILIES","	RESIDENTIAL STRATEGY",CATERING PROVISIONS,09/09/2020,9181191379,12.99,T K MAXX
OXFORDSHIRE CC,"CHILDRENS, YOUNG PEOPLE AND FAMILIES","	LOOKED AFTER SOUTH",MATERIALS,09/09/2020,9181192857,5.00,POUNDLAND LTD 1366
OXFORDSHIRE CC,SOCIAL AND COMMUNITY SERVICES,LEAVING CARE NORTH,CATERING PROVISIONS,09/09/2020,9181192273,4.72,GENERAL STORES & POST
OXFORDSHIRE CC,SOCIAL AND COMMUNITY SERVICES,LEAVING CARE NORTH,POSTAGE AND DELIVERY,09/09/2020,9181192279,20.00,POST OFFICE COUNTER
OXFORDSHIRE CC,"CHILDRENS, YOUNG PEOPLE AND FAMILIES","	LOOKED AFTER SOUTH",CATERING,09/09/2020,9181192859,6.25,GREGGS
OXFORDSHIRE CC,CORPORATE CORE,LIBRARY COLLECTIONS,"BOOKS, DVDS AND CDS",09/09/2020,9181191619,711.25,OVERDRIVE DIST
OXFORDSHIRE CC,"CHILDRENS, YOUNG PEOPLE AND FAMILIES",KINGFISHER,CATERING,09/09/2020,9181192031,6.78,MCDONALDS
OXFORDSHIRE CC,"CHILDRENS, YOUNG PEOPLE AND FAMILIES",THAME E&A HOME,CATERING PROVISIONS,09/09/2020,9181191421,27.90,SAINSBURYS 2096
OXFORDSHIRE CC,ENVIRONMENT AND ECONOMY,LIB ICT SUPPRT&MAINT,MATERIALS,09/09/2020,9181191787,81.00,AMZNMKTPLACE
OXFORDSHIRE CC,SOCIAL AND COMMUNITY SERVICES,CSS WITNEY,MATERIALS,09/09/2020,9181192393,19.99,AMZNMKTPLACE
OXFORDSHIRE CC,"CHILDRENS, YOUNG PEOPLE AND FAMILIES","	LEAVING CARE NORTH",OTHER TRANSPORT ARRANGEMENTS,09/09/2020,9181192849,7.00,WESTGATE SHOPPING CENT
OXFORDSHIRE CC,"CHILDRENS, YOUNG PEOPLE AND FAMILIES","	RESIDENTIAL STRATEGY",CATERING PROVISIONS,09/09/2020,9181191375,9.00,SAINSBURYS SACAT 0631
OXFORDSHIRE CC,CORPORATE CORE,INCOME TEAM,PAYMENT TO GOVERNMENT DEPARTMENTS,09/09/2020,9181192925,11.00,GEN REGISTER OFFICE
OXFORDSHIRE CC,"CHILDRENS, YOUNG PEOPLE AND FAMILIES","	LEAVING CARE NORTH",HIRED AND CONTRACTED SERVICES,09/09/2020,9181191449,125.00,MAGENTA STORAGE
OXFORDSHIRE CC,CORPORATE CORE,"	MEMBERS ALLOWANCES",HIRED AND CONTRACTED SERVICES,09/09/2020,9181192105,342.00,IPF
OXFORDSHIRE CC,"CHILDRENS, YOUNG PEOPLE AND FAMILIES","	LOOKED AFTER CITY 2",PAYMENT TO GOVERNMENT DEPARTMENTS,09/09/2020,9181192159,785.94,OXFORD CITY COUNCIL
OXFORDSHIRE CC,"CHILDRENS, YOUNG PEOPLE AND FAMILIES","	LOOKED AFTER CITY 2",PAYMENT TO GOVERNMENT DEPARTMENTS,09/09/2020,9181192163,785.94,OXFORD CITY COUNCIL
OXFORDSHIRE CC,"CHILDRENS, YOUNG PEOPLE AND FAMILIES","	LOOKED AFTER CITY 2",PAYMENT TO GOVERNMENT DEPARTMENTS,09/09/2020,9181192155,785.94,OXFORD CITY COUNCIL
OXFORDSHIRE CC,"CHILDRENS, YOUNG PEOPLE AND FAMILIES",STH EARLY HELP-ABNDN,PAYMENT TO GOVERNMENT DEPARTMENTS,09/09/2020,9181191361,56.00,VALE OF WHITEHORSE
OXFORDSHIRE CC,"CHILDRENS, YOUNG PEOPLE AND FAMILIES","	LOOKED AFTER SOUTH",CATERING,09/09/2020,9181192851,3.75,COSTA COFFEE ABINGDON
OXFORDSHIRE CC,SOCIAL AND COMMUNITY SERVICES,SCHOOLS FM,CATERING PROVISIONS,09/09/2020,9181191587,5.42,CO-OPERATIVE FOOD
OXFORDSHIRE CC,"CHILDRENS, YOUNG PEOPLE AND FAMILIES","	HOME SUPPORT",GAS,09/09/2020,9181191801,45.01,ALLSTAR BUSINESS SOLUT
OXFORDSHIRE CC,SOCIAL AND COMMUNITY SERVICES,CSS WITNEY,MATERIALS,09/09/2020,9181192383,29.80,AMZNMKTPLACE
OXFORDSHIRE CC,"CHILDRENS, YOUNG PEOPLE AND FAMILIES","	LEAVING CARE SOUTH",CATERING PROVISIONS,09/09/2020,9181192795,37.00,TESCO STORES 4480
OXFORDSHIRE CC,SOCIAL AND COMMUNITY SERVICES,CSS WITNEY,MATERIALS,09/09/2020,9181192377,24.99,AMZNMKTPLACE AMAZON.CO
OXFORDSHIRE CC,"CHILDRENS, YOUNG PEOPLE AND FAMILIES","	LOOKED AFTER SOUTH",PAYMENT TO GOVERNMENT DEPARTMENTS,09/09/2020,9181191341,50.00,GEN REGISTER OFFICE
OXFORDSHIRE CC,"CHILDRENS, YOUNG PEOPLE AND FAMILIES","	LEAVING CARE CITY 2",OTHER EXPENSES,09/09/2020,9181192143,104.00,BEDS TO U
OXFORDSHIRE CC,ENVIRONMENT AND ECONOMY,"	COUNTRYSIDE PREMISES",GENERAL REFUSE COLLECTION AND DISPOSAL,09/09/2020,9181192445,408.00,M & M SKIP HIRE
OXFORDSHIRE CC,ENVIRONMENT AND ECONOMY,"	STREETWORKS CO-ORD",REGISTRATION AND INSPECTION FEES,09/09/2020,9181191659,30.00,PAYPAL  EVENTSINDUS
OXFORDSHIRE CC,"CHILDRENS, YOUNG PEOPLE AND FAMILIES",SOUTH FSS STATUTORY - ABINGDON,MATERIALS,09/09/2020,9181191365,234.00,CURRYS ONLINE
OXFORDSHIRE CC,"CHILDRENS, YOUNG PEOPLE AND FAMILIES",CNTL ERLY HELP-BBLEY,OTHER TRANSPORT ARRANGEMENTS,09/09/2020,9181192895,100.00,BRITANNIA PARKING GROU
OXFORDSHIRE CC,"CHILDRENS, YOUNG PEOPLE AND FAMILIES","	LOOKED AFTER CITY 2",OTHER EXPENSES,09/09/2020,9181192787,266.97,CURRYS OXFORD 2401
OXFORDSHIRE CC,CORPORATE CORE,HOME LIBRARY SERVICE,MATERIALS,09/09/2020,9181192081,35.80,AMZNMKTPLACE
OXFORDSHIRE CC,"CHILDRENS, YOUNG PEOPLE AND FAMILIES","	LOOKED AFTER SOUTH",PAYMENT TO GOVERNMENT DEPARTMENTS,09/09/2020,9181191345,85.00,HM PASSPORT OFFICE
OXFORDSHIRE CC,SOCIAL AND COMMUNITY SERVICES,CSS - ABINGDON,CATERING PROVISIONS,09/09/2020,9181191405,3.00,SAINSBURYS SACAT 2067
OXFORDSHIRE CC,SOCIAL AND COMMUNITY SERVICES,CSS - ABINGDON,CATERING PROVISIONS,09/09/2020,9181191401,39.00,WILKO RETAIL LIMITED
OXFORDSHIRE CC,"CHILDRENS, YOUNG PEOPLE AND FAMILIES","	LEAVING CARE NORTH",OTHER EXPENSES,09/09/2020,9181192845,219.99,AMZNMKTPLACE
OXFORDSHIRE CC,SOCIAL AND COMMUNITY SERVICES,CSS - BANBURY,HEALTH AND SAFETY EQUIPMENT,09/09/2020,9181192603,25.98,AMZNMKTPLACE AMAZON.CO
OXFORDSHIRE CC,"CHILDRENS, YOUNG PEOPLE AND FAMILIES","	RESIDENTIAL STRATEGY",FURNITURE,09/09/2020,9181192267,159.50,MINTY (OXFORD) LTD
OXFORDSHIRE CC,"CHILDRENS, YOUNG PEOPLE AND FAMILIES","	40 THE MOORS",ENTERTAINMENT EXPENSES,09/09/2020,9181191861,2.10,KIDLINGTON LEISURE CEN
OXFORDSHIRE CC,"CHILDRENS, YOUNG PEOPLE AND FAMILIES",FIELDWORK UASC,DRUGS AND MEDICAL SUPPLIES,09/09/2020,9181191889,18.69,"BOOTS,COWLEY"
OXFORDSHIRE CC,"CHILDRENS, YOUNG PEOPLE AND FAMILIES","	40 THE MOORS",CATERING PROVISIONS,09/09/2020,9181191869,155.31,TESCO STORES 4480
OXFORDSHIRE CC,ENTERPRISEVC,,CAR LEASING - PRIVATE RENTALS,09/09/2020,9181192959,128.52,ENTERPRISE RENT-A-CAR
OXFORDSHIRE CC,ENTERPRISEVC,,CAR LEASING - PRIVATE RENTALS,09/09/2020,9181192951,128.52,ENTERPRISE RENT-A-CAR
OXFORDSHIRE CC,ENTERPRISEVC,,CAR LEASING - PRIVATE RENTALS,09/09/2020,9181192945,65.02,ENTERPRISE RENT-A-CAR
OXFORDSHIRE CC,ENTERPRISEVC,,CAR LEASING - PRIVATE RENTALS,09/09/2020,9181192937,69.55,ENTERPRISE RENT-A-CAR
OXFORDSHIRE CC,ENTERPRISEVC,,CAR LEASING - PRIVATE RENTALS,09/09/2020,9181192933,24.82,ENTERPRISE RENT-A-CAR
OXFORDSHIRE CC,CORPORATE CORE,INCOME TEAM,PAYMENT TO GOVERNMENT DEPARTMENTS,09/09/2020,9181191835,1.50,WWW.GOV.UK
OXFORDSHIRE CC,"CHILDRENS, YOUNG PEOPLE AND FAMILIES","	FAM SUPP CITY 1",FURNITURE,09/09/2020,9181191497,79.99,EBAY O 21-05697-14214
OXFORDSHIRE CC,ENVIRONMENT AND ECONOMY,HARD FM,HARDWARE AND CROCKERY,09/09/2020,9181191413,41.94,SCREWFIX DIRECT
OXFORDSHIRE CC,"CHILDRENS, YOUNG PEOPLE AND FAMILIES",CSC COVID-19,TELEPHONE - CALLS,09/09/2020,9181191655,10.00,TESCO ONLINE
OXFORDSHIRE CC,CORPORATE CORE,"	CHAIRMANS ALLOWANCE",PAYMENTS TO VOLUNTARY BODIES,09/09/2020,9181191827,50.00,JUSTGIVING
OXFORDSHIRE CC,SOCIAL AND COMMUNITY SERVICES,COMMENTS&INFORMATION,PURCHASE OF IT EQUIPMENT,09/09/2020,9181191845,7.56,AMAZON.CO.UK SP26L42F5
OXFORDSHIRE CC,"CHILDRENS, YOUNG PEOPLE AND FAMILIES","	40 THE MOORS",MATERIALS,09/09/2020,9181192573,99.95,ARGOS LTD
OXFORDSHIRE CC,ENVIRONMENT AND ECONOMY,AREA OPERATIONS SOUTH STAFF,STATIONERY,09/09/2020,9181191529,68.48,VIKING UK
OXFORDSHIRE CC,SOCIAL AND COMMUNITY SERVICES,DIDCOT MOVE-ON HOME,CATERING PROVISIONS,09/09/2020,9181191481,3.74,SAINSBURYS SACAT 2067
OXFORDSHIRE CC,"CHILDRENS, YOUNG PEOPLE AND FAMILIES",UASC 16&17,OTHER EXPENSES,09/09/2020,9181192825,13.02,TESCO STORE 2413
OXFORDSHIRE CC,ENVIRONMENT AND ECONOMY,"	KNIGHTS COURT",CATERING PROVISIONS,09/09/2020,9181192001,2.98,COWLEY CONVENIENCE STO
OXFORDSHIRE CC,"CHILDRENS, YOUNG PEOPLE AND FAMILIES","	LOOKED AFTER NORTH",HIRE OF ACCOMMODATION AND FACILITIES,09/09/2020,9181192929,85.00,LLETY PANT TEG B&B
OXFORDSHIRE CC,"CHILDRENS, YOUNG PEOPLE AND FAMILIES",EYNSHAM,CATERING PROVISIONS,09/09/2020,9181192817,62.45,TESCO STORES 2008
OXFORDSHIRE CC,"CHILDRENS, YOUNG PEOPLE AND FAMILIES",FIELDWORK UASC,POSTAGE AND DELIVERY,09/09/2020,9181191883,.76,POST OFFICE COUNTER
OXFORDSHIRE CC,"CHILDRENS, YOUNG PEOPLE AND FAMILIES","	FAM SUPP CITY 1",FURNITURE,09/09/2020,9181191503,66.99,EBAY O 21-05697-14215
OXFORDSHIRE CC,"CHILDRENS, YOUNG PEOPLE AND FAMILIES",UASC 16&17,VEHICLE FUEL,09/09/2020,9181191395,25.73,HOPCROFTS HOLT SERVICE
OXFORDSHIRE CC,"CHILDRENS, YOUNG PEOPLE AND FAMILIES","	DISABILITIES TEAM-C",PURCHASE OF IT EQUIPMENT,09/09/2020,9181191457,329.99,WWW.JOHNLEWIS.COM
OXFORDSHIRE CC,"CHILDRENS, YOUNG PEOPLE AND FAMILIES","	DISABILITIES TEAM-C",PURCHASE OF IT EQUIPMENT,09/09/2020,9181191457,40.00,WWW.JOHNLEWIS.COM
OXFORDSHIRE CC,"CHILDRENS, YOUNG PEOPLE AND FAMILIES","	LEADING THE EYFS Q&I",MATERIALS,09/09/2020,9181192713,9.97,AMZNMKTPLACE AMAZON.CO
OXFORDSHIRE CC,CORPORATE CORE,"MARKETING, COMMUNICATIONS & ENGAGEMENT",IT SOFTWARE,08/09/2020,9178989481,7.82,RSS.APP
OXFORDSHIRE CC,"CHILDRENS, YOUNG PEOPLE AND FAMILIES","	40 THE MOORS",CATERING,08/09/2020,9178989789,90.88,WWW.PIZZAHUT.CO.UK
OXFORDSHIRE CC,"CHILDRENS, YOUNG PEOPLE AND FAMILIES",DIDCOT MOVE-ON HOME,CATERING PROVISIONS,08/09/2020,9178989221,15.95,SAINSBURYS SACAT 2067
OXFORDSHIRE CC,ENVIRONMENT AND ECONOMY,HARD FM,HARDWARE AND CROCKERY,08/09/2020,9178989085,37.77,SCREWFIX DIRECT
OXFORDSHIRE CC,"CHILDRENS, YOUNG PEOPLE AND FAMILIES",UASC 16&17,OTHER EXPENSES,08/09/2020,9178989935,5.39,MCDONALDS
OXFORDSHIRE CC,"CHILDRENS, YOUNG PEOPLE AND FAMILIES","	LOOKED AFTER CITY 2",OTHER TRANSPORT ARRANGEMENTS,08/09/2020,9178989911,10.00,IZ  ROYAL CARS OXFORD
OXFORDSHIRE CC,"CHILDRENS, YOUNG PEOPLE AND FAMILIES",THAME E&A HOME,CATERING PROVISIONS,08/09/2020,9178989153,6.85,WELCOME BREAK STARBUCK
OXFORDSHIRE CC,"CHILDRENS, YOUNG PEOPLE AND FAMILIES",EYNSHAM,CATERING,08/09/2020,9178989029,3.90,CO-OPERATIVE FOOD
OXFORDSHIRE CC,"CHILDRENS, YOUNG PEOPLE AND FAMILIES","	FAM SUPP CITY 1",OTHER EXPENSES,08/09/2020,9178989157,167.98,HIPPOBAG
OXFORDSHIRE CC,"CHILDRENS, YOUNG PEOPLE AND FAMILIES","	LEAVING CARE SOUTH",EQUIPMENT,08/09/2020,9178989945,8.87,WM MORRISONS STORE
OXFORDSHIRE CC,"CHILDRENS, YOUNG PEOPLE AND FAMILIES",THAME E&A HOME,"SUPPLIES, STATIONERY AND MATERIALS",08/09/2020,9178988995,27.99,GLYNSWOOD OF THAME
OXFORDSHIRE CC,"CHILDRENS, YOUNG PEOPLE AND FAMILIES","	HEARING IMPAIRMENT",DISABILITY AIDS AND EQUIPMENT,08/09/2020,9178989527,18.36,AMZNMKTPLACE
OXFORDSHIRE CC,"CHILDRENS, YOUNG PEOPLE AND FAMILIES","	LOOKED AFTER CITY 2",OTHER TRANSPORT ARRANGEMENTS,08/09/2020,9178989905,30.00,IZ  ROYAL CARS OXFORD
OXFORDSHIRE CC,CORPORATE CORE,"	LEGAL SERVICES",LEGAL COSTS,08/09/2020,9178989645,11.00,OXFORDSHIRE CC MOTO1
OXFORDSHIRE CC,"CHILDRENS, YOUNG PEOPLE AND FAMILIES","	LEAVING CARE NORTH",OTHER EXPENSES,08/09/2020,9178989939,5.00,WWW.SECURE-PAYMENT-SER
OXFORDSHIRE CC,"CHILDRENS, YOUNG PEOPLE AND FAMILIES","	LOOKED AFTER SOUTH",CATERING,08/09/2020,9178989949,7.58,MCDONALDS
OXFORDSHIRE CC,SOCIAL AND COMMUNITY SERVICES,RESIDENTIAL STRATEGY,CLOTHING AND UNIFORMS,08/09/2020,9178989423,25.00,SAINSBURYS SACAT 0631
OXFORDSHIRE CC,"CHILDRENS, YOUNG PEOPLE AND FAMILIES","	DISABILITIES TEAM-C",PURCHASE OF IT EQUIPMENT,08/09/2020,9178989139,59.99,WWW.JOHNLEWIS.COM
OXFORDSHIRE CC,"CHILDRENS, YOUNG PEOPLE AND FAMILIES","	DISABILITIES TEAM-C",PURCHASE OF IT EQUIPMENT,08/09/2020,9178989139,10.00,WWW.JOHNLEWIS.COM
OXFORDSHIRE CC,"CHILDRENS, YOUNG PEOPLE AND FAMILIES","	RESIDENTIAL STRATEGY",CATERING PROVISIONS,08/09/2020,9178989701,33.51,SAINSBURYS 0631
OXFORDSHIRE CC,"CHILDRENS, YOUNG PEOPLE AND FAMILIES","	RESIDENTIAL STRATEGY",CATERING PROVISIONS,08/09/2020,9178989705,16.50,SAINSBURYS 0631
OXFORDSHIRE CC,"CHILDRENS, YOUNG PEOPLE AND FAMILIES","	RESIDENTIAL STRATEGY",CATERING PROVISIONS,08/09/2020,9178989047,14.20,SAINSBURYS SACAT 0631
OXFORDSHIRE CC,"CHILDRENS, YOUNG PEOPLE AND FAMILIES","	LOOKED AFTER SOUTH",CLOTHING AND UNIFORMS,08/09/2020,9178989953,91.00,J D SPORTS
OXFORDSHIRE CC,"CHILDRENS, YOUNG PEOPLE AND FAMILIES","	LEAVING CARE NORTH",MATERIALS,08/09/2020,9178989723,123.98,SPORTSDIRECT.COM
OXFORDSHIRE CC,ENVIRONMENT AND ECONOMY,HARD FM,HARDWARE AND CROCKERY,08/09/2020,9178989077,20.97,SCREWFIX DIRECT
OXFORDSHIRE CC,"CHILDRENS, YOUNG PEOPLE AND FAMILIES","	LEAVING CARE SOUTH",CLOTHING AND UNIFORMS,08/09/2020,9178989943,20.20,ASDA STORE 4442
OXFORDSHIRE CC,"CHILDRENS, YOUNG PEOPLE AND FAMILIES",MODERATION,"BOOKS, DVDS AND CDS",08/09/2020,9178989829,38.95,WWW.EARLYEXCELLENCE.CO
OXFORDSHIRE CC,"CHILDRENS, YOUNG PEOPLE AND FAMILIES","	LOOKED AFTER SOUTH",HIRE OF ACCOMMODATION AND FACILITIES,08/09/2020,9178989011,236.00,THE HIGHFIELD
OXFORDSHIRE CC,SHARED SERVICES,CSC SUPP & SERVICES,MATERIALS,08/09/2020,9178989459,119.99,DOMU
OXFORDSHIRE CC,"CHILDRENS, YOUNG PEOPLE AND FAMILIES",MODERATION,"BOOKS, DVDS AND CDS",08/09/2020,9178989823,38.95,WWW.EARLYEXCELLENCE.CO
OXFORDSHIRE CC,"CHILDRENS, YOUNG PEOPLE AND FAMILIES","	LEAVING CARE NORTH",FURNITURE,08/09/2020,9178989103,55.00,SIMBASLEEP
OXFORDSHIRE CC,"CHILDRENS, YOUNG PEOPLE AND FAMILIES","	LEAVING CARE NORTH",FURNITURE,08/09/2020,9178989093,628.26,SIMBASLEEP
OXFORDSHIRE CC,"CHILDRENS, YOUNG PEOPLE AND FAMILIES",UASC POST 18,OTHER TRANSPORT ARRANGEMENTS,08/09/2020,9178989375,3.00,WESTGATE SHOPPING CENT
OXFORDSHIRE CC,"CHILDRENS, YOUNG PEOPLE AND FAMILIES",THAME E&A HOME,CATERING PROVISIONS,08/09/2020,9178989417,1.95,SAINSBURYS SACAT 2096
OXFORDSHIRE CC,"CHILDRENS, YOUNG PEOPLE AND FAMILIES","	LOOKED AFTER CITY 1",CATERING PROVISIONS,08/09/2020,9178989225,40.00,SPAR EYNSHAM
OXFORDSHIRE CC,"CHILDRENS, YOUNG PEOPLE AND FAMILIES","	LEAVING CARE NORTH",MATERIALS,08/09/2020,9178989111,33.34,ARGOS LTD
OXFORDSHIRE CC,"CHILDRENS, YOUNG PEOPLE AND FAMILIES","	LEAVING CARE NORTH",MATERIALS,08/09/2020,9178989115,379.00,ARGOS LTD
OXFORDSHIRE CC,"CHILDRENS, YOUNG PEOPLE AND FAMILIES","	RIVERSIDE CENTRE",POSTAGE AND DELIVERY,08/09/2020,9178989649,3.28,POST OFFICE COUNTER
OXFORDSHIRE CC,SOCIAL AND COMMUNITY SERVICES,CSS - OXFORD,CATERING PROVISIONS,08/09/2020,9178989545,183.05,TESCO STORE 2994
OXFORDSHIRE CC,"CHILDRENS, YOUNG PEOPLE AND FAMILIES",FIELDWORK UASC,MATERIALS,08/09/2020,9178989447,99.99,AMAZON.CO.UK LV0SP4MY5
OXFORDSHIRE CC,"CHILDRENS, YOUNG PEOPLE AND FAMILIES","	LEADING THE EYFS Q&I","BOOKS, DVDS AND CDS",08/09/2020,9178989833,9.00,AMZNMKTPLACE
OXFORDSHIRE CC,"CHILDRENS, YOUNG PEOPLE AND FAMILIES",NTH FAM SUPRT-BCSTR,OTHER EXPENSES,08/09/2020,9178989803,10.10,CO-OPERATIVE FOOD
OXFORDSHIRE CC,"CHILDRENS, YOUNG PEOPLE AND FAMILIES","	LOOKED AFTER CITY 2","SUPPLIES, STATIONERY AND MATERIALS",08/09/2020,9178989367,262.98,WWW.JOHNLEWIS.COM
OXFORDSHIRE CC,ENVIRONMENT AND ECONOMY,HARD FM,MATERIALS,08/09/2020,9178989079,333.98,PAYPAL  KJPLUMBINGF
OXFORDSHIRE CC,ENVIRONMENT AND ECONOMY,HARD FM,GENERAL MAINTENANCE,08/09/2020,9178989065,14.10,WOLSELEY UK
OXFORDSHIRE CC,"CHILDRENS, YOUNG PEOPLE AND FAMILIES","	LEADING THE EYFS Q&I",MATERIALS,08/09/2020,9178989807,139.99,AMZNMKTPLACE
OXFORDSHIRE CC,"CHILDRENS, YOUNG PEOPLE AND FAMILIES",NTH EARLY HELP-WITNY,GAS,08/09/2020,9178989475,76.00,ALLSTAR BUSINESS SOLUT
OXFORDSHIRE CC,"CHILDRENS, YOUNG PEOPLE AND FAMILIES","	LEADING THE EYFS Q&I",MATERIALS,08/09/2020,9178989813,49.99,AMZNMKTPLACE
OXFORDSHIRE CC,"CHILDRENS, YOUNG PEOPLE AND FAMILIES",CNTL ERLY HELP-BBLEY,"NEWSPAPERS, PERIODICALS AND PUBLICATIONS",08/09/2020,9178989901,5.99,WORLDOFBOOKS.COM
OXFORDSHIRE CC,"CHILDRENS, YOUNG PEOPLE AND FAMILIES","	LEADING THE EYFS Q&I",MATERIALS,08/09/2020,9178989817,27.00,AMZNMKTPLACE
OXFORDSHIRE CC,"CHILDRENS, YOUNG PEOPLE AND FAMILIES","	LOOKED AFTER NORTH",PAYMENT TO GOVERNMENT DEPARTMENTS,08/09/2020,9178989249,38.00,GEN REGISTER OFFICE
OXFORDSHIRE CC,"CHILDRENS, YOUNG PEOPLE AND FAMILIES","	LEADING THE EYFS Q&I",MATERIALS,08/09/2020,9178989809,27.00,AMZNMKTPLACE
OXFORDSHIRE CC,"CHILDRENS, YOUNG PEOPLE AND FAMILIES","	LEADING THE EYFS Q&I",MATERIALS,08/09/2020,9178989821,9.97,AMZNMKTPLACE
OXFORDSHIRE CC,ENVIRONMENT AND ECONOMY,AREA OPERATIONS SOUTH STAFF,MATERIALS,08/09/2020,9178989169,18.99,AMZNMKTPLACE
OXFORDSHIRE CC,CORPORATE CORE,,"SUPPLIES, STATIONERY AND MATERIALS",08/09/2020,9178990059,44.94,LYRECO UK LTD
OXFORDSHIRE CC,ENVIRONMENT AND ECONOMY,HARD FM,HARDWARE AND CROCKERY,08/09/2020,9178989073,25.88,WICKES OXFORD
OXFORDSHIRE CC,"CHILDRENS, YOUNG PEOPLE AND FAMILIES",CNTL ERLY HELP-BBLEY,CATERING PROVISIONS,08/09/2020,9178989961,12.87,ALDI STORES 775-142
OXFORDSHIRE CC,"CHILDRENS, YOUNG PEOPLE AND FAMILIES",EYNSHAM,IT SOFTWARE,08/09/2020,9178989921,13.00,MAYFIELDEGGS
OXFORDSHIRE CC,"CHILDRENS, YOUNG PEOPLE AND FAMILIES",THAME E&A HOME,CATERING PROVISIONS,08/09/2020,9178989361,150.25,TESCO STORES 2038
OXFORDSHIRE CC,SOCIAL AND COMMUNITY SERVICES,CSS WITNEY,CATERING PROVISIONS,08/09/2020,9178989745,112.50,TESCO STORES 2008
OXFORDSHIRE CC,SOCIAL AND COMMUNITY SERVICES,CSS - BANBURY,CATERING PROVISIONS,08/09/2020,9178989289,89.45,SAINSBURYS TO YOU 0642
OXFORDSHIRE CC,"CHILDRENS, YOUNG PEOPLE AND FAMILIES",NTH FAM SUPRT-BCSTR,PAYMENTS TO TRANSPORT OPERATORS,08/09/2020,9178989279,-5.55,TRAINLINE
OXFORDSHIRE CC,SOCIAL AND COMMUNITY SERVICES,CSS WALLINGFORD,MATERIALS,08/09/2020,9178989301,15.99,AMZNMKTPLACE AMAZON.CO
OXFORDSHIRE CC,"CHILDRENS, YOUNG PEOPLE AND FAMILIES","	40 THE MOORS",OTHER TRANSPORT ARRANGEMENTS,08/09/2020,9178989149,3.00,WESTGATE SHOPPING CENT
OXFORDSHIRE CC,CORPORATE CORE,SCHOOLS FM,MATERIALS,08/09/2020,9178989297,61.96,AMZNMKTPLACE AMAZON.CO
OXFORDSHIRE CC,SOCIAL AND COMMUNITY SERVICES,RESIDENTIAL STRATEGY,DRUGS AND MEDICAL SUPPLIES,08/09/2020,9178989427,5.00,TESCO STORE 2413
OXFORDSHIRE CC,ENVIRONMENT AND ECONOMY,HARD FM,EQUIPMENT,08/09/2020,9178989059,5.22,W F SENATE
OXFORDSHIRE CC,CORPORATE CORE,"MARKETING, COMMUNICATIONS & ENGAGEMENT",IT SOFTWARE,07/09/2020,7315302436,174.87,MAILCHIMP
OXFORDSHIRE CC,"CHILDRENS, YOUNG PEOPLE AND FAMILIES",NRPF & HOMELESSNESS,CATERING PROVISIONS,07/09/2020,7315302654,2.30,SELECTA U.K. LIMITED
OXFORDSHIRE CC,"CHILDRENS, YOUNG PEOPLE AND FAMILIES",NRPF & HOMELESSNESS,CATERING PROVISIONS,07/09/2020,7315302652,1.70,SELECTA U.K. LIMITED
OXFORDSHIRE CC,"CHILDRENS, YOUNG PEOPLE AND FAMILIES",THAME E&A HOME,MATERIALS,07/09/2020,7315302692,7.99,AMAZON PRIME D432I5795
OXFORDSHIRE CC,"CHILDRENS, YOUNG PEOPLE AND FAMILIES","	40 THE MOORS",TELEPHONE - EQUIPMENT,07/09/2020,7315302240,35.00,EE TOP UP VESTA
OXFORDSHIRE CC,"CHILDRENS, YOUNG PEOPLE AND FAMILIES","	40 THE MOORS",CATERING,07/09/2020,7315302244,11.00,THE SHAKE LAB
OXFORDSHIRE CC,"CHILDRENS, YOUNG PEOPLE AND FAMILIES",DIDCOT MOVE-ON HOME,CATERING PROVISIONS,07/09/2020,7315302282,19.35,SAINSBURYS SACAT 2067
OXFORDSHIRE CC,CORPORATE CORE,ICT OPERATIONS & MAI,MATERIALS,07/09/2020,7315302676,41.64,AMAZON.CO.UK Q47GJ8AL5
OXFORDSHIRE CC,"CHILDRENS, YOUNG PEOPLE AND FAMILIES","	40 THE MOORS",MATERIALS,07/09/2020,7315302242,33.95,ARGOS LTD
OXFORDSHIRE CC,"CHILDRENS, YOUNG PEOPLE AND FAMILIES",EYNSHAM,CATERING PROVISIONS,07/09/2020,7315302696,32.95,SAINSBURYS SACAT 0631
OXFORDSHIRE CC,CORPORATE CORE,SCHOOLS FM,CATERING,07/09/2020,7315302320,78.12,BOOKER LIMITED OXFORD
OXFORDSHIRE CC,"CHILDRENS, YOUNG PEOPLE AND FAMILIES","	40 THE MOORS",MATERIALS,07/09/2020,7315302638,22.98,SPORTSDIRECT.COM
OXFORDSHIRE CC,"CHILDRENS, YOUNG PEOPLE AND FAMILIES",EYNSHAM,CATERING,07/09/2020,7315302694,13.50,SAN REMO OUTDOORS LTD
OXFORDSHIRE CC,"CHILDRENS, YOUNG PEOPLE AND FAMILIES",THAME E&A HOME,"BOOKS, DVDS AND CDS",07/09/2020,7315302202,7.99,KINDLE UNLTD
OXFORDSHIRE CC,SOCIAL AND COMMUNITY SERVICES,DIDCOT MOVE-ON HOME,CATERING PROVISIONS,07/09/2020,7315302248,7.25,SAINSBURYS SACAT 2067
OXFORDSHIRE CC,CORPORATE CORE,SCHOOLS FM,MATERIALS,07/09/2020,7315302318,29.98,AMZNMKTPLACE
OXFORDSHIRE CC,"CHILDRENS, YOUNG PEOPLE AND FAMILIES",EYNSHAM,CATERING PROVISIONS,07/09/2020,7315302698,12.59,CO-OPERATIVE FOOD
OXFORDSHIRE CC,"CHILDRENS, YOUNG PEOPLE AND FAMILIES","	FAMILY SUPPORT CITY3",CATERING,07/09/2020,7315302770,4.55,MCDONALDS
OXFORDSHIRE CC,"CHILDRENS, YOUNG PEOPLE AND FAMILIES","	FAMILY SUPPORT CITY3",CATERING,07/09/2020,7315302768,4.78,MCDONALDS
OXFORDSHIRE CC,"CHILDRENS, YOUNG PEOPLE AND FAMILIES",EYNSHAM,CATERING PROVISIONS,07/09/2020,7315302688,.95,CO-OPERATIVE FOOD
OXFORDSHIRE CC,"CHILDRENS, YOUNG PEOPLE AND FAMILIES",EYNSHAM,CATERING PROVISIONS,07/09/2020,7315302686,8.54,SAINSBURYS SACAT 0631
OXFORDSHIRE CC,"CHILDRENS, YOUNG PEOPLE AND FAMILIES","	FAMILY SUPPORT CITY3",CATERING PROVISIONS,07/09/2020,7315302762,6.59,OXFORD PEARTREE KFC
OXFORDSHIRE CC,"CHILDRENS, YOUNG PEOPLE AND FAMILIES","	FAMILY SUPPORT CITY3",CATERING PROVISIONS,07/09/2020,7315302764,9.38,OXFORD PEARTREE KFC
OXFORDSHIRE CC,"CHILDRENS, YOUNG PEOPLE AND FAMILIES","	FAMILY SUPPORT CITY3",CATERING PROVISIONS,07/09/2020,7315302760,12.85,TESCO STORE 2994
OXFORDSHIRE CC,"CHILDRENS, YOUNG PEOPLE AND FAMILIES","	40 THE MOORS",CATERING,07/09/2020,7315302632,5.97,MCDONALDS
OXFORDSHIRE CC,"CHILDRENS, YOUNG PEOPLE AND FAMILIES","	40 THE MOORS",DRUGS AND MEDICAL SUPPLIES,07/09/2020,7315302636,7.38,SUPERDRUG STORES PLC
OXFORDSHIRE CC,"CHILDRENS, YOUNG PEOPLE AND FAMILIES",WITNEY,CATERING PROVISIONS,07/09/2020,7315302204,3.80,SAINSBURYS SACAT 0632
OXFORDSHIRE CC,"CHILDRENS, YOUNG PEOPLE AND FAMILIES","	40 THE MOORS",CLOTHING AND UNIFORMS,07/09/2020,7315302624,84.50,PRIMARK 440
OXFORDSHIRE CC,"CHILDRENS, YOUNG PEOPLE AND FAMILIES","	40 THE MOORS",MATERIALS,07/09/2020,7315302634,280.00,J D SPORTS FASHION
OXFORDSHIRE CC,"CHILDRENS, YOUNG PEOPLE AND FAMILIES","	FAMILY SUPPORT CITY3",OTHER TRANSPORT ARRANGEMENTS,07/09/2020,7315302766,4.00,APCOA PARKING
OXFORDSHIRE CC,CORPORATE CORE,"MARKETING, COMMUNICATIONS & ENGAGEMENT","PUBLICITY, PROMOTIONS AND ADVERTISEMENT",07/09/2020,7315302430,500.00,FACEBK NGLUAX69Z2
OXFORDSHIRE CC,CORPORATE CORE,"MARKETING, COMMUNICATIONS & ENGAGEMENT",IT SOFTWARE,07/09/2020,7315302434,19.52,ZAPIER.COM/CHARGE
OXFORDSHIRE CC,"CHILDRENS, YOUNG PEOPLE AND FAMILIES","	40 THE MOORS",MATERIALS,07/09/2020,7315302630,45.50,THE WORKS
OXFORDSHIRE CC,"CHILDRENS, YOUNG PEOPLE AND FAMILIES",THAME E&A HOME,MATERIALS,07/09/2020,7315302166,23.70,AMAZON.CO.UK 625371PS5
OXFORDSHIRE CC,"CHILDRENS, YOUNG PEOPLE AND FAMILIES","	MALTFIELD HOUSE",CATERING PROVISIONS,07/09/2020,7315302182,4.15,WELCOME BREAK
OXFORDSHIRE CC,SOCIAL AND COMMUNITY SERVICES,DIDCOT MOVE-ON HOME,CATERING PROVISIONS,07/09/2020,7315302246,11.08,SAINSBURYS SACAT 2067
OXFORDSHIRE CC,"CHILDRENS, YOUNG PEOPLE AND FAMILIES",EYNSHAM,CATERING PROVISIONS,07/09/2020,7315302276,17.85,CO-OP GROUP 070582
OXFORDSHIRE CC,"CHILDRENS, YOUNG PEOPLE AND FAMILIES",EYNSHAM,CATERING,07/09/2020,7315302278,18.00,THE SHAKE SHOP
OXFORDSHIRE CC,"CHILDRENS, YOUNG PEOPLE AND FAMILIES",EYNSHAM,DRUGS AND MEDICAL SUPPLIES,07/09/2020,7315302280,15.61,"BOOTS,WITNEY"
OXFORDSHIRE CC,"CHILDRENS, YOUNG PEOPLE AND FAMILIES",THAME E&A HOME,CATERING PROVISIONS,07/09/2020,7315302230,75.10,TESCO STORES 2008
OXFORDSHIRE CC,"CHILDRENS, YOUNG PEOPLE AND FAMILIES",UASC 16&17,RESIDENTIAL ACTIVITIES,07/09/2020,7315302704,257.99,CURRYS ONLINE
OXFORDSHIRE CC,"CHILDRENS, YOUNG PEOPLE AND FAMILIES",UASC 16&17,"SUPPLIES, STATIONERY AND MATERIALS",07/09/2020,7315302702,257.99,CURRYS ONLINE
OXFORDSHIRE CC,"CHILDRENS, YOUNG PEOPLE AND FAMILIES",THAME E&A HOME,MATERIALS,07/09/2020,7315302168,39.96,AMZNMKTPLACE
OXFORDSHIRE CC,"CHILDRENS, YOUNG PEOPLE AND FAMILIES","	LEAVING CARE NORTH",MATERIALS,07/09/2020,7315302232,239.99,IDEAS MARKETING
OXFORDSHIRE CC,CORPORATE CORE,"MARKETING, COMMUNICATIONS & ENGAGEMENT","PUBLICITY, PROMOTIONS AND ADVERTISEMENT",07/09/2020,7315302432,500.00,GOOGLE  ADS4896546035
OXFORDSHIRE CC,SOCIAL AND COMMUNITY SERVICES,RESIDENTIAL STRATEGY,MATERIALS,07/09/2020,7315302396,20.00,CARD FACTORY
OXFORDSHIRE CC,SOCIAL AND COMMUNITY SERVICES,RESIDENTIAL STRATEGY,MATERIALS,07/09/2020,7315302394,20.00,CARD FACTORY
OXFORDSHIRE CC,"CHILDRENS, YOUNG PEOPLE AND FAMILIES",CNTL ERLY HELP-BBLEY,FURNITURE,07/09/2020,7315302738,45.00,FREELANCE FABRICS
OXFORDSHIRE CC,"CHILDRENS, YOUNG PEOPLE AND FAMILIES","	40 THE MOORS",OTHER TRANSPORT ARRANGEMENTS,07/09/2020,7315302628,2.20,OXFORD BUS COMPANY
OXFORDSHIRE CC,"CHILDRENS, YOUNG PEOPLE AND FAMILIES","	40 THE MOORS",OTHER TRANSPORT ARRANGEMENTS,07/09/2020,7315302626,2.20,OXFORD BUS COMPANY
OXFORDSHIRE CC,SOCIAL AND COMMUNITY SERVICES,"	HISTORY SERVICE","BOOKS, DVDS AND CDS",07/09/2020,7315302316,-3.79,AMZ AMAZON.CO.UK
OXFORDSHIRE CC,"CHILDRENS, YOUNG PEOPLE AND FAMILIES",CNTL ERLY HELP-BBLEY,IT SOFTWARE,07/09/2020,7315302734,6.00,WIFI: TRAVELODGE - WI
OXFORDSHIRE CC,"CHILDRENS, YOUNG PEOPLE AND FAMILIES",EYNSHAM,CATERING PROVISIONS,07/09/2020,7315302274,4.50,SPAR EYNSHAM
OXFORDSHIRE CC,"CHILDRENS, YOUNG PEOPLE AND FAMILIES",THAME E&A HOME,MATERIALS,07/09/2020,7315302286,7.99,AMAZON PRIME 1T0ZF1IS5
OXFORDSHIRE CC,SOCIAL AND COMMUNITY SERVICES,RESIDENTIAL STRATEGY,CATERING PROVISIONS,07/09/2020,7315302392,12.30,PAK HALAL ERDEM FOOD C
OXFORDSHIRE CC,"CHILDRENS, YOUNG PEOPLE AND FAMILIES",CNTL ERLY HELP-BBLEY,CATERING PROVISIONS,07/09/2020,7315302728,4.69,POLSKI SKLEP ZUBR
OXFORDSHIRE CC,"CHILDRENS, YOUNG PEOPLE AND FAMILIES",FAMILY TIME COSTS,CATERING,07/09/2020,7315302740,19.20,REINA GRILL
OXFORDSHIRE CC,"CHILDRENS, YOUNG PEOPLE AND FAMILIES",CNTL ERLY HELP-BBLEY,CATERING PROVISIONS,07/09/2020,7315302730,7.10,SAINSBURYS SACAT 0631
OXFORDSHIRE CC,"CHILDRENS, YOUNG PEOPLE AND FAMILIES",CNTL ERLY HELP-BBLEY,MATERIALS,07/09/2020,7315302736,49.99,ARGOS KIDLINGTON INSID
OXFORDSHIRE CC,"CHILDRENS, YOUNG PEOPLE AND FAMILIES",FAMILY TIME COSTS,OTHER TRANSPORT ARRANGEMENTS,07/09/2020,7315302732,12.00,APCOA PARKING
OXFORDSHIRE CC,"CHILDRENS, YOUNG PEOPLE AND FAMILIES",THAME E&A HOME,CATERING PROVISIONS,07/09/2020,7315302518,4.40,CO-OP GROUP FOOD
OXFORDSHIRE CC,"CHILDRENS, YOUNG PEOPLE AND FAMILIES",WITNEY,CATERING PROVISIONS,07/09/2020,7315302186,44.83,WM MORRISONS STORE
OXFORDSHIRE CC,"CHILDRENS, YOUNG PEOPLE AND FAMILIES",WITNEY,CATERING PROVISIONS,07/09/2020,7315302184,48.03,WM MORRISONS STORE
OXFORDSHIRE CC,CORPORATE CORE,LIBRARY COLLECTIONS,"BOOKS, DVDS AND CDS",07/09/2020,7315302306,"4,437.37",OVERDRIVE DIST
OXFORDSHIRE CC,CORPORATE CORE,LIBRARY COLLECTIONS,"BOOKS, DVDS AND CDS",07/09/2020,7315302304,8.15,OVERDRIVE DIST
OXFORDSHIRE CC,"CHILDRENS, YOUNG PEOPLE AND FAMILIES",DIDCOT MOVE-ON HOME,CATERING,07/09/2020,7315302386,17.60,SAINSBURYS 2067
OXFORDSHIRE CC,ENVIRONMENT AND ECONOMY,HARD FM,HARDWARE AND CROCKERY,07/09/2020,7315302224,53.29,HOWDENS - OXFORD D879
OXFORDSHIRE CC,"CHILDRENS, YOUNG PEOPLE AND FAMILIES",EYNSHAM,TELEPHONE - EQUIPMENT,07/09/2020,7315302642,10.00,GIFFGAFF
OXFORDSHIRE CC,"CHILDRENS, YOUNG PEOPLE AND FAMILIES",EYNSHAM,TELEPHONE - EQUIPMENT,07/09/2020,7315302644,10.00,GIFFGAFF
OXFORDSHIRE CC,ENVIRONMENT AND ECONOMY,HARD FM,HARDWARE AND CROCKERY,07/09/2020,7315302226,85.16,HOWDENS - OXFORD D879
OXFORDSHIRE CC,"CHILDRENS, YOUNG PEOPLE AND FAMILIES","	FAMILY SUPPORT CITY3",HIRE OF ACCOMMODATION AND FACILITIES,07/09/2020,7315302400,50.00,PP WINSTON GUESTHOUSE
OXFORDSHIRE CC,SOCIAL AND COMMUNITY SERVICES,"	CENTRAL LIBRARY",DRUGS AND MEDICAL SUPPLIES,07/09/2020,7315302538,35.00,BOOTS 0330
OXFORDSHIRE CC,"CHILDRENS, YOUNG PEOPLE AND FAMILIES","	FAMILY SUPPORT CITY3",CATERING,07/09/2020,7315302368,11.98,SUBWAY
OXFORDSHIRE CC,"CHILDRENS, YOUNG PEOPLE AND FAMILIES",THAME E&A HOME,MATERIALS,07/09/2020,7315302164,9.39,AMZNMKTPLACE
OXFORDSHIRE CC,"CHILDRENS, YOUNG PEOPLE AND FAMILIES",THAME E&A HOME,CATERING PROVISIONS,07/09/2020,7315302228,24.93,SAINSBURYS SACAT 2096
OXFORDSHIRE CC,"CHILDRENS, YOUNG PEOPLE AND FAMILIES","	LOOKED AFTER NORTH",OTHER EXPENSES,07/09/2020,7315302326,150.00,ALLPAY  COTTSWAY HOUSI
OXFORDSHIRE CC,"CHILDRENS, YOUNG PEOPLE AND FAMILIES","	LOOKED AFTER NORTH",OTHER EXPENSES,07/09/2020,7315302328,150.00,ALLPAY  COTTSWAY HOUSI
OXFORDSHIRE CC,CORPORATE CORE,MOTOR FLEET,MOTOR IF FEES,07/09/2020,7315302690,42.00,SIDNEY H HOOPER & COMP
OXFORDSHIRE CC,SOCIAL AND COMMUNITY SERVICES,CSS WALLINGFORD,CATERING PROVISIONS,07/09/2020,7315302324,3.60,WAITROSE 675
OXFORDSHIRE CC,"CHILDRENS, YOUNG PEOPLE AND FAMILIES","	LOOKED AFTER CITY 2",HARDWARE AND CROCKERY,07/09/2020,7315302506,17.00,YARNTON NURSERIES
OXFORDSHIRE CC,"CHILDRENS, YOUNG PEOPLE AND FAMILIES",WITNEY,CATERING PROVISIONS,07/09/2020,7315302188,4.25,TESCO PFS 3418
OXFORDSHIRE CC,"CHILDRENS, YOUNG PEOPLE AND FAMILIES","	FAMILY SUPPORT CITY3",PAYMENT TO GOVERNMENT DEPARTMENTS,07/09/2020,7315302364,4.50,THE LOOKOUT DISCOVERY
OXFORDSHIRE CC,"CHILDRENS, YOUNG PEOPLE AND FAMILIES","	FAMILY SUPPORT CITY3",OTHER TRANSPORT ARRANGEMENTS,07/09/2020,7315302366,2.60,BRACKNELL FOREST CNCL
OXFORDSHIRE CC,"CHILDRENS, YOUNG PEOPLE AND FAMILIES","	LOOKED AFTER SOUTH",CATERING PROVISIONS,07/09/2020,7315302718,2.00,SELECTA U.K. LIMITED
OXFORDSHIRE CC,SOCIAL AND COMMUNITY SERVICES,CSS WALLINGFORD,CATERING PROVISIONS,07/09/2020,7315302322,17.22,WAITROSE 675
OXFORDSHIRE CC,"CHILDRENS, YOUNG PEOPLE AND FAMILIES","	LOOKED AFTER SOUTH",CATERING PROVISIONS,07/09/2020,7315302716,1.70,SELECTA U.K. LIMITED
OXFORDSHIRE CC,"CHILDRENS, YOUNG PEOPLE AND FAMILIES","	FAMILY SUPPORT CITY3",HIRE OF ACCOMMODATION AND FACILITIES,07/09/2020,7315302398,30.00,PP WINSTON GUESTHOUSE
OXFORDSHIRE CC,"CHILDRENS, YOUNG PEOPLE AND FAMILIES","	RIVERSIDE CENTRE",TRAINING RELATED EXPENDITURE,07/09/2020,7315302516,40.00,CLIMBING CENTRE GR
OXFORDSHIRE CC,CORPORATE CORE,LIBRARY COLLECTIONS,"BOOKS, DVDS AND CDS",07/09/2020,7315302308,261.61,OVERDRIVE DIST
OXFORDSHIRE CC,"CHILDRENS, YOUNG PEOPLE AND FAMILIES","	LOOKED AFTER CITY 2",OTHER TRANSPORT ARRANGEMENTS,07/09/2020,7315302674,41.10,GWR OXFORD TO
OXFORDSHIRE CC,CORPORATE CORE,"MARKETING, COMMUNICATIONS & ENGAGEMENT",HIRED AND CONTRACTED SERVICES,07/09/2020,7315302428,10.65,CANVA  02803-4526178
OXFORDSHIRE CC,"CHILDRENS, YOUNG PEOPLE AND FAMILIES",CNTL EARLY HELP-RHIL,"SUPPLIES, STATIONERY AND MATERIALS",07/09/2020,7315302252,17.40,FAMILY LINKS
OXFORDSHIRE CC,ENVIRONMENT AND ECONOMY,ENV & RES EFF STAFF,HEALTH AND SAFETY EQUIPMENT,07/09/2020,7315302346,147.18,UKOFFICEDIRECT.CO.
OXFORDSHIRE CC,SOCIAL AND COMMUNITY SERVICES,CSS BICESTER,CATERING PROVISIONS,07/09/2020,7315302198,5.00,WILKO RETAIL LIMITED
OXFORDSHIRE CC,"CHILDRENS, YOUNG PEOPLE AND FAMILIES",THAME E&A HOME,VEHICLE FUEL,07/09/2020,7315302440,4.10,THAME BP SF CONNECT
OXFORDSHIRE CC,SOCIAL AND COMMUNITY SERVICES,CSS BICESTER,CATERING PROVISIONS,07/09/2020,7315302200,13.20,SAINSBURYS SACAT (2243
OXFORDSHIRE CC,CORPORATE CORE,,"SUPPLIES, STATIONERY AND MATERIALS",07/09/2020,7315302802,10.57,LYRECO UK LTD
OXFORDSHIRE CC,CORPORATE CORE,,"SUPPLIES, STATIONERY AND MATERIALS",07/09/2020,7315302804,18.55,LYRECO UK LTD
OXFORDSHIRE CC,CORPORATE CORE,,"SUPPLIES, STATIONERY AND MATERIALS",07/09/2020,7315302796,34.56,LYRECO UK LTD
OXFORDSHIRE CC,CORPORATE CORE,,"SUPPLIES, STATIONERY AND MATERIALS",07/09/2020,7315302798,58.37,LYRECO UK LTD
OXFORDSHIRE CC,CORPORATE CORE,,"SUPPLIES, STATIONERY AND MATERIALS",07/09/2020,7315302800,6.29,LYRECO UK LTD
OXFORDSHIRE CC,CORPORATE CORE,,"SUPPLIES, STATIONERY AND MATERIALS",07/09/2020,7315302794,77.64,LYRECO UK LTD
OXFORDSHIRE CC,CORPORATE CORE,HISTORY SERVICE,FURNITURE,07/09/2020,7315302536,21.80,AMZNMKTPLACE
OXFORDSHIRE CC,CORPORATE CORE,HISTORY SERVICE,FURNITURE,07/09/2020,7315302534,50.10,AMAZON.CO.UK 0M3KR7HN5
OXFORDSHIRE CC,"CHILDRENS, YOUNG PEOPLE AND FAMILIES",EYNSHAM,CATERING PROVISIONS,07/09/2020,7315302682,120.89,TESCO STORES 2008
OXFORDSHIRE CC,"CHILDRENS, YOUNG PEOPLE AND FAMILIES",THAME E&A HOME,CATERING PROVISIONS,07/09/2020,7315302344,105.41,TESCO STORES 2038
OXFORDSHIRE CC,"CHILDRENS, YOUNG PEOPLE AND FAMILIES","	40 THE MOORS",CATERING PROVISIONS,07/09/2020,7315302406,215.57,SAINSBURYS (2243)
OXFORDSHIRE CC,"CHILDRENS, YOUNG PEOPLE AND FAMILIES","	LOOKED AFTER SOUTH",CATERING PROVISIONS,07/09/2020,7315302714,1.70,SELECTA U.K. LIMITED
OXFORDSHIRE CC,"CHILDRENS, YOUNG PEOPLE AND FAMILIES",FIELDWORK UASC,TELEPHONE - EQUIPMENT,07/09/2020,7315302378,20.00,SMARTY CO UK
OXFORDSHIRE CC,"CHILDRENS, YOUNG PEOPLE AND FAMILIES","	LOOKED AFTER SOUTH",CATERING PROVISIONS,07/09/2020,7315302722,1.00,SELECTA U.K. LIMITED
OXFORDSHIRE CC,"CHILDRENS, YOUNG PEOPLE AND FAMILIES","	LOOKED AFTER SOUTH",CATERING PROVISIONS,07/09/2020,7315302720,.90,SELECTA U.K. LIMITED
OXFORDSHIRE CC,"CHILDRENS, YOUNG PEOPLE AND FAMILIES","	LOOKED AFTER SOUTH",CATERING PROVISIONS,07/09/2020,7315302712,1.00,SELECTA U.K. LIMITED
OXFORDSHIRE CC,"CHILDRENS, YOUNG PEOPLE AND FAMILIES",EYNSHAM,MATERIALS,07/09/2020,7315302700,-60.00,ARGOS LTD
OXFORDSHIRE CC,SOCIAL AND COMMUNITY SERVICES,RESIDENTIAL STRATEGY,CLOTHING AND UNIFORMS,07/09/2020,7315302390,12.00,PRIMARK 440
OXFORDSHIRE CC,"CHILDRENS, YOUNG PEOPLE AND FAMILIES","	LOOKED AFTER CITY 2",VEHICLE FUEL,07/09/2020,7315302250,29.90,TESCO PFS 3985
OXFORDSHIRE CC,,,,04/09/2020,7310745274,"-172,469.66",
OXFORDSHIRE CC,SOCIAL AND COMMUNITY SERVICES,"	MUSEUMS COLLECTIONS",CATERING PROVISIONS,04/09/2020,7310745118,3.12,MILK&MORE
OXFORDSHIRE CC,"CHILDRENS, YOUNG PEOPLE AND FAMILIES",EYNSHAM,CATERING PROVISIONS,04/09/2020,7310745112,6.79,TESCO STORES 4480
OXFORDSHIRE CC,"CHILDRENS, YOUNG PEOPLE AND FAMILIES","	LOOKED AFTER CITY 2",OTHER TRANSPORT ARRANGEMENTS,04/09/2020,7310745256,2.30,STGCOACH/CTYLINK
OXFORDSHIRE CC,"CHILDRENS, YOUNG PEOPLE AND FAMILIES","	LOOKED AFTER SOUTH",OTHER TRANSPORT ARRANGEMENTS,04/09/2020,7310745458,4.00,APCOA PARKING
OXFORDSHIRE CC,"CHILDRENS, YOUNG PEOPLE AND FAMILIES","	LOOKED AFTER SOUTH",CATERING,04/09/2020,7310745460,5.07,MCDONALDS
OXFORDSHIRE CC,SOCIAL AND COMMUNITY SERVICES,RESIDENTIAL STRATEGY,CATERING,04/09/2020,7310745204,12.30,MEDITERRANEAN FISH BAR
OXFORDSHIRE CC,"CHILDRENS, YOUNG PEOPLE AND FAMILIES","	RESIDENTIAL STRATEGY",CATERING,04/09/2020,7310745066,58.90,MEDITERRANEAN FISH BAR
OXFORDSHIRE CC,"CHILDRENS, YOUNG PEOPLE AND FAMILIES","	LOOKED AFTER CITY 2",OTHER TRANSPORT ARRANGEMENTS,04/09/2020,7310745450,30.00,IZ  ROYAL CARS OXFORD
OXFORDSHIRE CC,SOCIAL AND COMMUNITY SERVICES,DIDCOT MOVE-ON HOME,CATERING PROVISIONS,04/09/2020,7310745088,10.53,TESCO STORE 2413
OXFORDSHIRE CC,"CHILDRENS, YOUNG PEOPLE AND FAMILIES","	LOOKED AFTER SOUTH",MATERIALS,04/09/2020,7310745454,44.67,AMAZON.CO.UK O982Y2TN5
OXFORDSHIRE CC,"CHILDRENS, YOUNG PEOPLE AND FAMILIES",THAME E&A HOME,DRUGS AND MEDICAL SUPPLIES,04/09/2020,7310745076,20.29,BOOTS THE CHEMIST
OXFORDSHIRE CC,SOCIAL AND COMMUNITY SERVICES,LOOKED AFTER NORTH,PAYMENT TO GOVERNMENT DEPARTMENTS,04/09/2020,7310745252,26.50,IPS DURHAM CONTACT CTR
OXFORDSHIRE CC,"CHILDRENS, YOUNG PEOPLE AND FAMILIES","	RESIDENTIAL STRATEGY",MATERIALS,04/09/2020,7310745332,11.98,AMZNMKTPLACE
OXFORDSHIRE CC,ENVIRONMENT AND ECONOMY,HARD FM,VEHICLES REPAIRS AND MAINTENANCE,04/09/2020,7310745074,45.00,KWIK-FIT.COM
OXFORDSHIRE CC,SOCIAL AND COMMUNITY SERVICES,CSS WITNEY,MATERIALS,04/09/2020,7310745048,22.00,WWW.HOBBYCRAFT.CO.UK
OXFORDSHIRE CC,"CHILDRENS, YOUNG PEOPLE AND FAMILIES",CNTL ERLY HELP-BBLEY,IT SOFTWARE,04/09/2020,7310745448,101.51,COMPAREMANVAN
OXFORDSHIRE CC,CORPORATE CORE,OPERATIONS,MATERIALS,04/09/2020,7310745302,37.28,AMAZON.CO.UK QC3RF3VP5
OXFORDSHIRE CC,"CHILDRENS, YOUNG PEOPLE AND FAMILIES","	40 THE MOORS",MATERIALS,04/09/2020,7310745224,75.00,SPORTSDIRECT.COM
OXFORDSHIRE CC,SOCIAL AND COMMUNITY SERVICES,CSS BICESTER,CATERING PROVISIONS,04/09/2020,7310745124,26.94,ALDI 49 775
OXFORDSHIRE CC,"CHILDRENS, YOUNG PEOPLE AND FAMILIES",THAME E&A HOME,CATERING PROVISIONS,04/09/2020,7310745324,5.70,COSTA THAME
OXFORDSHIRE CC,SOCIAL AND COMMUNITY SERVICES,RESIDENTIAL STRATEGY,HIRED AND CONTRACTED SERVICES,04/09/2020,7310745200,13.00,JAKS BARBER SHOP
OXFORDSHIRE CC,"CHILDRENS, YOUNG PEOPLE AND FAMILIES","	RESIDENTIAL STRATEGY",CATERING,04/09/2020,7310745068,17.33,MCDONALDS
OXFORDSHIRE CC,"CHILDRENS, YOUNG PEOPLE AND FAMILIES","	MUSIC UNALLOCABLE",MATERIALS,04/09/2020,7310745158,25.00,AMAZON.CO.UK XH25A1F75
OXFORDSHIRE CC,"CHILDRENS, YOUNG PEOPLE AND FAMILIES","	RESIDENTIAL STRATEGY",OTHER TRANSPORT ARRANGEMENTS,04/09/2020,7310745062,3.00,WESTGATE SHOPPING CENT
OXFORDSHIRE CC,SOCIAL AND COMMUNITY SERVICES,RESIDENTIAL STRATEGY,OTHER TRANSPORT ARRANGEMENTS,04/09/2020,7310745202,3.00,WESTGATE SHOPPING CENT
OXFORDSHIRE CC,"CHILDRENS, YOUNG PEOPLE AND FAMILIES","	40 THE MOORS",MATERIALS,04/09/2020,7310745222,30.00,J D SPORTS FASHION
OXFORDSHIRE CC,"CHILDRENS, YOUNG PEOPLE AND FAMILIES",KEEP ON CARING,MATERIALS,04/09/2020,7310745084,631.95,ARGOS LTD
OXFORDSHIRE CC,"CHILDRENS, YOUNG PEOPLE AND FAMILIES","	40 THE MOORS","SUPPLIES, STATIONERY AND MATERIALS",04/09/2020,7310745404,45.93,PMG SCHOOLWEAR
OXFORDSHIRE CC,SHARED SERVICES,COVID-19 COD,STATIONERY,04/09/2020,7310745248,16.32,AMAZON.CO.UK MU4114XC5
OXFORDSHIRE CC,"CHILDRENS, YOUNG PEOPLE AND FAMILIES","	LOOKED AFTER CITY 2",PAYMENTS TO TRANSPORT OPERATORS,04/09/2020,7310745258,33.70,GWR OXFORD TO
OXFORDSHIRE CC,"CHILDRENS, YOUNG PEOPLE AND FAMILIES","	40 THE MOORS",CATERING PROVISIONS,04/09/2020,7310745214,1.79,SAINSBURYS (2305)
OXFORDSHIRE CC,"CHILDRENS, YOUNG PEOPLE AND FAMILIES","	RESIDENTIAL STRATEGY",CLOTHING AND UNIFORMS,04/09/2020,7310745060,15.10,MATALAN
OXFORDSHIRE CC,"CHILDRENS, YOUNG PEOPLE AND FAMILIES","	40 THE MOORS",MATERIALS,04/09/2020,7310745218,8.00,POUNDLAND LTD 1586
OXFORDSHIRE CC,"CHILDRENS, YOUNG PEOPLE AND FAMILIES","	40 THE MOORS",MATERIALS,04/09/2020,7310745216,5.00,POUNDLAND LTD 1586
OXFORDSHIRE CC,"CHILDRENS, YOUNG PEOPLE AND FAMILIES","	40 THE MOORS",MATERIALS,04/09/2020,7310745220,54.10,POUNDLAND LTD 1586
OXFORDSHIRE CC,CORPORATE CORE,"MARKETING, COMMUNICATIONS & ENGAGEMENT",HIRED AND CONTRACTED SERVICES,04/09/2020,7310745268,21.98,CANVA  02802-5711203
OXFORDSHIRE CC,"CHILDRENS, YOUNG PEOPLE AND FAMILIES","	FAMILY SUPPORT CITY3",OTHER TRANSPORT ARRANGEMENTS,04/09/2020,7310745206,13.00,OXFORD BUS COMPANY
OXFORDSHIRE CC,"CHILDRENS, YOUNG PEOPLE AND FAMILIES",CSS - DIDCOT,CATERING PROVISIONS,04/09/2020,7310745150,25.36,ASDA STORES 5123
OXFORDSHIRE CC,"CHILDRENS, YOUNG PEOPLE AND FAMILIES","	RESIDENTIAL STRATEGY",CLOTHING AND UNIFORMS,04/09/2020,7310745064,15.09,SHOE ZONE
OXFORDSHIRE CC,"CHILDRENS, YOUNG PEOPLE AND FAMILIES","	LOOKED AFTER NORTH",OTHER EXPENSES,04/09/2020,7310745138,40.00,WM MORRISONS STORE
OXFORDSHIRE CC,"CHILDRENS, YOUNG PEOPLE AND FAMILIES","	AAC EQUIPMENT",EQUIPMENT,04/09/2020,7310745198,156.00,MOUNTSANDMORE
OXFORDSHIRE CC,"CHILDRENS, YOUNG PEOPLE AND FAMILIES","	AAC EQUIPMENT",EQUIPMENT,04/09/2020,7310745198,12.00,MOUNTSANDMORE
OXFORDSHIRE CC,"CHILDRENS, YOUNG PEOPLE AND FAMILIES","	LOOKED AFTER SOUTH",HIRE OF ACCOMMODATION AND FACILITIES,04/09/2020,7310745456,304.42,TRAVELODGE
OXFORDSHIRE CC,SOCIAL AND COMMUNITY SERVICES,LEAVING CARE NORTH,OTHER TRANSPORT ARRANGEMENTS,04/09/2020,7310745334,6.00,3C_ EURO CARPARKS - IS
OXFORDSHIRE CC,"CHILDRENS, YOUNG PEOPLE AND FAMILIES","	DISABILITIES TEAM-C",PURCHASE OF IT EQUIPMENT,04/09/2020,7310745078,159.00,WWW.JOHNLEWIS.COM
OXFORDSHIRE CC,"CHILDRENS, YOUNG PEOPLE AND FAMILIES","	DISABILITIES TEAM-C",PURCHASE OF IT EQUIPMENT,04/09/2020,7310745078,35.00,WWW.JOHNLEWIS.COM
OXFORDSHIRE CC,SOCIAL AND COMMUNITY SERVICES,CSS WANTAGE,DISABILITY AIDS AND EQUIPMENT,04/09/2020,7310745044,89.02,WWW.GOONWITHYOURLIFE.
OXFORDSHIRE CC,"CHILDRENS, YOUNG PEOPLE AND FAMILIES",NTH FAM SUPRT-BCSTR,MATERIALS,04/09/2020,7310745126,15.00,PIZZAEXPRESS GIFT CARD
OXFORDSHIRE CC,"CHILDRENS, YOUNG PEOPLE AND FAMILIES",DIDCOT MOVE-ON HOME,CATERING PROVISIONS,04/09/2020,7310745152,10.36,SAINSBURYS 2067
OXFORDSHIRE CC,SOCIAL AND COMMUNITY SERVICES,CSS WANTAGE,MATERIALS,04/09/2020,7310745354,33.42,AMZNMKTPLACE
OXFORDSHIRE CC,SOCIAL AND COMMUNITY SERVICES,CSS - OXFORD,CATERING PROVISIONS,04/09/2020,7310745306,24.67,TESCO STORE 2994
OXFORDSHIRE CC,ENVIRONMENT AND ECONOMY,"	COUNTRYSIDE PREMISES",GENERAL REFUSE COLLECTION AND DISPOSAL,04/09/2020,7310745384,408.00,M & M SKIP HIRE
OXFORDSHIRE CC,SOCIAL AND COMMUNITY SERVICES,"	HISTORY SERVICE","BOOKS, DVDS AND CDS",04/09/2020,7310745136,14.55,AMAZON.CO.UK H50RQ7XX5
OXFORDSHIRE CC,CORPORATE CORE,LIBRARY COLLECTIONS,"BOOKS, DVDS AND CDS",04/09/2020,7310745120,150.25,BOLINDA PUBLISHING
OXFORDSHIRE CC,"CHILDRENS, YOUNG PEOPLE AND FAMILIES",KEEP ON CARING,MATERIALS,04/09/2020,7310745086,358.97,ARGOS LTD
OXFORDSHIRE CC,"CHILDRENS, YOUNG PEOPLE AND FAMILIES","	LEAVING CARE NORTH","SUPPLIES, STATIONERY AND MATERIALS",04/09/2020,7310745250,5.77,WWW.BLACKWELL.CO.UK
OXFORDSHIRE CC,ENVIRONMENT AND ECONOMY,HARD FM,MATERIALS,03/09/2020,7307783004,79.90,AMZNMKTPLACE
OXFORDSHIRE CC,"CHILDRENS, YOUNG PEOPLE AND FAMILIES",DIDCOT MOVE-ON HOME,CATERING PROVISIONS,03/09/2020,7307783410,25.20,SAINSBURYS SACAT 2067
OXFORDSHIRE CC,"CHILDRENS, YOUNG PEOPLE AND FAMILIES","	LOOKED AFTER SOUTH",MATERIALS,03/09/2020,7307783450,12.05,AMAZON.CO.UK HM8B694Y5
OXFORDSHIRE CC,"CHILDRENS, YOUNG PEOPLE AND FAMILIES",EYNSHAM,CATERING,03/09/2020,7307783074,18.40,STARBUCKS COFFEE
OXFORDSHIRE CC,"CHILDRENS, YOUNG PEOPLE AND FAMILIES","	LEAVING CARE NORTH",MATERIALS,03/09/2020,7307783334,249.00,CURRYS ONLINE
OXFORDSHIRE CC,CORPORATE CORE,REGISTRAR,MATERIALS,03/09/2020,7307783042,11.59,AMAZON.CO.UK Y84YA9525
OXFORDSHIRE CC,"CHILDRENS, YOUNG PEOPLE AND FAMILIES","	FAM SUPP CITY 1",HIRE OF ACCOMMODATION AND FACILITIES,03/09/2020,7307783400,379.43,TRAVELODGE
OXFORDSHIRE CC,"CHILDRENS, YOUNG PEOPLE AND FAMILIES",EYNSHAM,DRUGS AND MEDICAL SUPPLIES,03/09/2020,7307783444,5.99,SUPERDRUG STORES PLC
OXFORDSHIRE CC,"CHILDRENS, YOUNG PEOPLE AND FAMILIES","	LOOKED AFTER NORTH",MATERIALS,03/09/2020,7307783438,279.00,CURRYS ONLINE
OXFORDSHIRE CC,"CHILDRENS, YOUNG PEOPLE AND FAMILIES",WITNEY,CATERING PROVISIONS,03/09/2020,7307783432,26.71,ASDA STORES 4920
OXFORDSHIRE CC,"CHILDRENS, YOUNG PEOPLE AND FAMILIES","	LEAVING CARE SOUTH","SUPPLIES, STATIONERY AND MATERIALS",03/09/2020,7307783484,199.00,INVATE LIMITED
OXFORDSHIRE CC,"CHILDRENS, YOUNG PEOPLE AND FAMILIES","	LEAVING CARE SOUTH",OTHER EXPENSES,03/09/2020,7307783486,200.00,INVATE LIMITED
OXFORDSHIRE CC,CORPORATE CORE,ICT OPERATIONS & MAI,MATERIALS,03/09/2020,7307783426,14.16,AMZNMKTPLACE
OXFORDSHIRE CC,"CHILDRENS, YOUNG PEOPLE AND FAMILIES","	FAMILY SUPPORT CITY3",OTHER TRANSPORT ARRANGEMENTS,03/09/2020,7307783198,40.00,OXFORD BUS COMPANY
OXFORDSHIRE CC,CORPORATE CORE,INCOME TEAM,PAYMENT TO GOVERNMENT DEPARTMENTS,03/09/2020,7307783472,1.50,WWW.GOV.UK
OXFORDSHIRE CC,"CHILDRENS, YOUNG PEOPLE AND FAMILIES",THAME E&A HOME,CATERING,03/09/2020,7307783184,16.08,SAINSBURYS 2096
OXFORDSHIRE CC,CORPORATE CORE,INCOME TEAM,PAYMENT TO GOVERNMENT DEPARTMENTS,03/09/2020,7307783470,1.50,WWW.GOV.UK
OXFORDSHIRE CC,"CHILDRENS, YOUNG PEOPLE AND FAMILIES","	RESIDENTIAL STRATEGY",MATERIALS,03/09/2020,7307783288,12.46,AMZNMKTPLACE
OXFORDSHIRE CC,"CHILDRENS, YOUNG PEOPLE AND FAMILIES","	LOOKED AFTER CITY 2",OTHER TRANSPORT ARRANGEMENTS,03/09/2020,7307783270,4.00,"THE ORACLE CAR PARK, R"
OXFORDSHIRE CC,"CHILDRENS, YOUNG PEOPLE AND FAMILIES","	FAMILY SUPPORT CITY3",HIRE OF ACCOMMODATION AND FACILITIES,03/09/2020,7307783188,42.50,HOTEL ON BOOKING.COM
OXFORDSHIRE CC,CORPORATE CORE,INCOME TEAM,PAYMENT TO GOVERNMENT DEPARTMENTS,03/09/2020,7307783468,1.50,WWW.GOV.UK
OXFORDSHIRE CC,"CHILDRENS, YOUNG PEOPLE AND FAMILIES","	FAMILY SUPPORT CITY3",HIRE OF ACCOMMODATION AND FACILITIES,03/09/2020,7307783190,36.55,HOTEL ON BOOKING.COM
OXFORDSHIRE CC,CORPORATE CORE,INCOME TEAM,PAYMENT TO GOVERNMENT DEPARTMENTS,03/09/2020,7307783466,1.50,WWW.GOV.UK
OXFORDSHIRE CC,CORPORATE CORE,INCOME TEAM,PAYMENT TO GOVERNMENT DEPARTMENTS,03/09/2020,7307783464,1.50,WWW.GOV.UK
OXFORDSHIRE CC,SOCIAL AND COMMUNITY SERVICES,SCHOOLS FM,CATERING PROVISIONS,03/09/2020,7307783078,20.30,TESCO STORES 2008
OXFORDSHIRE CC,"CHILDRENS, YOUNG PEOPLE AND FAMILIES","	LOOKED AFTER SOUTH",OTHER TRANSPORT ARRANGEMENTS,03/09/2020,7307783452,4.00,APCOA PARKING
OXFORDSHIRE CC,SOCIAL AND COMMUNITY SERVICES,SCHOOLS FM,CATERING,03/09/2020,7307783080,6.32,BOOKER LIMITED OXFORD
OXFORDSHIRE CC,SOCIAL AND COMMUNITY SERVICES,"	SHARED LIVES",PAYMENT TO GOVERNMENT DEPARTMENTS,03/09/2020,7307783434,53.89,CHERWELL DC
OXFORDSHIRE CC,SOCIAL AND COMMUNITY SERVICES,LEAVING CARE NORTH,CATERING,03/09/2020,7307783294,3.19,SUBWAY-LEXO RED LTD
OXFORDSHIRE CC,CORPORATE CORE,INCOME TEAM,PAYMENT TO GOVERNMENT DEPARTMENTS,03/09/2020,7307783460,1.50,WWW.GOV.UK
OXFORDSHIRE CC,SOCIAL AND COMMUNITY SERVICES,LEAVING CARE NORTH,CATERING PROVISIONS,03/09/2020,7307783290,4.00,CO-OPERATIVE FOOD
OXFORDSHIRE CC,ENTERPRISEVC,BUSINESS SYST STAFF,TELEPHONE - EQUIPMENT,03/09/2020,7307783076,39.00,BT WI-FI
OXFORDSHIRE CC,CORPORATE CORE,INCOME TEAM,PAYMENT TO GOVERNMENT DEPARTMENTS,03/09/2020,7307783474,1.50,WWW.GOV.UK
OXFORDSHIRE CC,SOCIAL AND COMMUNITY SERVICES,LEAVING CARE NORTH,CATERING PROVISIONS,03/09/2020,7307783292,85.00,CO-OPERATIVE FOOD
OXFORDSHIRE CC,"CHILDRENS, YOUNG PEOPLE AND FAMILIES","	LEAVING CARE NORTH",OTHER EXPENSES,03/09/2020,7307783448,918.00,MAGENTA STORAGE BANBUR
OXFORDSHIRE CC,"CHILDRENS, YOUNG PEOPLE AND FAMILIES",CSS - ABINGDON,POSTAGE AND DELIVERY,03/09/2020,7307783186,70.50,POST OFFICE COUNTER
OXFORDSHIRE CC,SOCIAL AND COMMUNITY SERVICES,CSS - OXFORD,VEHICLES REPAIRS AND MAINTENANCE,03/09/2020,7307783264,41.03,LSW
OXFORDSHIRE CC,"CHILDRENS, YOUNG PEOPLE AND FAMILIES","	FAMILY SUPPORT CITY3",CATERING PROVISIONS,03/09/2020,7307783152,5.64,SAINSBURYS SACAT 0632
OXFORDSHIRE CC,SHARED SERVICES,COVID-19 COD,STATIONERY,03/09/2020,7307783208,13.09,AMAZON.CO.UK S63FW8SM5
OXFORDSHIRE CC,"CHILDRENS, YOUNG PEOPLE AND FAMILIES",NTH FAM SUPRT-BCSTR,PAYMENT TO GOVERNMENT DEPARTMENTS,03/09/2020,7307783108,49.00,HM PASSPORT OFFICE
OXFORDSHIRE CC,"CHILDRENS, YOUNG PEOPLE AND FAMILIES","	LOOKED AFTER CITY 2",OTHER TRANSPORT ARRANGEMENTS,03/09/2020,7307783422,25.00,IZ  ROYAL CARS OXFORD
OXFORDSHIRE CC,"CHILDRENS, YOUNG PEOPLE AND FAMILIES","	DISABILITIES TEAM-C",FURNITURE,03/09/2020,7307783018,549.99,WF  WAYFAIR 3407690044
OXFORDSHIRE CC,"CHILDRENS, YOUNG PEOPLE AND FAMILIES",CNTL EARLY HELP-BRTN,OTHER TRANSPORT ARRANGEMENTS,03/09/2020,7307783194,381.75,WWW.THEKEY.CO.UK
OXFORDSHIRE CC,"CHILDRENS, YOUNG PEOPLE AND FAMILIES",0-5 STDS & PROGRESS,MATERIALS,03/09/2020,7307783412,51.75,AMZNMKTPLACE AMAZON.CO
OXFORDSHIRE CC,"CHILDRENS, YOUNG PEOPLE AND FAMILIES",CSC COVID-19,TELEPHONE - EQUIPMENT,03/09/2020,7307783106,20.00,VESTA VODAFONE
OXFORDSHIRE CC,SOCIAL AND COMMUNITY SERVICES,DIDCOT MOVE-ON HOME,CATERING PROVISIONS,03/09/2020,7307783028,17.70,SAINSBURYS 2067
OXFORDSHIRE CC,"CHILDRENS, YOUNG PEOPLE AND FAMILIES",DIDCOT MOVE-ON HOME,CATERING PROVISIONS,03/09/2020,7307783140,25.00,SAINSBURYS 2067
OXFORDSHIRE CC,"CHILDRENS, YOUNG PEOPLE AND FAMILIES","	LEAVING CARE SOUTH",OTHER EXPENSES,03/09/2020,7307783424,39.00,TESCO STORES 2008
OXFORDSHIRE CC,"CHILDRENS, YOUNG PEOPLE AND FAMILIES",ICT INFORMATION,IT SOFTWARE,03/09/2020,7307783008,150.92,ADOBE.COM
OXFORDSHIRE CC,CORPORATE CORE,INCOME TEAM,PAYMENT TO GOVERNMENT DEPARTMENTS,03/09/2020,7307783462,1.50,WWW.GOV.UK
OXFORDSHIRE CC,ENVIRONMENT AND ECONOMY,HARD FM,HARDWARE AND CROCKERY,03/09/2020,7307783010,56.21,GENERAL BUILDING PLAST
OXFORDSHIRE CC,SOCIAL AND COMMUNITY SERVICES,CSS BICESTER,CATERING PROVISIONS,03/09/2020,7307783020,3.58,ALDI 49 775
OXFORDSHIRE CC,ENVIRONMENT AND ECONOMY,HARD FM,HARDWARE AND CROCKERY,03/09/2020,7307783006,59.99,SCREWFIX DIRECT
OXFORDSHIRE CC,ENVIRONMENT AND ECONOMY,COUNTY LIBRARY,HARDWARE AND CROCKERY,03/09/2020,7307783012,35.26,SCREWFIX DIRECT
OXFORDSHIRE CC,"CHILDRENS, YOUNG PEOPLE AND FAMILIES","	RIVERSIDE CENTRE",VEHICLE FUEL,03/09/2020,7307783154,75.01,SAINSBURYS OPT 0180
OXFORDSHIRE CC,"CHILDRENS, YOUNG PEOPLE AND FAMILIES","	LOOKED AFTER CITY 1",PAYMENTS TO TRANSPORT OPERATORS,03/09/2020,7307783096,-73.00,TRAINLINE
OXFORDSHIRE CC,ENVIRONMENT AND ECONOMY,HARD FM,MATERIALS,03/09/2020,7307783002,20.34,AMZNMKTPLACE AMAZON.CO
OXFORDSHIRE CC,"CHILDRENS, YOUNG PEOPLE AND FAMILIES","	40 THE MOORS",HIRED AND CONTRACTED SERVICES,03/09/2020,7307783026,14.00,KIDLINGTON BARBERS
OXFORDSHIRE CC,ENVIRONMENT AND ECONOMY,"	FLEET OPERATIONS",LICENCES,03/09/2020,7307783372,157.50,TVLICENSING.CO.UK
OXFORDSHIRE CC,"CHILDRENS, YOUNG PEOPLE AND FAMILIES",FIELDWORK UASC,REGISTRATION AND INSPECTION FEES,03/09/2020,7307783202,375.00,BMF ONLINE
OXFORDSHIRE CC,"CHILDRENS, YOUNG PEOPLE AND FAMILIES",0-5 STDS & PROGRESS,MATERIALS,02/09/2020,7304367396,5.99,AMAZON.CO.UK IW6M91QA5
OXFORDSHIRE CC,ENVIRONMENT AND ECONOMY,HARD FM,MATERIALS,02/09/2020,7304367134,24.95,AMZNMKTPLACE
OXFORDSHIRE CC,"CHILDRENS, YOUNG PEOPLE AND FAMILIES","	LOOKED AFTER SOUTH",IT SOFTWARE,02/09/2020,7304367450,3.00,WIFI: TRAVELODGE - WI
OXFORDSHIRE CC,"CHILDRENS, YOUNG PEOPLE AND FAMILIES","	40 THE MOORS",CATERING PROVISIONS,02/09/2020,7304367148,3.50,CO-OPERATIVE FOOD
OXFORDSHIRE CC,"CHILDRENS, YOUNG PEOPLE AND FAMILIES","	RESIDENTIAL STRATEGY",CATERING PROVISIONS,02/09/2020,7304367120,28.91,SAINSBURYS SACAT 0631
OXFORDSHIRE CC,"CHILDRENS, YOUNG PEOPLE AND FAMILIES",EYNSHAM,CATERING PROVISIONS,02/09/2020,7304367454,6.98,OXFORD PEARTREE KFC
OXFORDSHIRE CC,"CHILDRENS, YOUNG PEOPLE AND FAMILIES",EYNSHAM,CATERING PROVISIONS,02/09/2020,7304367452,9.13,OXFORD PEARTREE KFC
OXFORDSHIRE CC,"CHILDRENS, YOUNG PEOPLE AND FAMILIES","	LEAVING CARE SOUTH",OTHER TRANSPORT ARRANGEMENTS,02/09/2020,7304367456,4.00,APCOA PARKING
OXFORDSHIRE CC,SOCIAL AND COMMUNITY SERVICES,DIDCOT MOVE-ON HOME,CATERING PROVISIONS,02/09/2020,7304367190,22.70,SAINSBURYS 2067
OXFORDSHIRE CC,SOCIAL AND COMMUNITY SERVICES,WITNEY MOVE ON HOME,VEHICLES REPAIRS AND MAINTENANCE,02/09/2020,7304367184,45.00,CELL PHONE REPAIRS LTD
OXFORDSHIRE CC,"CHILDRENS, YOUNG PEOPLE AND FAMILIES","	LOOKED AFTER CITY 2",OTHER EXPENSES,02/09/2020,7304367420,10.90,POST OFFICE COUNTER
OXFORDSHIRE CC,"CHILDRENS, YOUNG PEOPLE AND FAMILIES",EYNSHAM,MATERIALS,02/09/2020,7304367382,13.95,ARGOS LTD
OXFORDSHIRE CC,CORPORATE CORE,INCOME TEAM,PAYMENT TO GOVERNMENT DEPARTMENTS,02/09/2020,7304367476,1.50,WWW.GOV.UK
OXFORDSHIRE CC,"CHILDRENS, YOUNG PEOPLE AND FAMILIES","	LOOKED AFTER SOUTH",CATERING,02/09/2020,7304367462,3.05,COSTA LANGLEY
OXFORDSHIRE CC,"CHILDRENS, YOUNG PEOPLE AND FAMILIES","	LEAVING CARE NORTH",CATERING PROVISIONS,02/09/2020,7304367260,2.00,WM MORRISONS STORE
OXFORDSHIRE CC,"CHILDRENS, YOUNG PEOPLE AND FAMILIES",FIELDWORK UASC,FURNITURE,02/09/2020,7304367248,428.00,BMF LTD.
OXFORDSHIRE CC,CORPORATE CORE,INCOME TEAM,PAYMENT TO GOVERNMENT DEPARTMENTS,02/09/2020,7304367470,1.50,WWW.GOV.UK
OXFORDSHIRE CC,"CHILDRENS, YOUNG PEOPLE AND FAMILIES","	LOOKED AFTER CITY 2",NON-STAFF SUBSISTENCE AND EXPENSES,02/09/2020,7304367154,8.20,HTTP://SLABINGDON.BOOK
OXFORDSHIRE CC,"CHILDRENS, YOUNG PEOPLE AND FAMILIES","	LOOKED AFTER CITY 2",MATERIALS,02/09/2020,7304367152,10.20,HTTP://SLABINGDON.BOOK
OXFORDSHIRE CC,"CHILDRENS, YOUNG PEOPLE AND FAMILIES","	LOOKED AFTER CITY 2",MATERIALS,02/09/2020,7304367150,10.20,HTTP://SLABINGDON.BOOK
OXFORDSHIRE CC,"CHILDRENS, YOUNG PEOPLE AND FAMILIES",THAME E&A HOME,CATERING PROVISIONS,02/09/2020,7304367174,3.75,SAINSBURYS SACAT 2096
OXFORDSHIRE CC,"CHILDRENS, YOUNG PEOPLE AND FAMILIES",HOUSE PROJECT,CATERING,02/09/2020,7304367442,4.51,COSTA COFFEE 43039930
OXFORDSHIRE CC,ENVIRONMENT AND ECONOMY,HARD FM,HARDWARE AND CROCKERY,02/09/2020,7304367132,83.23,JEWSON LTD
OXFORDSHIRE CC,ENVIRONMENT AND ECONOMY,HARD FM,HARDWARE AND CROCKERY,02/09/2020,7304367126,110.16,JEWSON LTD
OXFORDSHIRE CC,"CHILDRENS, YOUNG PEOPLE AND FAMILIES",THAME E&A HOME,MATERIALS,02/09/2020,7304367176,24.99,ARGOS LTD
OXFORDSHIRE CC,ENVIRONMENT AND ECONOMY,HARD FM,HARDWARE AND CROCKERY,02/09/2020,7304367128,76.52,JEWSON LTD
OXFORDSHIRE CC,"CHILDRENS, YOUNG PEOPLE AND FAMILIES",THAME E&A HOME,CATERING,02/09/2020,7304367178,9.05,GREGGS
OXFORDSHIRE CC,ENVIRONMENT AND ECONOMY,HARD FM,HARDWARE AND CROCKERY,02/09/2020,7304367130,292.61,JEWSON LTD
OXFORDSHIRE CC,SOCIAL AND COMMUNITY SERVICES,SCHOOLS FM,CATERING PROVISIONS,02/09/2020,7304367182,37.32,CO-OPERATIVE FOOD
OXFORDSHIRE CC,"CHILDRENS, YOUNG PEOPLE AND FAMILIES",THAME E&A HOME,EQUIPMENT,02/09/2020,7304367172,4.50,CEX  AYLESBURY
OXFORDSHIRE CC,SOCIAL AND COMMUNITY SERVICES,SCHOOLS FM,CATERING PROVISIONS,02/09/2020,7304367180,14.44,CO-OPERATIVE FOOD
OXFORDSHIRE CC,CORPORATE CORE,INCOME TEAM,PAYMENT TO GOVERNMENT DEPARTMENTS,02/09/2020,7304367478,1.50,WWW.GOV.UK
OXFORDSHIRE CC,CORPORATE CORE,RECRUITMENT,CATERING PROVISIONS,02/09/2020,7304367246,51.44,ARGOS LTD
OXFORDSHIRE CC,SOCIAL AND COMMUNITY SERVICES,CSS BICESTER,CATERING PROVISIONS,02/09/2020,7304367122,3.30,SAINSBURYS SACAT (2243
OXFORDSHIRE CC,ENTERPRISEVC,,CAR LEASING - PRIVATE RENTALS,02/09/2020,7304367514,488.54,ENTERPRISE RENT-A-CAR
OXFORDSHIRE CC,ENTERPRISEVC,,CAR LEASING - PRIVATE RENTALS,02/09/2020,7304367512,85.93,ENTERPRISE RENT-A-CAR
OXFORDSHIRE CC,ENTERPRISEVC,,CAR LEASING - PRIVATE RENTALS,02/09/2020,7304367510,158.32,ENTERPRISE RENT-A-CAR
OXFORDSHIRE CC,ENTERPRISEVC,,CAR LEASING - PRIVATE RENTALS,02/09/2020,7304367508,41.94,ENTERPRISE RENT-A-CAR
OXFORDSHIRE CC,ENTERPRISEVC,,CAR LEASING - PRIVATE RENTALS,02/09/2020,7304367506,139.42,ENTERPRISE RENT-A-CAR
OXFORDSHIRE CC,ENTERPRISEVC,,CAR LEASING - PRIVATE RENTALS,02/09/2020,7304367504,182.32,ENTERPRISE RENT-A-CAR
OXFORDSHIRE CC,ENTERPRISEVC,,CAR LEASING - PRIVATE RENTALS,02/09/2020,7304367502,56.62,ENTERPRISE RENT-A-CAR
OXFORDSHIRE CC,ENTERPRISEVC,,CAR LEASING - PRIVATE RENTALS,02/09/2020,7304367500,528.36,ENTERPRISE RENT-A-CAR
OXFORDSHIRE CC,ENTERPRISEVC,,CAR LEASING - PRIVATE RENTALS,02/09/2020,7304367498,434.70,ENTERPRISE RENT-A-CAR
OXFORDSHIRE CC,ENTERPRISEVC,,CAR LEASING - PRIVATE RENTALS,02/09/2020,7304367496,"1,006.02",ENTERPRISE RENT-A-CAR
OXFORDSHIRE CC,ENTERPRISEVC,,CAR LEASING - PRIVATE RENTALS,02/09/2020,7304367494,"1,006.02",ENTERPRISE RENT-A-CAR
OXFORDSHIRE CC,"CHILDRENS, YOUNG PEOPLE AND FAMILIES",FIELDWORK UASC,MATERIALS,02/09/2020,7304367252,483.98,CURRYS ONLINE
OXFORDSHIRE CC,"CHILDRENS, YOUNG PEOPLE AND FAMILIES","	LOOKED AFTER SOUTH",OTHER TRANSPORT ARRANGEMENTS,02/09/2020,7304367516,226.00,RED ROSE TRAVEL LTD
OXFORDSHIRE CC,"CHILDRENS, YOUNG PEOPLE AND FAMILIES",CSS WALLINGFORD,CATERING PROVISIONS,02/09/2020,7304367096,20.85,WAITROSE 675
OXFORDSHIRE CC,SOCIAL AND COMMUNITY SERVICES,CSS BICESTER,CATERING PROVISIONS,02/09/2020,7304367144,1.72,SAINSBURYS (2243)
OXFORDSHIRE CC,"CHILDRENS, YOUNG PEOPLE AND FAMILIES","	RIVERSIDE CENTRE",MATERIALS,02/09/2020,7304367158,25.10,HOBBYCRAFT
OXFORDSHIRE CC,"CHILDRENS, YOUNG PEOPLE AND FAMILIES","	LOOKED AFTER NORTH",PAYMENT TO GOVERNMENT DEPARTMENTS,02/09/2020,7304367196,14.00,GEN REGISTER OFFICE
OXFORDSHIRE CC,"CHILDRENS, YOUNG PEOPLE AND FAMILIES","	LOOKED AFTER SOUTH",HIRE OF ACCOMMODATION AND FACILITIES,02/09/2020,7304367460,210.07,TRAVELODGE
OXFORDSHIRE CC,"CHILDRENS, YOUNG PEOPLE AND FAMILIES","	LOOKED AFTER CITY 1",PAYMENTS TO TRANSPORT OPERATORS,02/09/2020,7304367198,75.80,THETRAINLINE.COM
OXFORDSHIRE CC,"CHILDRENS, YOUNG PEOPLE AND FAMILIES",FIELDWORK UASC,PAYMENTS TO TRANSPORT OPERATORS,02/09/2020,7304367250,7.00,GWR OXFORD SST
OXFORDSHIRE CC,CORPORATE CORE,ICT OPERATIONS & MAI,IT SERVICES,02/09/2020,7304367424,300.00,COMMS365 LIMITED
OXFORDSHIRE CC,SOCIAL AND COMMUNITY SERVICES,"	HISTORY SERVICE","BOOKS, DVDS AND CDS",02/09/2020,7304367204,6.99,UNIV OF OXFORD
OXFORDSHIRE CC,CORPORATE CORE,,"SUPPLIES, STATIONERY AND MATERIALS",02/09/2020,7304367488,645.40,LYRECO UK LTD
OXFORDSHIRE CC,CORPORATE CORE,,"SUPPLIES, STATIONERY AND MATERIALS",02/09/2020,7304367492,72.00,LYRECO UK LTD
OXFORDSHIRE CC,CORPORATE CORE,,"SUPPLIES, STATIONERY AND MATERIALS",02/09/2020,7304367490,67.39,LYRECO UK LTD
OXFORDSHIRE CC,"CHILDRENS, YOUNG PEOPLE AND FAMILIES",EYNSHAM,CATERING PROVISIONS,02/09/2020,7304367428,109.97,TESCO STORES 2008
OXFORDSHIRE CC,SOCIAL AND COMMUNITY SERVICES,CSS - BANBURY,CATERING PROVISIONS,02/09/2020,7304367088,4.15,TESCO-STORES-5812
OXFORDSHIRE CC,"CHILDRENS, YOUNG PEOPLE AND FAMILIES","	LOOKED AFTER CITY 2",OTHER TRANSPORT ARRANGEMENTS,02/09/2020,7304367422,3.30,OXFORD BUS COMPANY
OXFORDSHIRE CC,ENVIRONMENT AND ECONOMY,"	TVERC",IT SOFTWARE,02/09/2020,7304367142,7.74,COGNITO-PRO
OXFORDSHIRE CC,"CHILDRENS, YOUNG PEOPLE AND FAMILIES","	LOOKED AFTER SOUTH",MATERIALS,02/09/2020,7304367374,-20.00,CURRYS ONLINE
OXFORDSHIRE CC,"CHILDRENS, YOUNG PEOPLE AND FAMILIES","	LOOKED AFTER SOUTH",MATERIALS,02/09/2020,7304367372,-20.00,CURRYS ONLINE
OXFORDSHIRE CC,SOCIAL AND COMMUNITY SERVICES,CSS BICESTER,MATERIALS,01/09/2020,7301338870,30.98,AMZNMKTPLACE
OXFORDSHIRE CC,SOCIAL AND COMMUNITY SERVICES,CSS BICESTER,MATERIALS,01/09/2020,7301338866,5.99,AMZNMKTPLACE
OXFORDSHIRE CC,CORPORATE CORE,"MARKETING, COMMUNICATIONS & ENGAGEMENT","PUBLICITY, PROMOTIONS AND ADVERTISEMENT",01/09/2020,7301338936,314.84,FACEBK E6ZWKV2AZ2
OXFORDSHIRE CC,"CHILDRENS, YOUNG PEOPLE AND FAMILIES",EYNSHAM,CATERING,01/09/2020,7301338804,59.45,THE WATER MARGIN J&A L
OXFORDSHIRE CC,ENVIRONMENT AND ECONOMY,SERVICE DEV OFFICER,"PUBLICITY, PROMOTIONS AND ADVERTISEMENT",01/09/2020,7301338906,20.00,FACEBK  A9RVQUAW52
OXFORDSHIRE CC,"CHILDRENS, YOUNG PEOPLE AND FAMILIES",WITNEY,CATERING PROVISIONS,01/09/2020,7301339136,3.00,SAINSBURYS SACAT 0632
OXFORDSHIRE CC,SOCIAL AND COMMUNITY SERVICES,DIDCOT MOVE-ON HOME,CATERING PROVISIONS,01/09/2020,7301338776,10.53,TESCO STORE 2413
OXFORDSHIRE CC,"CHILDRENS, YOUNG PEOPLE AND FAMILIES","	40 THE MOORS",HOSPITALITY EXPENSES,01/09/2020,7301338772,1.50,SUMUP   CHARLBURYCC
OXFORDSHIRE CC,"CHILDRENS, YOUNG PEOPLE AND FAMILIES",S&A INTERVENTION GRT,"PUBLICITY, PROMOTIONS AND ADVERTISEMENT",01/09/2020,7301339080,41.14,FACEBK  YU3MWTJXA2
OXFORDSHIRE CC,SOCIAL AND COMMUNITY SERVICES,WITNEY MOVE ON HOME,ENTERTAINMENT EXPENSES,01/09/2020,7301338848,11.58,VUE CINEMAS
OXFORDSHIRE CC,SOCIAL AND COMMUNITY SERVICES,WITNEY MOVE ON HOME,CATERING,01/09/2020,7301338850,36.75,THE BREAKFAST CLUB
OXFORDSHIRE CC,"CHILDRENS, YOUNG PEOPLE AND FAMILIES",DIDCOT MOVE-ON HOME,CATERING PROVISIONS,01/09/2020,7301339114,1.10,SAINSBURYS 2067
OXFORDSHIRE CC,"CHILDRENS, YOUNG PEOPLE AND FAMILIES",DIDCOT MOVE-ON HOME,ENTERTAINMENT EXPENSES,01/09/2020,7301338808,28.70,CINEWORLD DID CP
OXFORDSHIRE CC,"CHILDRENS, YOUNG PEOPLE AND FAMILIES",CNTL ERLY HELP-BBLEY,CATERING PROVISIONS,01/09/2020,7301339148,5.70,TESCO STORE 2994
OXFORDSHIRE CC,SOCIAL AND COMMUNITY SERVICES,WITNEY MOVE ON HOME,ENTERTAINMENT EXPENSES,01/09/2020,7301338846,27.96,VUE ENTERTAINMENT LTD
OXFORDSHIRE CC,"CHILDRENS, YOUNG PEOPLE AND FAMILIES",EYNSHAM,IT SOFTWARE,01/09/2020,7301339142,13.00,MAYFIELDEGGS
OXFORDSHIRE CC,"CHILDRENS, YOUNG PEOPLE AND FAMILIES",THAME E&A HOME,CATERING PROVISIONS,01/09/2020,7301338888,167.97,TESCO STORES 2038
OXFORDSHIRE CC,"CHILDRENS, YOUNG PEOPLE AND FAMILIES","	40 THE MOORS",CATERING PROVISIONS,01/09/2020,7301338920,180.01,TESCO STORES 4480
OXFORDSHIRE CC,"CHILDRENS, YOUNG PEOPLE AND FAMILIES","	LOOKED AFTER SOUTH",OTHER EMPLOYEE EXPENSES,01/09/2020,7301338754,50.00,HIGHSTREETVOUCHERS
OXFORDSHIRE CC,SOCIAL AND COMMUNITY SERVICES,RESIDENTIAL STRATEGY,OTHER TRANSPORT ARRANGEMENTS,01/09/2020,7301338912,3.00,WESTGATE SHOPPING CENT
OXFORDSHIRE CC,SOCIAL AND COMMUNITY SERVICES,RESIDENTIAL STRATEGY,CLOTHING AND UNIFORMS,01/09/2020,7301338916,26.00,PRIMARK 440
OXFORDSHIRE CC,SOCIAL AND COMMUNITY SERVICES,CSS BICESTER,MATERIALS,31/08/2020,7306001980,19.16,AMZNMKTPLACE
OXFORDSHIRE CC,CORPORATE CORE,"	MEMBERS SERVICES",MATERIALS,31/08/2020,7306002096,56.39,AMAZON.CO.UK 3D6F90F75
OXFORDSHIRE CC,SOCIAL AND COMMUNITY SERVICES,DIDCOT MOVE-ON HOME,CATERING PROVISIONS,31/08/2020,7306001968,16.11,SAINSBURYS SACAT 2067
OXFORDSHIRE CC,SOCIAL AND COMMUNITY SERVICES,RESIDENTIAL STRATEGY,CLEANING MATERIALS,31/08/2020,7306002050,3.00,POUNDLAND LTD 1586
OXFORDSHIRE CC,SOCIAL AND COMMUNITY SERVICES,RESIDENTIAL STRATEGY,CLOTHING AND UNIFORMS,31/08/2020,7306002048,12.99,T K MAXX
OXFORDSHIRE CC,"CHILDRENS, YOUNG PEOPLE AND FAMILIES","	40 THE MOORS",TELEPHONE - EQUIPMENT,31/08/2020,7306001914,27.00,EE TOP UP VESTA
OXFORDSHIRE CC,SOCIAL AND COMMUNITY SERVICES,RESIDENTIAL STRATEGY,CLOTHING AND UNIFORMS,31/08/2020,7306002052,40.00,J D SPORTS FASHION
OXFORDSHIRE CC,"CHILDRENS, YOUNG PEOPLE AND FAMILIES",THAME E&A HOME,OTHER EXPENSES,31/08/2020,7306002024,9.00,CHINNOR RAILWAY
OXFORDSHIRE CC,"CHILDRENS, YOUNG PEOPLE AND FAMILIES",EYNSHAM,CATERING,31/08/2020,7306002224,5.94,MCDONALDS
OXFORDSHIRE CC,SOCIAL AND COMMUNITY SERVICES,RESIDENTIAL STRATEGY,CATERING PROVISIONS,31/08/2020,7306002046,1.10,SAINSBURYS 0631
OXFORDSHIRE CC,"CHILDRENS, YOUNG PEOPLE AND FAMILIES",EYNSHAM,CATERING,31/08/2020,7306001890,10.18,CO-OPERATIVE FOOD
OXFORDSHIRE CC,CORPORATE CORE,RECRUITMENT,CATERING PROVISIONS,31/08/2020,7306002060,37.59,SAINSBURYS TO YOU 0632
OXFORDSHIRE CC,"CHILDRENS, YOUNG PEOPLE AND FAMILIES",SOUTH FSS STATUTORY - ABINGDON,CATERING PROVISIONS,31/08/2020,7306001874,117.79,SAINSBURYS TO YOU 0600
OXFORDSHIRE CC,"CHILDRENS, YOUNG PEOPLE AND FAMILIES",DIDCOT MOVE-ON HOME,CATERING PROVISIONS,31/08/2020,7306001958,1.51,TESCO STORE 2413
OXFORDSHIRE CC,SOCIAL AND COMMUNITY SERVICES,RESIDENTIAL STRATEGY,CLOTHING AND UNIFORMS,31/08/2020,7306002042,28.00,SAINSBURYS SACAT 2067
OXFORDSHIRE CC,SOCIAL AND COMMUNITY SERVICES,RESIDENTIAL STRATEGY,CATERING PROVISIONS,31/08/2020,7306002044,28.42,TESCO STORE 2413
OXFORDSHIRE CC,"CHILDRENS, YOUNG PEOPLE AND FAMILIES","	FPT CITY",MATERIALS,31/08/2020,7306002074,14.99,AMAZON.CO.UK N863Z36X5
OXFORDSHIRE CC,"CHILDRENS, YOUNG PEOPLE AND FAMILIES","	MALTFIELD HOUSE",CATERING PROVISIONS,31/08/2020,7306001892,7.70,WELCOME BREAK
OXFORDSHIRE CC,SOCIAL AND COMMUNITY SERVICES,RESIDENTIAL STRATEGY,CLOTHING AND UNIFORMS,31/08/2020,7306002040,3.99,B&M 514 - DICOT
OXFORDSHIRE CC,SOCIAL AND COMMUNITY SERVICES,RESIDENTIAL STRATEGY,CLOTHING AND UNIFORMS,31/08/2020,7306002038,50.98,TRUTEX DIDCOT
OXFORDSHIRE CC,"CHILDRENS, YOUNG PEOPLE AND FAMILIES",THAME E&A HOME,CLOTHING AND UNIFORMS,31/08/2020,7306002088,20.00,OUTFIT
OXFORDSHIRE CC,"CHILDRENS, YOUNG PEOPLE AND FAMILIES",THAME E&A HOME,CATERING,31/08/2020,7306002120,4.70,GREGGS
OXFORDSHIRE CC,"CHILDRENS, YOUNG PEOPLE AND FAMILIES",DIDCOT MOVE-ON HOME,CATERING PROVISIONS,31/08/2020,7306001956,24.10,SAINSBURYS SACAT 2067
OXFORDSHIRE CC,"CHILDRENS, YOUNG PEOPLE AND FAMILIES",THAME E&A HOME,CLOTHING AND UNIFORMS,31/08/2020,7306002086,32.00,PRIMARK 693
OXFORDSHIRE CC,"CHILDRENS, YOUNG PEOPLE AND FAMILIES","	MALTFIELD HOUSE",CATERING PROVISIONS,31/08/2020,7306002158,3.50,SAINSBURYS 0632
OXFORDSHIRE CC,"CHILDRENS, YOUNG PEOPLE AND FAMILIES",EYNSHAM,CATERING PROVISIONS,31/08/2020,7306002080,15.80,SAINSBURYS SACAT 0632
OXFORDSHIRE CC,"CHILDRENS, YOUNG PEOPLE AND FAMILIES","	40 THE MOORS",CATERING PROVISIONS,31/08/2020,7306002056,52.50,ZAID SUPERMARKET
OXFORDSHIRE CC,"CHILDRENS, YOUNG PEOPLE AND FAMILIES",FPT SOUTH/VALE,MATERIALS,31/08/2020,7306002200,33.74,AMAZON.CO.UK Q61LY5CE5
OXFORDSHIRE CC,CORPORATE CORE,"MARKETING, COMMUNICATIONS & ENGAGEMENT","PUBLICITY, PROMOTIONS AND ADVERTISEMENT",31/08/2020,7306002082,500.00,GOOGLE  ADS4896546035
OXFORDSHIRE CC,"CHILDRENS, YOUNG PEOPLE AND FAMILIES",WITNEY,MATERIALS,31/08/2020,7306001896,12.79,AMAZON.CO.UK R13JV7XG5
OXFORDSHIRE CC,"CHILDRENS, YOUNG PEOPLE AND FAMILIES",ASSESSMENT TEAM NORT,MATERIALS,31/08/2020,7306002078,42.29,SPORTSDIRECT.COM
OXFORDSHIRE CC,"CHILDRENS, YOUNG PEOPLE AND FAMILIES",THAME E&A HOME,MATERIALS,31/08/2020,7306001918,2.50,THEWORKS.CO.UK
OXFORDSHIRE CC,"CHILDRENS, YOUNG PEOPLE AND FAMILIES",THAME E&A HOME,CLOTHING AND UNIFORMS,31/08/2020,7306001920,16.98,SHOE ZONE
OXFORDSHIRE CC,"CHILDRENS, YOUNG PEOPLE AND FAMILIES",THAME E&A HOME,CATERING,31/08/2020,7306002026,10.90,SAINSBURYS 2096
OXFORDSHIRE CC,"CHILDRENS, YOUNG PEOPLE AND FAMILIES",EYNSHAM,CLOTHING AND UNIFORMS,31/08/2020,7306001992,30.05,CLAIRE'S ACCESSORIES
OXFORDSHIRE CC,"CHILDRENS, YOUNG PEOPLE AND FAMILIES",DIDCOT MOVE-ON HOME,CATERING,31/08/2020,7306002022,10.15,SAINSBURYS 2067
OXFORDSHIRE CC,"CHILDRENS, YOUNG PEOPLE AND FAMILIES","	FAMILY SUPPORT CITY3",OTHER TRANSPORT ARRANGEMENTS,31/08/2020,7306001882,6.40,RINGGO
OXFORDSHIRE CC,"CHILDRENS, YOUNG PEOPLE AND FAMILIES",EET SERVICE,MATERIALS,31/08/2020,7306002008,31.24,MAILCHIMP    MONTHLY
OXFORDSHIRE CC,CORPORATE CORE,RECRUITMENT,CATERING PROVISIONS,31/08/2020,7306002058,88.42,ASDA GROCERIES ONLINE
OXFORDSHIRE CC,"CHILDRENS, YOUNG PEOPLE AND FAMILIES","	LEAVING CARE CITY 2",OTHER EXPENSES,31/08/2020,7306002010,10.00,SMARTY CO UK
OXFORDSHIRE CC,"CHILDRENS, YOUNG PEOPLE AND FAMILIES",THAME E&A HOME,MATERIALS,31/08/2020,7306001916,1.00,POUNDLAND LTD 1586
OXFORDSHIRE CC,CORPORATE CORE,RECRUITMENT,CATERING PROVISIONS,31/08/2020,7306002062,-4.50,ASDA GROCERIES ONLINE
OXFORDSHIRE CC,"CHILDRENS, YOUNG PEOPLE AND FAMILIES",ICT INFORMATION,IT SOFTWARE,31/08/2020,7306001902,103.09,FS  KANBANFLOW
OXFORDSHIRE CC,"CHILDRENS, YOUNG PEOPLE AND FAMILIES",EYNSHAM,VEHICLE FUEL,31/08/2020,7306002222,86.00,SHELL DUCKLINGTON
OXFORDSHIRE CC,"CHILDRENS, YOUNG PEOPLE AND FAMILIES",EYNSHAM,VEHICLE FUEL,31/08/2020,7306002212,20.39,TESCO PFS 2488
OXFORDSHIRE CC,"CHILDRENS, YOUNG PEOPLE AND FAMILIES",EYNSHAM,VEHICLE FUEL,31/08/2020,7306002036,20.13,TESCO PFS 2488
OXFORDSHIRE CC,"CHILDRENS, YOUNG PEOPLE AND FAMILIES",EYNSHAM,VEHICLE FUEL,31/08/2020,7306001888,18.72,TESCO PFS 2488
OXFORDSHIRE CC,"CHILDRENS, YOUNG PEOPLE AND FAMILIES",EYNSHAM,CATERING,31/08/2020,7306002204,61.96,DOMINOS PIZZA UK & IRE
OXFORDSHIRE CC,SOCIAL AND COMMUNITY SERVICES,RESIDENTIAL STRATEGY,CATERING PROVISIONS,31/08/2020,7306001908,7.95,WELCOME BREAK SEDGEMOO
OXFORDSHIRE CC,"CHILDRENS, YOUNG PEOPLE AND FAMILIES",WITNEY,CATERING PROVISIONS,31/08/2020,7306001894,5.14,LIDL GB  WITNEY
OXFORDSHIRE CC,"CHILDRENS, YOUNG PEOPLE AND FAMILIES",THAME E&A HOME,MATERIALS,31/08/2020,7306001906,43.97,THE RANGE
OXFORDSHIRE CC,"CHILDRENS, YOUNG PEOPLE AND FAMILIES",SOUTH FSS STATUTORY - ABINGDON,MATERIALS,31/08/2020,7306001872,29.95,ARGOS LTD
OXFORDSHIRE CC,"CHILDRENS, YOUNG PEOPLE AND FAMILIES",THAME E&A HOME,OTHER TRANSPORT ARRANGEMENTS,31/08/2020,7306001912,3.50,WESTGATE SHOPPING CENT
OXFORDSHIRE CC,SOCIAL AND COMMUNITY SERVICES,RESIDENTIAL STRATEGY,VEHICLE FUEL,31/08/2020,7306001910,48.63,SHELL PEAR TREE CROSS
OXFORDSHIRE CC,"CHILDRENS, YOUNG PEOPLE AND FAMILIES","	LOOKED AFTER SOUTH",VEHICLE FUEL,31/08/2020,7306002072,21.36,BP MILTON HEIGHTS S/SE
OXFORDSHIRE CC,"CHILDRENS, YOUNG PEOPLE AND FAMILIES",THAME E&A HOME,CATERING PROVISIONS,31/08/2020,7306001904,12.87,B&M 426 - HS AYLESBURY
OXFORDSHIRE CC,"CHILDRENS, YOUNG PEOPLE AND FAMILIES",EYNSHAM,PAYMENT TO GOVERNMENT DEPARTMENTS,31/08/2020,7306002216,2.00,TAMAR BRIDGE
OXFORDSHIRE CC,"CHILDRENS, YOUNG PEOPLE AND FAMILIES",EYNSHAM,PAYMENT TO GOVERNMENT DEPARTMENTS,31/08/2020,7306002032,2.00,TAMAR BRIDGE
OXFORDSHIRE CC,"CHILDRENS, YOUNG PEOPLE AND FAMILIES",EYNSHAM,PAYMENT TO GOVERNMENT DEPARTMENTS,31/08/2020,7306001886,2.00,TAMAR BRIDGE
OXFORDSHIRE CC,SOCIAL AND COMMUNITY SERVICES,LOOKED AFTER SOUTH,VEHICLE FUEL,31/08/2020,7306002002,9.85,SAINSBURYS PFS0146
OXFORDSHIRE CC,"CHILDRENS, YOUNG PEOPLE AND FAMILIES","	LOOKED AFTER SOUTH",OTHER TRANSPORT ARRANGEMENTS,31/08/2020,7306002242,194.99,OXFORD BUS COMPANY
OXFORDSHIRE CC,"CHILDRENS, YOUNG PEOPLE AND FAMILIES","	LOOKED AFTER NORTH",MATERIALS,31/08/2020,7306002202,80.00,AMAZON.CO.UK OO1L151R5
OXFORDSHIRE CC,SOCIAL AND COMMUNITY SERVICES,CSS BICESTER,MATERIALS,31/08/2020,7306001978,14.95,AMZNMKTPLACE
OXFORDSHIRE CC,"CHILDRENS, YOUNG PEOPLE AND FAMILIES",DIDCOT MOVE-ON HOME,CATERING,31/08/2020,7306002020,8.45,SAINSBURYS 2067
OXFORDSHIRE CC,"CHILDRENS, YOUNG PEOPLE AND FAMILIES","	LEAVING CARE CITY 1",OTHER PREMISES RELATED COSTS,31/08/2020,7306002106,300.00,HMT PROPERTY MANAGEMEN
OXFORDSHIRE CC,"CHILDRENS, YOUNG PEOPLE AND FAMILIES",EYNSHAM,ENTERTAINMENT EXPENSES,31/08/2020,7306002206,40.00,ADRENALIN QUARRY LIMIT
OXFORDSHIRE CC,"CHILDRENS, YOUNG PEOPLE AND FAMILIES",UASC 16&17,OTHER TRANSPORT ARRANGEMENTS,31/08/2020,7306002190,20.00,IZ  ROYAL CARS OXFORD
OXFORDSHIRE CC,"CHILDRENS, YOUNG PEOPLE AND FAMILIES","	LOOKED AFTER CITY 2",OTHER TRANSPORT ARRANGEMENTS,31/08/2020,7306002192,30.00,IZ  ROYAL CARS OXFORD
OXFORDSHIRE CC,"CHILDRENS, YOUNG PEOPLE AND FAMILIES",FPT SOUTH/VALE,CATERING PROVISIONS,31/08/2020,7306002198,22.00,MARKS&SPENCER PLC
OXFORDSHIRE CC,"CHILDRENS, YOUNG PEOPLE AND FAMILIES",EYNSHAM,ENTERTAINMENT EXPENSES,31/08/2020,7306002208,50.00,ADRENALIN QUARRY LIMIT
OXFORDSHIRE CC,SOCIAL AND COMMUNITY SERVICES,"	PUBLIC HEALTH GENERA",PRINTING,31/08/2020,7306002194,422.40,CARRICK SIGNS LTD
OXFORDSHIRE CC,"CHILDRENS, YOUNG PEOPLE AND FAMILIES",EYNSHAM,RESIDENTIAL ACTIVITIES,31/08/2020,7306001884,15.50,ADRENALIN QUARRY LIMIT
OXFORDSHIRE CC,"CHILDRENS, YOUNG PEOPLE AND FAMILIES","	FAMILY SUPPORT CITY3",ENTERTAINMENT EXPENSES,31/08/2020,7306002014,1.60,ROCKSTAR CLIMBING
OXFORDSHIRE CC,"CHILDRENS, YOUNG PEOPLE AND FAMILIES","	LOOKED AFTER SOUTH",CATERING,31/08/2020,7306002070,4.59,MCDONALDS
OXFORDSHIRE CC,"CHILDRENS, YOUNG PEOPLE AND FAMILIES","	FAM SUPP CITY 1",MATERIALS,31/08/2020,7306001922,92.95,ARGOS LTD
OXFORDSHIRE CC,SOCIAL AND COMMUNITY SERVICES,LOOKED AFTER SOUTH,OTHER TRANSPORT ARRANGEMENTS,31/08/2020,7306002000,4.00,OXPENS CAR PARK
OXFORDSHIRE CC,"CHILDRENS, YOUNG PEOPLE AND FAMILIES",EYNSHAM,ENTERTAINMENT EXPENSES,31/08/2020,7306002218,4.50,ADRENALIN QUARRY LIMIT
OXFORDSHIRE CC,SOCIAL AND COMMUNITY SERVICES,WITNEY MOVE ON HOME,CATERING PROVISIONS,31/08/2020,7306001966,65.77,ASDA STORES 4920
OXFORDSHIRE CC,SOCIAL AND COMMUNITY SERVICES,WITNEY MOVE ON HOME,CATERING PROVISIONS,31/08/2020,7306001964,28.15,ASDA STORES 4920
OXFORDSHIRE CC,"CHILDRENS, YOUNG PEOPLE AND FAMILIES",EYNSHAM,CATERING,31/08/2020,7306001930,152.84,BOOKER LIMITED OXFORD
OXFORDSHIRE CC,"CHILDRENS, YOUNG PEOPLE AND FAMILIES","	LOOKED AFTER CITY 1",PAYMENTS TO TRANSPORT OPERATORS,31/08/2020,7306001972,75.80,TRAINLINE
OXFORDSHIRE CC,"CHILDRENS, YOUNG PEOPLE AND FAMILIES","	LEAVING CARE NORTH",PAYMENT TO GOVERNMENT DEPARTMENTS,31/08/2020,7306002188,14.00,GEN REGISTER OFFICE
OXFORDSHIRE CC,"CHILDRENS, YOUNG PEOPLE AND FAMILIES",EYNSHAM,ENTERTAINMENT EXPENSES,31/08/2020,7306002210,22.00,ADRENALIN QUARRY LIMIT
OXFORDSHIRE CC,ENTERPRISEVC,,CAR LEASING - PRIVATE RENTALS,31/08/2020,7306002240,962.28,ENTERPRISE RENT-A-CAR
OXFORDSHIRE CC,ENTERPRISEVC,,CAR LEASING - PRIVATE RENTALS,31/08/2020,7306002238,962.28,ENTERPRISE RENT-A-CAR
OXFORDSHIRE CC,SOCIAL AND COMMUNITY SERVICES,WITNEY MOVE ON HOME,POSTAGE AND DELIVERY,31/08/2020,7306001962,6.70,POST OFFICE COUNTER
OXFORDSHIRE CC,SOCIAL AND COMMUNITY SERVICES,WITNEY MOVE ON HOME,POSTAGE AND DELIVERY,31/08/2020,7306001960,28.13,POST OFFICE COUNTER
OXFORDSHIRE CC,"CHILDRENS, YOUNG PEOPLE AND FAMILIES",NTH FAM SUPRT-BCSTR,MATERIALS,31/08/2020,7306001986,4.64,AMAZON.CO.UK 419YF1N75
OXFORDSHIRE CC,"CHILDRENS, YOUNG PEOPLE AND FAMILIES",EYNSHAM,ENTERTAINMENT EXPENSES,31/08/2020,7306002220,22.00,ADRENALIN QUARRY LIMIT
OXFORDSHIRE CC,"CHILDRENS, YOUNG PEOPLE AND FAMILIES","	LOOKED AFTER SOUTH",OTHER TRANSPORT ARRANGEMENTS,31/08/2020,7306001926,5.00,DART-CHARGE
OXFORDSHIRE CC,ENVIRONMENT AND ECONOMY,HARD FM,HARDWARE AND CROCKERY,31/08/2020,7306001898,13.29,WANTAGE BUILDERS MERCH
OXFORDSHIRE CC,SOCIAL AND COMMUNITY SERVICES,LEAVING CARE NORTH,CATERING,31/08/2020,7306002132,3.27,MCDONALDS
OXFORDSHIRE CC,"CHILDRENS, YOUNG PEOPLE AND FAMILIES",CNTL EARLY HELP-RHIL,MATERIALS,31/08/2020,7306001924,234.99,ARGOS LTD
OXFORDSHIRE CC,"CHILDRENS, YOUNG PEOPLE AND FAMILIES",EYNSHAM,VEHICLE FUEL,31/08/2020,7306002034,45.75,TEXACO GANNEL
OXFORDSHIRE CC,SOCIAL AND COMMUNITY SERVICES,CSS - BANBURY,CATERING PROVISIONS,31/08/2020,7306002166,81.50,TESCO STORE 2064
OXFORDSHIRE CC,"CHILDRENS, YOUNG PEOPLE AND FAMILIES",NTH FAM SUPRT-BCSTR,MATERIALS,31/08/2020,7306001984,22.67,AMAZON.CO.UK M36NQ4IO5
OXFORDSHIRE CC,"CHILDRENS, YOUNG PEOPLE AND FAMILIES",NTH FAM SUPRT-BCSTR,MATERIALS,31/08/2020,7306001982,22.67,AMAZON.CO.UK F30BG6OA5
OXFORDSHIRE CC,"CHILDRENS, YOUNG PEOPLE AND FAMILIES",CSS - ABINGDON,CATERING PROVISIONS,31/08/2020,7306002030,83.50,TESCO STORES 2008
OXFORDSHIRE CC,"CHILDRENS, YOUNG PEOPLE AND FAMILIES","	LOOKED AFTER SOUTH",HIRE OF ACCOMMODATION AND FACILITIES,31/08/2020,7306001928,398.00,PREMIER INN
OXFORDSHIRE CC,"CHILDRENS, YOUNG PEOPLE AND FAMILIES","	FAMILY SUPPORT CITY3",ENTERTAINMENT EXPENSES,31/08/2020,7306002012,13.00,ROCKSTAR CLIMBING ONLI
OXFORDSHIRE CC,ENVIRONMENT AND ECONOMY,LEARNING & ACCESS,MATERIALS,31/08/2020,7306002130,205.20,WWW.SIGN-HOLDERS.CO.UK
OXFORDSHIRE CC,ENVIRONMENT AND ECONOMY,HARD FM,HARDWARE AND CROCKERY,31/08/2020,7306001900,35.94,WWW.IRONMONGERYDIRECT.
OXFORDSHIRE CC,"CHILDRENS, YOUNG PEOPLE AND FAMILIES","	RESIDENTIAL STRATEGY",CATERING PROVISIONS,31/08/2020,7306002128,84.13,SAINSBURYS 0600
OXFORDSHIRE CC,"CHILDRENS, YOUNG PEOPLE AND FAMILIES","	OCCG GRANT",FURNITURE,31/08/2020,7306002126,12.20,SAINSBURYS SACAT 0631
OXFORDSHIRE CC,"CHILDRENS, YOUNG PEOPLE AND FAMILIES","	FAMILY SUPPORT CITY3",OTHER TRANSPORT ARRANGEMENTS,31/08/2020,7306002054,61.00,WWW.THEKEY.CO.UK
OXFORDSHIRE CC,CORPORATE CORE,,"SUPPLIES, STATIONERY AND MATERIALS",31/08/2020,7306002234,61.33,LYRECO UK LTD
OXFORDSHIRE CC,CORPORATE CORE,,"SUPPLIES, STATIONERY AND MATERIALS",31/08/2020,7306002236,45.90,LYRECO UK LTD
OXFORDSHIRE CC,"CHILDRENS, YOUNG PEOPLE AND FAMILIES",THAME E&A HOME,CATERING PROVISIONS,31/08/2020,7306002006,116.90,TESCO STORES 2038
OXFORDSHIRE CC,"CHILDRENS, YOUNG PEOPLE AND FAMILIES",EYNSHAM,CATERING PROVISIONS,31/08/2020,7306002196,154.15,TESCO STORES 2008
OXFORDSHIRE CC,SOCIAL AND COMMUNITY SERVICES,CSS - OXFORD,PAYMENT TO GOVERNMENT DEPARTMENTS,31/08/2020,7306002102,-.01,OCC OXFORD CSS
OXFORDSHIRE CC,CORPORATE CORE,HISTORY SERVICE,FURNITURE,31/08/2020,7306002124,8.49,AMZNMKTPLACE AMAZON.CO
OXFORDSHIRE CC,"CHILDRENS, YOUNG PEOPLE AND FAMILIES","	LEAVING CARE NORTH",CLOTHING AND UNIFORMS,31/08/2020,7306001988,154.00,PRIMARK 440
